Workbook

Sheet Main
A1: Retinoids and liver/metabolic | G1: (retinoid OR retinoic OR Vitamin A) AND (Liver[mh] OR liver OR metabolic disease OR diabetes OR Liver Diseases[mh] OR Metabolic Diseases[mh]) AND (review[pt] OR review[tiab])
B2: Your search terms
A3: PMID | B3: retin | C3: ppar | D3: diabetes | E3: Total | F3: Pub Yr | G3: Title | H3: Fauthor | I3: LinkPMID | J3: tiab
A4: =HYPERLINK("http://www.ncbi.nlm.nih.gov/pubmed/" & I4,I4) -> 8801182 | B4: =(LEN($J4) - LEN(SUBSTITUTE(LOWER($J4),LOWER(B$3),"")))/LEN(B$3) -> 31 | C4: =(LEN($J4) - LEN(SUBSTITUTE(LOWER($J4),LOWER(C$3),"")))/LEN(C$3) -> 0 | D4: =(LEN($J4) - LEN(SUBSTITUTE(LOWER($J4),LOWER(D$3),"")))/LEN(D$3) -> 0 | E4: =SUM(B4:D4) -> 31 | F4: 1996 | G4: Retinoic acid biosynthesis and metabolism. | H4: Napoli | I4: 8801182 | J4: Retinoic acid biosynthesis and metabolism. Abstract: Metabolic activation of retinol into the hormone retinoic acid and metabolism of retinoic acid entail essential aspects of retinoid biology that seem interdependent with functions of retinoid binding-proteins. Cellular retinol binding protein and cellular retinoic acid binding protein enjoy widespread expression and, where expressed, their liganded forms represent the major physiological forms of retinol and retinoic acid, respectively. These retinoid binding proteins may protect cells from the amphipathic properties of retinoids and protect the structurally sensitive retinoids from the cellular milieu. Starting from the perspective that the enzymes most likely to metabolize retinoids in vivo might recognize the major forms of retinoids that occur in vivo, several laboratories have produced results that support a model of retinoid metabolism with prominent roles for the cellular retinoid binding proteins. In this model, liganded cellular retinoid binding proteins serve as substrates for the metabolism of some retinoids (retinol, retinoic acid), restricting access to those enzymes that recognize both the binding protein and the retinoid. Other retinoids (3,4-didehydroretinol, 4-oxo-retinoic acid) liganded to binding-proteins have their metabolism arrested. In its unliganded form, at least one retinoid binding protein (cellular retinol binding protein) serves as a retinoid concentration-sensitive modulator of enzymes that catalyze retinol metabolism. This review will describe the model and the intrinsic relationships among retinoid-specific enzymes and retinoid binding proteins.
A5: =HYPERLINK("http://www.ncbi.nlm.nih.gov/pubmed/" & I5,I5) -> 12440979 | B5: =(LEN($J5) - LEN(SUBSTITUTE(LOWER($J5),LOWER(B$3),"")))/LEN(B$3) -> 1 | C5: =(LEN($J5) - LEN(SUBSTITUTE(LOWER($J5),LOWER(C$3),"")))/LEN(C$3) -> 21 | D5: =(LEN($J5) - LEN(SUBSTITUTE(LOWER($J5),LOWER(D$3),"")))/LEN(D$3) -> 1 | E5: =SUM(B5:D5) -> 23 | F5: 2002 | G5: Peroxisome proliferator-activated receptors and the regulation of mammalian lipid metabolism. | H5: Smith | I5: 12440979 | J5: Peroxisome proliferator-activated receptors and the regulation of mammalian lipid metabolism. Abstract: Peroxisome proliferator-activated receptors (PPARs) are members of the superfamily of ligand-activated nuclear transcription factors. Three PPAR subtypes, PPARalpha, PPARdelta (PPARbeta) and PPARgamma, have been described in mammals. The tissue distribution of PPARs is heterogeneous: PPARalpha is highly expressed in liver and skeletal muscle, PPARgamma is preferentially expressed in adipose tissues, and PPARdelta is expressed in most cell types with relative abundance. Unlike most receptors, PPARs show low ligand specificity, being activated by many long-chain saturated and unsaturated fatty acids, or by eicosanoids. PPARs are transcriptionally active as heterodimeric complexes with the retinoid X receptor and bind to specific recognition sequences in the regulatory region of target genes. Many PPAR-regulated genes encode proteins that regulate fatty acid oxidation and storage. Elucidation of the biological functions of PPARs has been aided by the development of PPAR-null mice and the identification of humans bearing PPAR mutations, together with the discovery of synthetic small-molecule ligands that selectively activate individual PPAR subtypes. Using these genetic and pharmacological approaches, it has been shown that PPARalpha predominantly regulates pathways of fatty acid oxidation, whereas PPARgamma modifies fatty acid synthesis and storage in adipose tissues. By reducing systemic fatty acid availability, thiazolidinedione PPARgamma activators regulate glucose metabolism and are now used clinically in the treatment of Type II diabetes. In summary, PPARs play a central role in the mechanisms that balance fatty acid oxidation and storage in the face of fluctuations of dietary fat intake and energy expenditure.
A6: =HYPERLINK("http://www.ncbi.nlm.nih.gov/pubmed/" & I6,I6) -> 10874003 | B6: =(LEN($J6) - LEN(SUBSTITUTE(LOWER($J6),LOWER(B$3),"")))/LEN(B$3) -> 23 | C6: =(LEN($J6) - LEN(SUBSTITUTE(LOWER($J6),LOWER(C$3),"")))/LEN(C$3) -> 0 | D6: =(LEN($J6) - LEN(SUBSTITUTE(LOWER($J6),LOWER(D$3),"")))/LEN(D$3) -> 0 | E6: =SUM(B6:D6) -> 23 | F6: 2000 | G6: Retinoids in chemoprevention and differentiation therapy. | H6: Hansen | I6: 10874003 | J6: Retinoids in chemoprevention and differentiation therapy. Abstract: Retinoids are essential for the maintenance of epithelial differentiation. As such, they play a fundamental role in chemoprevention of epithelial carcinogenesis and in differentiation therapy. Physiological retinoic acid is obtained through two oxidation steps from dietary retinol, i.e. retinol--gt;retinal--gt;retinoic acid. The latter retinal--gt;retinoic acid step is irreversible and eventually marks disposal of this essential nutrient, through cytochrome P450-dependent oxidative steps. Mutant mice deficient in aryl hydrocarbon receptor (AHR) accumulate retinyl palmitate, retinol and retinoic acid. This suggests a direct connection between the AHR and retinoid homeostasis. Retinoids control gene expression through the nuclear retinoic acid receptors (RARs) alpha, beta and gamma and 9-cis-retinoic acid receptors alpha, beta and gamma, which bind with high affinity the natural ligands all-trans-retinoic acid and 9-cis-retinoic acid, respectively. Retinoids are effective chemopreventive agents against skin, head and neck, breast, liver and other forms of cancer. Differentiation therapy of acute promyelocytic leukemia (APL) is based on the ability of retinoic acid to induce differentiation of leukemic promyelocytes. Patients with relapsed, retinoid-resistant APL are now being treated with arsenic oxide, which results in apoptosis of the leukemic cells. Interestingly, induction of differentiation in promyelocytes and consequent remission of APL following retinoid therapy depends on expression of a chimeric PML-RAR alpha fusion protein resulting from a t(15;17) chromosomal translocation. This protein functions as a dominant negative against the function of both PML and RARs and its overexpression is able to recreate the phenotypes of the disease in transgenic mice. The development of new, more effective and less toxic retinoids, alone or in combination with other drugs, may provide additional avenues for cancer chemoprevention and differentiation therapy.
A7: =HYPERLINK("http://www.ncbi.nlm.nih.gov/pubmed/" & I7,I7) -> 17148746 | B7: =(LEN($J7) - LEN(SUBSTITUTE(LOWER($J7),LOWER(B$3),"")))/LEN(B$3) -> 1 | C7: =(LEN($J7) - LEN(SUBSTITUTE(LOWER($J7),LOWER(C$3),"")))/LEN(C$3) -> 20 | D7: =(LEN($J7) - LEN(SUBSTITUTE(LOWER($J7),LOWER(D$3),"")))/LEN(D$3) -> 1 | E7: =SUM(B7:D7) -> 22 | F7: 2006 | G7: Targeting components of the stress system as potential therapies for the metabolic syndrome: the peroxisome-proliferator-activated receptors. | H7: Yumuk | I7: 17148746 | J7: Targeting components of the stress system as potential therapies for the metabolic syndrome: the peroxisome-proliferator-activated receptors. Abstract: The three peroxisome-proliferator-activated receptor (PPAR) subtypes PPAR-alpha, PPAR-gamma, and PPAR-delta are ligand-activated transcription factors of the nuclear receptor family. PPARs form obligate heterodimers with the retinoid X receptor, which bind to peroxisome-proliferator-response elements (PPREs). PPAR-alpha is expressed mainly in liver, brown fat, kidney, heart, and skeletal muscle; PPAR-gamma in intestine and adipose tissue; PPAR-alpha and PPAR-gamma are both expressed in vascular endothelium, smooth muscle cells, macrophages, and foam cells; PPAR-delta in skeletal muscle, human embryonic kidney, intestine, heart, adipose tissue, developing brain, and keratinocytes. Intense interest in the development of drugs with new mechanisms of action for the metabolic syndrome has focused attention on nuclear receptors, such as PPARs that function as regulators of energy homeostasis. Agonists of PPAR-alpha and PPAR-gamma are currently used to treat diabetic dyslipidemia and type 2 diabetes. Dual PPAR-alpha/gamma agonists and PPAR-alpha/gamma/delta pan-agonists are under investigation for treatment of cardiovascular disease and the metabolic syndrome. Selective PPAR modulators (SPPARMs) are PPAR ligands that possess desirable efficacy and improved tolerance. Efforts are being made to identify novel partial agonists or antagonists for PPAR-gamma in order to combine their antidiabetic and antiobesity effects. Glucocorticoids are major mediators of the stress response and could be the link between stress and PPAR activator signaling and thus may affect the downstream metabolic pathways involved in fuel homeostasis.
A8: =HYPERLINK("http://www.ncbi.nlm.nih.gov/pubmed/" & I8,I8) -> 16433796 | B8: =(LEN($J8) - LEN(SUBSTITUTE(LOWER($J8),LOWER(B$3),"")))/LEN(B$3) -> 22 | C8: =(LEN($J8) - LEN(SUBSTITUTE(LOWER($J8),LOWER(C$3),"")))/LEN(C$3) -> 0 | D8: =(LEN($J8) - LEN(SUBSTITUTE(LOWER($J8),LOWER(D$3),"")))/LEN(D$3) -> 0 | E8: =SUM(B8:D8) -> 22 | F8: 2006 | G8: Oral retinoid therapy for disorders of keratinization: single-centre retrospective 25 years experience on 23 patients. | H8: Katugampola | I8: 16433796 | J8: Oral retinoid therapy for disorders of keratinization: single-centre retrospective 25 years experience on 23 patients. Abstract: BACKGROUND : Over the last three decades, the oral retinoids etretinate and acitretin have revolutionized the treatment of disorders of keratinization (DOK). Many patients with DOK require life-long treatment with oral retinoids. However, the longest follow-up data of patients with DOK on oral retinoid therapy is 10 years for adults and up to 11 years for children. OBJECTIVES : The aim of our study was to collect long-term retrospective data including disease response, side-effects and pregnancy outcome in a cohort of patients with DOK who were among the first in the world to commence oral retinoids 25 years ago. METHODS : Between 1979 and 1981, 30 patients with DOK were commenced on oral etretinate in our department. Case notes of these patients were reviewed retrospectively, and patients interviewed where possible to obtain the following information: diagnosis, age when treatment commenced, duration of treatment, reason for discontinuation of therapy, side-effects, abnormal investigation results and pregnancy outcomes. RESULTS : Case notes of 23 of the 30 patients were available for review; of these, two patients were deceased and 14 were interviewed. In the 23 patients, the mean age of commencing treatment was 33.5 years (range 4.2-61) and the mean duration of etretinate therapy was 5.2 years (range 1 month to 14 years). Reasons for discontinuing treatment were an overall improvement in the skin disease (six of 23), no benefit +/- side-effects (11 of 23) and noncompliance (one of 23). Two patients died of causes unrelated to their skin disease or treatment, 12 and 4 years after stopping etretinate. Five patients (one female, four males) subsequently changed to acitretin and are currently continuing therapy. The mean total duration of retinoid therapy (etretinate and acitretin) for the four males was 23.7 years (range 20.6-25.1). The female patient continued intermittent courses (due to planned pregnancies) of oral retinoids for a total of 10.1 years over the last 25 years. Abnormal investigation results included elevated serum triglycerides and cholesterol (two of 23), isolated high triglycerides (three of 23), isolated high cholesterol (three of 23), worsening of liver enzymes in a patient with alcohol dependence, and elevated serum alkaline phosphatase (ALP) in healthy adults (three of 23). In two children, the elevated pretreatment ALP levels increased further after commencing etretinate but returned to normal in adulthood while treatment continued. One patient developed diffuse idiopathic skeletal hyperostosis after 21 years of retinoid therapy. One female patient had two early spontaneous abortions 2.75 and 3.2 years after discontinuing etretinate; she subsequently had two normal children. Two other females had normal children 1, 3 and 5 years after stopping etretinate. Two male patients fathered a total of three healthy children while on etretinate. CONCLUSIONS : This study provides the longest available follow-up data of children and adults with DOK on oral retinoid therapy. Such information is essential for clinicians and their patients with DOK embarking on life-long treatment with retinoids.
A9: =HYPERLINK("http://www.ncbi.nlm.nih.gov/pubmed/" & I9,I9) -> 10521699 | B9: =(LEN($J9) - LEN(SUBSTITUTE(LOWER($J9),LOWER(B$3),"")))/LEN(B$3) -> 21 | C9: =(LEN($J9) - LEN(SUBSTITUTE(LOWER($J9),LOWER(C$3),"")))/LEN(C$3) -> 0 | D9: =(LEN($J9) - LEN(SUBSTITUTE(LOWER($J9),LOWER(D$3),"")))/LEN(D$3) -> 1 | E9: =SUM(B9:D9) -> 22 | F9: 1999 | G9: Interactions of retinoid binding proteins and enzymes in retinoid metabolism. | H9: Napoli | I9: 10521699 | J9: Interactions of retinoid binding proteins and enzymes in retinoid metabolism. Abstract: Naturally occurring retinoids (vitamin A or retinol and its active metabolites) are vital for vision, controlling the differentiation program of epithelial cells in the digestive tract and respiratory system, skin, bone, the nervous system, the immune system, and for hematopoiesis. Retinoids are essential for growth, reproduction (conception and embryonic development), and resistance to and recovery from infection. The functions of retinoids in the embryo begin soon after conception and continue throughout the lifespan of all vertebrates. Both naturally occurring and synthetic retinoids are used in the therapy of various skin diseases, especially acne, for augmenting the treatment of diabetes, and as cancer chemopreventive agents. Retinol metabolites serve as ligands that activate specific transcription factors in the superfamily of steroid/retinoid/thyroid/vitamin D/orphan receptors and thereby control gene expression. Additionally, retinoids may also function through non-genomic actions. Various retinoid binding proteins serve as partners in retinoid function. These binding proteins show high specificity and affinity for specific retinoids and seem to control retinoid metabolism in vivo qualitatively and quantitatively by reducing free retinoid concentrations, protecting retinoids from non-specific interactions, and chaperoning access of metabolic enzymes to retinoids. Implementation of the physiological effects of retinoids depends on the spatial-temporal expressions of binding proteins, receptors and metabolic enzymes. This review will discuss current understanding of the enzymes that catalyze retinol and retinoic acid metabolism and their unique and integral relationship to retinoid binding proteins.
A10: =HYPERLINK("http://www.ncbi.nlm.nih.gov/pubmed/" & I10,I10) -> 15959399 | B10: =(LEN($J10) - LEN(SUBSTITUTE(LOWER($J10),LOWER(B$3),"")))/LEN(B$3) -> 1 | C10: =(LEN($J10) - LEN(SUBSTITUTE(LOWER($J10),LOWER(C$3),"")))/LEN(C$3) -> 19 | D10: =(LEN($J10) - LEN(SUBSTITUTE(LOWER($J10),LOWER(D$3),"")))/LEN(D$3) -> 0 | E10: =SUM(B10:D10) -> 20 | F10: 2005 | G10: [PPAR receptors: recent data]. | H10: Vidal | I10: 15959399 | J10: [PPAR receptors: recent data]. Abstract: The nuclear receptors PPAR (Peroxisome Proliferator-Activated Receptors) are transcription factors which form with the retinoid receptor RXR, a PPAR/RXR heterodimer, the functional transcription factor within cells. PPAR receptors are activated by their ligands, either naturals or synthetics, and modulate target gene transcription. There are three PPAR subtypes (PPARalpha, PPARbeta/delta et PPARgamma) coded by different genes, and two isoforms of PPARgamma proteins have been detected in humans (PPARgamma1 and PPARgamma2). PPAR are mainly modulators of lipid metabolism, but each receptor subtype is pharmacologically distinct, and development of synthetic PPAR agonists has shown their role in cellular (mainly adipocyte) differentiation and in glucose homeostasis. This review summarise the main data, currently available, on expression, biological functions, natural and synthetic (activators) ligands for the PPAR receptor subtypes. PPAR receptors key-role in lipid and glucose métabolisms, has lead to a large clinical use of pharmacological agents acting as PPAR ligands: fibrates, PPARalpha agonists as hypolipidaemic treatment, thiazolidinediones (glitazones), PPARalpha agonists as antidiabetics. Lipid metabolism is impaired in insulin resistant skeletal muscles, fatty acids role in the pathophysiology of insulin resistance generates several hypothesis we briefly describe. Finally, we present and discuss experimental data, suggesting the activation of PPARbeta/delta in skeletal muscle to be a potential new approach in the treatment of insulin resistance and metabolic syndrome.
A11: =HYPERLINK("http://www.ncbi.nlm.nih.gov/pubmed/" & I11,I11) -> 8144697 | B11: =(LEN($J11) - LEN(SUBSTITUTE(LOWER($J11),LOWER(B$3),"")))/LEN(B$3) -> 20 | C11: =(LEN($J11) - LEN(SUBSTITUTE(LOWER($J11),LOWER(C$3),"")))/LEN(C$3) -> 0 | D11: =(LEN($J11) - LEN(SUBSTITUTE(LOWER($J11),LOWER(D$3),"")))/LEN(D$3) -> 0 | E11: =SUM(B11:D11) -> 20 | F11: 1993 | G11: The retinal pigment epithelium: a versatile partner in vision. | H11: Bok | I11: 8144697 | J11: The retinal pigment epithelium: a versatile partner in vision. Abstract: The retinal pigment epithelium (RPE) is a monolayer of cuboidal cells that lies in close association with the rod and cone photoreceptors. This epithelium has diverse features, three of which are discussed in some detail in this review, namely the daily phagocytosis of rod and cone outer segment fragments that are shed from their distal ends; the uptake, processing, transport and release of vitamin A (retinol) and some of its visual cycle intermediates (retinoids); and some of the aspects of its apical and basolateral membrane polarity that are the reverse of most other epithelia. Phagocytosis takes place at the apical surface via membrane receptor-mediated processes that are not yet well defined. Retinol uptake occurs at both the basolateral and apical surfaces by what appear to be separate receptor-mediated processes. The release of a crucial retinoid, 11-cis retinaldehyde (11-cis retinal), occurs solely across the apical membrane. Delivery of retinol across the basolateral membrane is mediated by a retinol binding protein (RBP) that is secreted by the liver as a complex with retinol (vitamin A). Within the cell, retinol and its derivatives are solubilized by intracellular retinoid binding proteins that are selective for retinol (cellular retinol binding protein, CRBP) and 11-cis retinoids (cellular retinal binding protein, CRALBP). Release of 11-cis retinal across the apical membrane and re-uptake of retinol from the photoreceptors during the visual cycle is promoted by an intercellular retinoid binding protein (IRBP). Na,K-ATPase, the membrane-integrated enzyme required to set up the ion gradients that drive other ion transporters, is largely localized to the apical membrane.(ABSTRACT TRUNCATED AT 250 WORDS)
A12: =HYPERLINK("http://www.ncbi.nlm.nih.gov/pubmed/" & I12,I12) -> 21763780 | B12: =(LEN($J12) - LEN(SUBSTITUTE(LOWER($J12),LOWER(B$3),"")))/LEN(B$3) -> 19 | C12: =(LEN($J12) - LEN(SUBSTITUTE(LOWER($J12),LOWER(C$3),"")))/LEN(C$3) -> 0 | D12: =(LEN($J12) - LEN(SUBSTITUTE(LOWER($J12),LOWER(D$3),"")))/LEN(D$3) -> 0 | E12: =SUM(B12:D12) -> 19 | F12: 2012 | G12: Hepatic metabolism of retinoids and disease associations. | H12: Shirakami | I12: 21763780 | J12: Hepatic metabolism of retinoids and disease associations. Abstract: The liver is the most important tissue site in the body for uptake of postprandial retinoid, as well as for retinoid storage. Within the liver, both hepatocytes and hepatic stellate cells (HSCs) are importantly involved in retinoid metabolism. Hepatocytes play an indispensable role in uptake and processing of dietary retinoid into the liver, and in synthesis and secretion of retinol-binding protein (RBP), which is required for mobilizing hepatic retinoid stores. HSCs are the central cellular site for retinoid storage in the healthy animal, accounting for as much as 50-60% of the total retinoid present in the entire body. The liver is also an important target organ for retinoid actions. Retinoic acid is synthesized in the liver and can interact with retinoid receptors which control expression of a large number of genes involved in hepatic processes. Altered retinoid metabolism and the accompanying dysregulation of retinoid signaling in the liver contribute to hepatic disease. This is related to HSCs, which contribute significantly to the development of hepatic disease when they undergo a process of cellular activation. HSC activation results in the loss of HSC retinoid stores and changes in extracellular matrix deposition leading to the onset of liver fibrosis. An association between hepatic disease progression and decreased hepatic retinoid storage has been demonstrated. In this review article, we summarize the essential role of the liver in retinoid metabolism and consider briefly associations between hepatic retinoid metabolism and disease. This article is part of a Special Issue entitled Retinoid and Lipid Metabolism.
A13: =HYPERLINK("http://www.ncbi.nlm.nih.gov/pubmed/" & I13,I13) -> 20026355 | B13: =(LEN($J13) - LEN(SUBSTITUTE(LOWER($J13),LOWER(B$3),"")))/LEN(B$3) -> 1 | C13: =(LEN($J13) - LEN(SUBSTITUTE(LOWER($J13),LOWER(C$3),"")))/LEN(C$3) -> 17 | D13: =(LEN($J13) - LEN(SUBSTITUTE(LOWER($J13),LOWER(D$3),"")))/LEN(D$3) -> 1 | E13: =SUM(B13:D13) -> 19 | F13: 2010 | G13: Peroxisome proliferator-activated receptor beta/delta (PPARbeta/delta) acts as regulator of metabolism linked to multiple cellular functions. | H13: Wagner | I13: 20026355 | J13: Peroxisome proliferator-activated receptor beta/delta (PPARbeta/delta) acts as regulator of metabolism linked to multiple cellular functions. Abstract: Peroxisome proliferator-activated receptors (PPARs) are nuclear receptors. They function as ligand activated transcription factors. They exist in three isoforms, PPARalpha, PPARbeta (formerly PPARdelta), and PPARgamma. For all PPARs lipids are endogenous ligands, linking them directly to metabolism. PPARs form heterodimers with retinoic X receptors, and, upon ligand binding, modulate gene expression of downstream target genes dependent on the presence of co-repressors or co-activators. This results in cell-type specific complex regulations of proliferation, differentiation and cell survival. Specific synthetic agonists for all PPARs are available. PPARalpha and PPARgamma agonists are already in clinical use for the treatment of hyperlipidemia and type 2 diabetes, respectively. More recently, PPARbeta activation came into focus as an interesting novel approach for the treatment of metabolic syndrome and associated cardiovascular diseases. Although the initial notion was that PPARbeta is expressed ubiquitously, more recently extensive investigations have been performed demonstrating high PPARbeta expression in a variety of tissues, e.g. skin, skeletal muscle, adipose tissue, inflammatory cells, heart, and various types of cancer. In addition, in vitro and in vivo studies using specific PPARbeta agonists, tissue-specific over-expression or knockout mouse models have demonstrated a variety of functions of PPARbeta in adipose tissue, muscle, skin, inflammation, and cancer. We will focus here on functions of PPARbeta in adipose tissue, skeletal muscle, heart, angiogenesis and cancer related to modifications in metabolism and the identified underlying molecular mechanisms.
A14: =HYPERLINK("http://www.ncbi.nlm.nih.gov/pubmed/" & I14,I14) -> 15612519 | B14: =(LEN($J14) - LEN(SUBSTITUTE(LOWER($J14),LOWER(B$3),"")))/LEN(B$3) -> 1 | C14: =(LEN($J14) - LEN(SUBSTITUTE(LOWER($J14),LOWER(C$3),"")))/LEN(C$3) -> 18 | D14: =(LEN($J14) - LEN(SUBSTITUTE(LOWER($J14),LOWER(D$3),"")))/LEN(D$3) -> 0 | E14: =SUM(B14:D14) -> 19 | F14: 2004 | G14: [Peroxisome proliferator-activated receptors (PPARs) in obesity and insulin resistance development]. | H14: Alemán | I14: 15612519 | J14: [Peroxisome proliferator-activated receptors (PPARs) in obesity and insulin resistance development]. Abstract: The peroxisome proliferator-activated receptors (PPARs) are a family of nuclear transcription factors that belong to the steroid receptor superfamily. PPARs family includes PPARalpha, PPARbeta/delta, PPARgamma1 and PPARgamma2. PPARs form an heterodimer with the 9-cis retinoic acid receptor (RXR) and bind to response elements present in target genes activated by these transcription factors. PPARs control the expression of genes involved in fatty acid synthesis, oxidation and storage. PPARs are present in most tissues, where PPARalpha is most abundant in liver and skeletal muscle, whereas PPARgamma is found mainly in adipose tissue. Natural ligands for PPARs are polyunsaturated fatty acids (PUFAs) and some eicosanoids, however they are also activated by compounds such as fibrates and thiazolidinediones (TZDs). In this review is shown the different PPARs isoforms, identification, and regulation of their expression and activity. Also shows which are the natural ligands, and the chemical compounds that activate PPARs. Finally, it shows the target genes activated by the different isoforms of PPARs, the metabolic integration between the different PPAR isoforms to maintain a balance between fatty acid synthesis and oxidation and the association with the development of obesity and insulin resistance. Also shows information about the nutritional requirements of PUFAs that are the main natural ligands of PPARs.
A15: =HYPERLINK("http://www.ncbi.nlm.nih.gov/pubmed/" & I15,I15) -> 14561188 | B15: =(LEN($J15) - LEN(SUBSTITUTE(LOWER($J15),LOWER(B$3),"")))/LEN(B$3) -> 1 | C15: =(LEN($J15) - LEN(SUBSTITUTE(LOWER($J15),LOWER(C$3),"")))/LEN(C$3) -> 18 | D15: =(LEN($J15) - LEN(SUBSTITUTE(LOWER($J15),LOWER(D$3),"")))/LEN(D$3) -> 0 | E15: =SUM(B15:D15) -> 19 | F15: 2002 | G15: Peroxisome proliferator-activated receptors and the control of inflammation. | H15: Cabrero | I15: 14561188 | J15: Peroxisome proliferator-activated receptors and the control of inflammation. Abstract: Peroxisome proliferator-activated receptors (PPARs) are ligand-activated transcription factors which form a subfamily of the nuclear receptor gene family. This subfamily consists of three isotypes, alpha (NR1C1), gamma (NR1C3), and beta/delta (NRC1C2) with a differential tissue distribution. PPARalpha is expressed primarily in tissues with a high level of fatty acid catabolism such as liver, brown fat, kidney, heart and skeletal muscle. PPARbeta is ubiquitously expressed, and PPARgamma has a restricted pattern of expression, mainly in white and brown adipose tissues, whereas other tissues such as skeletal muscle and heart contain limited amounts. Furthermore, PPARalpha and gamma isotypes are expressed in vascular cells including endothelial and smooth muscle cells and macrophages/foam cells. PPARs are activated by ligands, such as naturally occurring fatty acids, which are activators of all three PPAR isotypes. In addition to fatty acids, several synthetic compounds, such as fibrates and thiazolidinediones, bind and activate PPARalpha and PPARgamma, respectively. In order to be transcriptionally active, PPARs need to heterodimerize with the retinoid-X-receptor (RXR). Upon activation, PPAR-RXR heterodimers bind to DNA specific sequences called peroxisome proliferator-response elements (PPRE) and stimulate transcription of target genes. PPARs play a critical role in lipid and glucose homeostasis, but lately they have been implicated as regulators of inflammatory responses. The first evidence of the involvement of PPARs in the control of inflammation came from the PPARalpha null mice, which showed a prolonged inflammatory response. PPARalpha activation results in the repression of NF-kappaB signaling and inflammatory cytokine production in different cell-types. A role for PPARgamma in inflammation has also been reported in monocyte/macrophages, where ligands of this receptor inhibited the activation of macrophages and the production of inflammatory cytokines (TNFalpha, interleukin 6 and 1beta), although part of the anti-inflammatory effects of these ligands seems to be mediated by a mechanism not involving PPARgamma. All these findings suggest a role of PPARs in the control of the inflammatory response with potential therapeutic applications in inflammation-related diseases.
A16: =HYPERLINK("http://www.ncbi.nlm.nih.gov/pubmed/" & I16,I16) -> 11306068 | B16: =(LEN($J16) - LEN(SUBSTITUTE(LOWER($J16),LOWER(B$3),"")))/LEN(B$3) -> 19 | C16: =(LEN($J16) - LEN(SUBSTITUTE(LOWER($J16),LOWER(C$3),"")))/LEN(C$3) -> 0 | D16: =(LEN($J16) - LEN(SUBSTITUTE(LOWER($J16),LOWER(D$3),"")))/LEN(D$3) -> 0 | E16: =SUM(B16:D16) -> 19 | F16: 2001 | G16: Genetic dissection of retinoid dehydrogenases. | H16: Duester | I16: 11306068 | J16: Genetic dissection of retinoid dehydrogenases. Abstract: Biochemical studies indicate that alcohol dehydrogenase (ADH) metabolizes retinol to retinal, and that aldehyde dehydrogenase (ALDH) metabolizes retinal to retinoic acid, a molecule essential for growth and development. Summarized herein are several genetic studies supporting in vivo functions for ADH and ALDH in retinoic acid synthesis. Gene targeting was used to create knockout mice for either Adh1 or Adh4. Both knockout mice were viable and fertile without obvious defects. However, when wild-type and Adh4 knockout mice were subjected to vitamin A deficiency during gestation, the survival rate at birth was 3.3-fold lower for Adh4 knockout mice. When adult mice were examined for production of retinoic acid following retinol administration, Adh1 knockout mice exhibited 10-fold lower retinoic acid levels in liver compared with wild-type, whereas Adh4 knockout mice differed from wild-type by less than 2-fold. Thus, Adh1 plays a major role in the metabolism of a large dose of retinol to retinoic acid in adults, whereas Adh4 plays a role in maintaining sufficient retinol metabolism for development during retinol deficiency. ALDHs were examined by overexpression studies in frog embryos. Injection of mRNAs for either mouse Raldh1 or Raldh2 stimulated retinoic acid synthesis in frog embryos at the blastula stage when retinoic acid is normally undetectable. Overexpression of human ALDH2, human ALDH3, and mouse Aldh-pb did not stimulate retinoic acid production. In addition, Raldh2 knockout mice exhibit embryonic lethality with defects in retinoid-dependent tissues. Overall, these studies provide genetic evidence that Adh1, Adh4, Raldh1, and Raldh2 encode retinoid dehydrogenases involved in retinoic acid synthesis in vivo.
A17: =HYPERLINK("http://www.ncbi.nlm.nih.gov/pubmed/" & I17,I17) -> 21447403 | B17: =(LEN($J17) - LEN(SUBSTITUTE(LOWER($J17),LOWER(B$3),"")))/LEN(B$3) -> 18 | C17: =(LEN($J17) - LEN(SUBSTITUTE(LOWER($J17),LOWER(C$3),"")))/LEN(C$3) -> 0 | D17: =(LEN($J17) - LEN(SUBSTITUTE(LOWER($J17),LOWER(D$3),"")))/LEN(D$3) -> 0 | E17: =SUM(B17:D17) -> 18 | F17: 2012 | G17: Key enzymes of the retinoid (visual) cycle in vertebrate retina. | H17: Kiser | I17: 21447403 | J17: Key enzymes of the retinoid (visual) cycle in vertebrate retina. Abstract: A major goal in vision research over the past few decades has been to understand the molecular details of retinoid processing within the retinoid (visual) cycle. This includes the consequences of side reactions that result from delayed all-trans-retinal clearance and condensation with phospholipids that characterize a variety of serious retinal diseases. Knowledge of the basic retinoid biochemistry involved in these diseases is essential for development of effective therapeutics. Photoisomerization of the 11-cis-retinal chromophore of rhodopsin triggers a complex set of metabolic transformations collectively termed phototransduction that ultimately lead to light perception. Continuity of vision depends on continuous conversion of all-trans-retinal back to the 11-cis-retinal isomer. This process takes place in a series of reactions known as the retinoid cycle, which occur in photoreceptor and RPE cells. All-trans-retinal, the initial substrate of this cycle, is a chemically reactive aldehyde that can form toxic conjugates with proteins and lipids. Therefore, much experimental effort has been devoted to elucidate molecular mechanisms of the retinoid cycle and all-trans-retinal-mediated retinal degeneration, resulting in delineation of many key steps involved in regenerating 11-cis-retinal. Three particularly important reactions are catalyzed by enzymes broadly classified as acyltransferases, short-chain dehydrogenases/reductases and carotenoid/retinoid isomerases/oxygenases. This article is part of a Special Issue entitled: Retinoid and Lipid Metabolism.
A18: =HYPERLINK("http://www.ncbi.nlm.nih.gov/pubmed/" & I18,I18) -> 19011747 | B18: =(LEN($J18) - LEN(SUBSTITUTE(LOWER($J18),LOWER(B$3),"")))/LEN(B$3) -> 18 | C18: =(LEN($J18) - LEN(SUBSTITUTE(LOWER($J18),LOWER(C$3),"")))/LEN(C$3) -> 0 | D18: =(LEN($J18) - LEN(SUBSTITUTE(LOWER($J18),LOWER(D$3),"")))/LEN(D$3) -> 0 | E18: =SUM(B18:D18) -> 18 | F18: 2008 | G18: Medium- and short-chain dehydrogenase/reductase gene and protein families : Medium-chain and short-chain dehydrogenases/reductases in retinoid metabolism. | H18: Parés | I18: 19011747 | J18: Medium- and short-chain dehydrogenase/reductase gene and protein families : Medium-chain and short-chain dehydrogenases/reductases in retinoid metabolism. Abstract: Retinoic acid (RA), the most active retinoid, is synthesized in two steps from retinol. The first step, oxidation of retinol to retinaldehyde, is catalyzed by cytosolic alcohol dehydrogenases (ADHs) of the medium-chain dehydrogenase/reductase (MDR) superfamily and microsomal retinol dehydrogenases (RDHs) of the short-chain dehydrogenase/reductase (SDR) superfamily. The second step, oxidation of retinaldehyde to RA, is catalyzed by several aldehyde dehydrogenases. ADH1 and ADH2 are the major MDR enzymes in liver retinol detoxification, while ADH3 (less active) and ADH4 (most active) participate in RA generation in tissues. Several NAD(+)- and NADP(+)-dependent SDRs are retinoid active. Their in vivo contribution has been demonstrated in the visual cycle (RDH5, RDH12), adult retinoid homeostasis (RDH1) and embryogenesis (RDH10). K(m) values for most retinoid-active ADHs and RDHs are close to 1 microM or lower, suggesting that they participate physiologically in retinol/retinaldehyde interconversion. Probably none of these enzymes uses retinoids bound to cellular retinol-binding protein, but only free retinoids. The large number of enzymes involved in the two directions of this step, also including aldo-keto reductases, suggests that retinaldehyde levels are strictly regulated.
A19: =HYPERLINK("http://www.ncbi.nlm.nih.gov/pubmed/" & I19,I19) -> 15555528 | B19: =(LEN($J19) - LEN(SUBSTITUTE(LOWER($J19),LOWER(B$3),"")))/LEN(B$3) -> 16 | C19: =(LEN($J19) - LEN(SUBSTITUTE(LOWER($J19),LOWER(C$3),"")))/LEN(C$3) -> 2 | D19: =(LEN($J19) - LEN(SUBSTITUTE(LOWER($J19),LOWER(D$3),"")))/LEN(D$3) -> 0 | E19: =SUM(B19:D19) -> 18 | F19: 2005 | G19: The role of omega-3 long-chain polyunsaturated fatty acids in health and disease of the retina. | H19: SanGiovanni | I19: 15555528 | J19: The role of omega-3 long-chain polyunsaturated fatty acids in health and disease of the retina. Abstract: In this work we advance the hypothesis that omega-3 (omega-3) long-chain polyunsaturated fatty acids (LCPUFAs) exhibit cytoprotective and cytotherapeutic actions contributing to a number of anti-angiogenic and neuroprotective mechanisms within the retina. omega-3 LCPUFAs may modulate metabolic processes and attenuate effects of environmental exposures that activate molecules implicated in pathogenesis of vasoproliferative and neurodegenerative retinal diseases. These processes and exposures include ischemia, chronic light exposure, oxidative stress, inflammation, cellular signaling mechanisms, and aging. A number of bioactive molecules within the retina affect, and are effected by such conditions. These molecules operate within complex systems and include compounds classified as eicosanoids, angiogenic factors, matrix metalloproteinases, reactive oxygen species, cyclic nucleotides, neurotransmitters and neuromodulators, pro-inflammatory and immunoregulatory cytokines, and inflammatory phospholipids. We discuss the relationship of LCPUFAs with these bioactivators and bioactive compounds in the context of three blinding retinal diseases of public health significance that exhibit both vascular and neural pathology. How is omega-3 LCPUFA status related to retinal structure and function? Docosahexaenoic acid (DHA), a major dietary omega-3 LCPUFA, is also a major structural lipid of retinal photoreceptor outer segment membranes. Biophysical and biochemical properties of DHA may affect photoreceptor membrane function by altering permeability, fluidity, thickness, and lipid phase properties. Tissue DHA status affects retinal cell signaling mechanisms involved in phototransduction. DHA may operate in signaling cascades to enhance activation of membrane-bound retinal proteins and may also be involved in rhodopsin regeneration. Tissue DHA insufficiency is associated with alterations in retinal function. Visual processing deficits have been ameliorated with DHA supplementation in some cases. What evidence exists to suggest that LCPUFAs modulate factors and processes implicated in diseases of the vascular and neural retina? Tissue status of LCPUFAs is modifiable by and dependent upon dietary intake. Certain LCPUFAs are selectively accreted and efficiently conserved within the neural retina. On the most basic level, omega-3 LCPUFAs influence retinal cell gene expression, cellular differentiation, and cellular survival. DHA activates a number of nuclear hormone receptors that operate as transcription factors for molecules that modulate reduction-oxidation-sensitive and proinflammatory genes; these include the peroxisome proliferator-activated receptor-alpha (PPAR-alpha) and the retinoid X receptor. In the case of PPAR-alpha, this action is thought to prevent endothelial cell dysfunction and vascular remodeling through inhibition of: vascular smooth muscle cell proliferation, inducible nitric oxide synthase production, interleukin-1 induced cyclooxygenase (COX)-2 production, and thrombin-induced endothelin 1 production. Research on model systems demonstrates that omega-3 LCPUFAs also have the capacity to affect production and activation of angiogenic growth factors, arachidonic acid (AA)-based vasoregulatory eicosanoids, and MMPs. Eicosapentaenoic acid (EPA), a substrate for DHA, is the parent fatty acid for a family of eicosanoids that have the potential to affect AA-derived eicosanoids implicated in abnormal retinal neovascularization, vascular permeability, and inflammation. EPA depresses vascular endothelial growth factor (VEGF)-specific tyrosine kinase receptor activation and expression. VEGF plays an essential role in induction of: endothelial cell migration and proliferation, microvascular permeability, endothelial cell release of metalloproteinases and interstitial collagenases, and endothelial cell tube formation. The mechanism of VEGF receptor down-regulation is believed to occur at the tyrosine kinase nuclear factor-kappa B (NFkappaB). NFkappaB is a nuclear transcription factor that up-regulates COX-2 expression, intracellular adhesion molecule, thrombin, and nitric oxide synthase. All four factors are associated with vascular instability. COX-2 drives conversion of AA to a number angiogenic and proinflammatory eicosanoids. Our general conclusion is that there is consistent evidence to suggest that omega-3 LCPUFAs may act in a protective role against ischemia-, light-, oxygen-, inflammatory-, and age-associated pathology of the vascular and neural retina.
A20: =HYPERLINK("http://www.ncbi.nlm.nih.gov/pubmed/" & I20,I20) -> 14585315 | B20: =(LEN($J20) - LEN(SUBSTITUTE(LOWER($J20),LOWER(B$3),"")))/LEN(B$3) -> 18 | C20: =(LEN($J20) - LEN(SUBSTITUTE(LOWER($J20),LOWER(C$3),"")))/LEN(C$3) -> 0 | D20: =(LEN($J20) - LEN(SUBSTITUTE(LOWER($J20),LOWER(D$3),"")))/LEN(D$3) -> 0 | E20: =SUM(B20:D20) -> 18 | F20: 2003 | G20: Carotenoid and retinoid transport to fish oocytes and eggs: what is the role of retinol binding protein? | H20: Lubzens | I20: 14585315 | J20: Carotenoid and retinoid transport to fish oocytes and eggs: what is the role of retinol binding protein? Abstract: Fish eggs contain carotenoids, retinals (retinal and dehydroretinal) and retinols (retinol, dehydroretinol and retinyl-esters) that are utilized during embryonic development, after fertilization. The carotenoids (mainly astaxanthins) are transported in the plasma by the low density lipoproteins, high density lipoproteins, and very high density lipoproteins (VHDL) and were found to be associated also with serum albumin. Retinals were found to be associated vitellogenin (VTG), a component of the plasma VHDL fraction that is internalized by oocytes during vitellogenesis. However, the transport of retinols and retinyl-esters that were located in the oil droplet fraction of homogenized eggs, has yet to be elucidated. Retinols are more abundant in freshwater fish eggs than in eggs of marine fish species. Since retinol is transported in the plasma of vertebrates in association with retinol binding protein (RBP), recent studies on the molecular characterization and expression sites of RBP, could contribute to determining the involvement of RBP in transporting retinol to developing oocytes in vertebrates.Recently, results from our laboratory show that RBP mRNA levels in the liver and RBP plasma levels did not significantly change with the onset and during vitellogenesis in the Rainbow trout. These results were in contrast with a dramatic elevation in the mRNA levels of VTG in the liver and an increase in VTG plasma levels that was observed in the same females. Moreover, 17beta-estradiol treatment of immature fish, resulted in relatively lower mRNA levels of RBP in the liver, concomitantly with an increase in the level of VTG transcripts and the appearance of VTG in the plasma of treated fish. In addition, RBP was localized in the cytosol of ovulated oocytes. These results for Rainbow trout are similar to those reported for the chicken but differ from those of Xenopus, where an increase in RBP mRNA was reported in the liver and higher levels of retinal and retinol were found in the plasma of 17beta-estradiol treated animals. The results, reported here for the first time in Rainbow trout, showing RBP transcripts in the ovary, oviduct (the ovarian tissue adjacent to the gonopore) and oocytes, suggest a modulating role for RBP in follicular development, as has been suggested for the bovine ovary.
A21: =HYPERLINK("http://www.ncbi.nlm.nih.gov/pubmed/" & I21,I21) -> 11330046 | B21: =(LEN($J21) - LEN(SUBSTITUTE(LOWER($J21),LOWER(B$3),"")))/LEN(B$3) -> 2 | C21: =(LEN($J21) - LEN(SUBSTITUTE(LOWER($J21),LOWER(C$3),"")))/LEN(C$3) -> 16 | D21: =(LEN($J21) - LEN(SUBSTITUTE(LOWER($J21),LOWER(D$3),"")))/LEN(D$3) -> 0 | E21: =SUM(B21:D21) -> 18 | F21: 2000 | G21: Peroxisome proliferator-activated receptors, coactivators, and downstream targets. | H21: Qi | I21: 11330046 | J21: Peroxisome proliferator-activated receptors, coactivators, and downstream targets. Abstract: Peroxisomes in liver parenchymal cells proliferate in response to structurally diverse nonmutagenic compounds designated as peroxisome proliferators (PP). Sustained induction of peroxisome proliferation and peroxisomal fatty acid beta-oxidation system in rats and mice leads to the development of liver tumors. Two mechanistic issues are important for consideration: elucidation of the upstream events responsible for the tissue and species specific induction of the characteristic pleiotropic responses by PPs; and delineation of the downstream events associated with peroxisome proliferation, and their role in the development of liver tumors in species that are sensitive to the induction of peroxisome proliferation. The induction of peroxisome proliferation is mediated by PP-activated receptor alpha (PPAR alpha), a member of a group of transcription factors that regulate the expression of genes associated with lipid metabolism and adipocyte differentiation. Three isotypes of this family of nuclear receptors, namely PPAR alpha, PPAR gamma, and PPAR delta (also called beta), have been identified as products of separate genes. Although PPAR alpha is responsible for the PP-induced pleiotropic responses, PPAR gamma seems to be involved in adipogenesis and differentiation, but the events associated with PPAR gamma do not directly involve peroxisomes and peroxisome proliferation. PPARs heterodimerize with 9-cis retinoic acid receptor (RXR), and bind to PP response element(s) (PPREs) on the target gene promoter to initiate inducible transcriptional activity. Tissue and species responses to PPs depend on pharmacokinetics, relative abundance of PPAR isotypes, nature of PPRE in the upstream regions of target genes, the extent of competition or cross-talk among nuclear transcription factors for PPAR heterodimerization partner retinoid X receptor and the modulating role of coactivators and corepressors on ligand-dependent transcription of PPARs. Using PPAR as bait in the yeast two-hybrid system, the authors recently cloned mouse steroid receptor coactivator-1 (SRC-1) and PPAR-binding protein (PBP), and identified them as PPAR coactivators. Both SRC-1 and PBP contain LXXLL signature motifs, considered necessary and sufficient for the binding of coactivators to nuclear receptors. A multifaceted approach, which includes the identification of additional coactivators that may be responsible for cell specific transcriptional activation of PPAR-mediated target genes, and generation of genetically modified animals (transgenic and gene disrupted), will be necessary to gain more insight into the upstream and downstream targets responsible for the induction of early and delayed PP-induced pleiotropic responses. In this context, it is important to note that mice deficient in fatty acyl-CoA oxidase, the first and rate-limiting enzyme of the peroxisomal beta-oxidation system, revealed that this enzyme is indispensable for the physiological regulation of PPAR alpha, and the absence of this enzyme leads to sustained transcriptional activation of genes regulated by this receptor.
A22: =HYPERLINK("http://www.ncbi.nlm.nih.gov/pubmed/" & I22,I22) -> 1503802 | B22: =(LEN($J22) - LEN(SUBSTITUTE(LOWER($J22),LOWER(B$3),"")))/LEN(B$3) -> 18 | C22: =(LEN($J22) - LEN(SUBSTITUTE(LOWER($J22),LOWER(C$3),"")))/LEN(C$3) -> 0 | D22: =(LEN($J22) - LEN(SUBSTITUTE(LOWER($J22),LOWER(D$3),"")))/LEN(D$3) -> 0 | E22: =SUM(B22:D22) -> 18 | F22: 1992 | G22: Retinoids and cancer prevention. | H22: Hill | I22: 1503802 | J22: Retinoids and cancer prevention. Abstract: As indicated above, in some cases the effects of retinoids appear to be species-specific. Although retinyl acetate and 4-HPR are ineffective in preventing mammary cancer induced by DMBA or occurring spontaneously in mice, these retinoids prevent carcinogen-induced mammary cancer in rats. In contrast, retinoids have modest chemopreventive activity for bladder cancer in various strains of both mice and rats and may have some therapeutic and preventive effects in human bladder. Retinyl palmitate is reported to reduce the incidence of esophageal lesions in hamsters; however, retinyl acetate may increase the incidence of esophageal tumors in rats. Although 13-cis-RA reduces the incidence of spontaneous thymic lymphomas in AKR mice and C57Bl/10W mice exposed to X rays and has some therapeutic effect on myelodysplastic syndromes in humans, 4-HPR may enhance leukemic progression in patients with this syndrome. For treatment of this syndrome, selection of the proper retinoid appears to be important. Topically applied retinyl palmitate reduces the incidence of cervical cancer in hamsters, and topically applied RA has a therapeutic effect on cervical dysplasia in humans. Retinamides have a modest chemopreventive effect against pancreatic cancer in rats dosed with azaserine; these compounds are reported both to increase and to decrease the incidence of pancreatic cancer in hamsters. Retinoids may, or may not, be carcinogen-specific in different species. Some are effective in preventing mammary cancer in rats, regardless of which carcinogen is used. Applied to mouse skin, retinoids are active with either DMBA or BP as the carcinogen and 12-tetradecanoyl phorbol-13-acetate (TPA) as the promoter. Nevertheless, retinoids are not effective in preventing skin papillomas and carcinomas caused by UV light. There is no comparable system for humans, although retinoids demonstrate activity against basal cell carcinomas, squamous cell carcinomas, and actinic keratoses on the skin of humans. Fewer bladder tumors develop in rats dosed with HO-BBN when they are put on diets containing certain retinoids, but those dosed with FANFT are not affected. Similarly, retinyl acetate is reported to be active against liver tumors induced by 3-MeDAB but not against those induced by aflatoxin B1. In contrast, forestomach carcinomas induced in hamsters by either DMBA or BP are prevented by retinyl palmitate. The route of administration of retinoids may also be important.(ABSTRACT TRUNCATED AT 400 WORDS)
A23: =HYPERLINK("http://www.ncbi.nlm.nih.gov/pubmed/" & I23,I23) -> 16054987 | B23: =(LEN($J23) - LEN(SUBSTITUTE(LOWER($J23),LOWER(B$3),"")))/LEN(B$3) -> 17 | C23: =(LEN($J23) - LEN(SUBSTITUTE(LOWER($J23),LOWER(C$3),"")))/LEN(C$3) -> 0 | D23: =(LEN($J23) - LEN(SUBSTITUTE(LOWER($J23),LOWER(D$3),"")))/LEN(D$3) -> 0 | E23: =SUM(B23:D23) -> 17 | F23: 2005 | G23: Alcohol, vitamin A, and cancer. | H23: Wang | I23: 16054987 | J23: Alcohol, vitamin A, and cancer. Abstract: Chronic and excessive alcohol intake is associated with an increased risk of a variety of cancers (e.g., oral cavity, larynx, esophagus, liver, lung, colorectal, and breast). Retinoids (vitamin A and its derivatives) are known to exert profound effects on cellular growth, cellular differentiation, and apoptosis, thereby controlling carcinogenesis. Lower hepatic vitamin A levels have been well documented in alcoholics. Substantial research has been done, investigating the mechanisms by which excessive alcohol interferes with retinoid metabolism. More specifically, (1) alcohol acts as a competitive inhibitor of vitamin A oxidation to retinoic acid involving alcohol dehydrogenases and acetaldehyde dehydrogenases; (2) alcohol-induced cytochrome P450 enzymes (CYP), particularly CYP2E1, enhance catabolism of vitamin A and retinoic acid; and (3) alcohol alters retinoid homeostasis by increasing vitamin A mobilization from liver to extrahepatic tissues. As a consequence, long-term and excessive alcohol intake results in impaired status of retinoic acid, the most active derivative of vitamin A and a ligand for both retinoic acid receptors and retinoid X receptors. Moreover, this alcohol-impaired retinoic acid homeostasis interferes with (1) retinoic acid signaling (e.g., down-regulates retinoid target gene expression) and (2) retinoic acid quot;cross-talkquot; with the mitogen-activated protein kinase [(MAPK), including Jun N-terminal kinase, extracellular signal-regulated kinase, and p38 kinase] signaling pathway. In addition, restoration of retinoic acid homeostasis by retinoic acid supplementation restored the normal status of both retinoid and MAPK signaling, thereby maintaining normal cell proliferation and apoptosis in alcohol-fed animals. These observations would have implications for the prevention of alcohol-promoted liver (and peripheral tissue) carcinogenesis. However, a better understanding of the alcohol-retinoid interaction and the molecular mechanisms involved is needed before retinoids can be pursued in the prevention of alcohol-related carcinogenesis in human beings, particularly regarding the detrimental effects of polar metabolites of vitamin A.
A24: =HYPERLINK("http://www.ncbi.nlm.nih.gov/pubmed/" & I24,I24) -> 15142970 | B24: =(LEN($J24) - LEN(SUBSTITUTE(LOWER($J24),LOWER(B$3),"")))/LEN(B$3) -> 0 | C24: =(LEN($J24) - LEN(SUBSTITUTE(LOWER($J24),LOWER(C$3),"")))/LEN(C$3) -> 16 | D24: =(LEN($J24) - LEN(SUBSTITUTE(LOWER($J24),LOWER(D$3),"")))/LEN(D$3) -> 1 | E24: =SUM(B24:D24) -> 17 | F24: 2004 | G24: Peroxisome proliferator-activated receptors and atherogenesis: regulators of gene expression in vascular cells. | H24: Marx | I24: 15142970 | J24: Peroxisome proliferator-activated receptors and atherogenesis: regulators of gene expression in vascular cells. Abstract: A large body of data gathered over the past couple of years has identified the peroxisome proliferator-activated receptors (PPAR) alpha, gamma, and beta/delta as transcription factors exerting modulatory actions in vascular cells. PPARs, which belong to the nuclear receptor family of ligand-activated transcription factors, were originally described as gene regulators of various metabolic pathways. Although the PPARalpha, gamma, and beta/delta subtypes are approximately 60% to 80% homologous in their ligand- and DNA-binding domains, significant differences in ligand and target gene specificities are observed. PPARalpha is activated by polyunsaturated fatty acids and oxidized derivatives and by lipid-modifying drugs of the fibrate family, including fenofibrate or gemfibrozil. PPARalpha controls expression of genes implicated in lipid metabolism. PPARgamma, in contrast, is a key regulator of glucose homeostasis and adipogenesis. Ligands of PPARgamma include naturally occurring FA derivatives, such as hydroxyoctadecadienoic acids (HODEs), prostaglandin derivatives such as 15-deoxyDelta12,14-prostaglandin J2, and glitazones, insulin-sensitizing drugs presently used to treat patients with type 2 diabetes. Ligands for PPARbeta/delta are polyunsaturated fatty acids, prostaglandins, and synthetic compounds, some of which are presently in clinical development. PPARbeta/delta stimulates fatty acid oxidation predominantly acting in muscle. All PPARs are expressed in vascular cells, where they exhibit antiinflammatory and antiatherogenic properties. In addition, studies in various animal models as well as clinical data suggest that PPARalpha and PPARgamma activators can modulate atherogenesis in vivo. At present, no data are available relating to possible effects of PPARbeta/delta agonists on atherogenesis. Given the widespread use of PPARalpha and PPARgamma agonists in patients at high risk for cardiovascular disease, the understanding of their function in the vasculature is not only of basic interest but also has important clinical implications. This review will focus on the role of PPARs in the vasculature and summarize the present understanding of their effects on atherogenesis and its cardiovascular complications.
A25: =HYPERLINK("http://www.ncbi.nlm.nih.gov/pubmed/" & I25,I25) -> 11729635 | B25: =(LEN($J25) - LEN(SUBSTITUTE(LOWER($J25),LOWER(B$3),"")))/LEN(B$3) -> 1 | C25: =(LEN($J25) - LEN(SUBSTITUTE(LOWER($J25),LOWER(C$3),"")))/LEN(C$3) -> 13 | D25: =(LEN($J25) - LEN(SUBSTITUTE(LOWER($J25),LOWER(D$3),"")))/LEN(D$3) -> 3 | E25: =SUM(B25:D25) -> 17 | F25: 2001 | G25: [PPAR gamma agonist and antagonist]. | H25: Kadowaki | I25: 11729635 | J25: [PPAR gamma agonist and antagonist]. Abstract: Peroxisome proliferator-activated receptor gamma (PPAR gamma) is a ligand-activated transcription factor and functions as a heterodimer with a retinoid X receptor (RXR). Supraphysiological activation of PPAR gamma by thiazolidinediones can reduce insulin resistance and hyperglycemia in type 2 diabetes, but these drugs can also cause weight gain. Quite unexpectedly, a moderate reduction of PPAR gamma activity observed in heterozygous PPAR gamma-deficient mice or the Pro 12 Ala polymorphism in human PPAR gamma has been shown to prevent insulin resistance and obesity induced by a high-fat (HF) diet. We investigated whether functional antagonism toward PPAR gamma/RXR could be used to treat obesity and type 2 diabetes. We show herein that moderate reduction of PPAR gamma with an RXR antagonist or a PPAR gamma antagonist decreases triglyceride (TG) content in white adipose tissue, skeletal muscle and liver. These inhibitors potentiate leptins effects and stimulated adiponectin levels, which increases fatty acid combustion and energy dissipation, thereby ameliorating HF diet-induced obesity and insulin resistance. Paradoxically, severe reduction of PPAR gamma by treatment of heterozygous PPAR gamma-deficient mice with an RXR antagonist or a PPAR gamma antagonist depletes white adipose tissue and markedly decreases leptin and adiponectin levels and energy dissipation, which increases TG content in skeletal muscle and the liver, thereby leading to the re-emergence of insulin resistance. Our data suggest that appropriate functional antagonism of PPAR gamma/RXR may be a logical approach to protection against obesity and related diseases such as type 2 diabetes.
A26: =HYPERLINK("http://www.ncbi.nlm.nih.gov/pubmed/" & I26,I26) -> 17001693 | B26: =(LEN($J26) - LEN(SUBSTITUTE(LOWER($J26),LOWER(B$3),"")))/LEN(B$3) -> 15 | C26: =(LEN($J26) - LEN(SUBSTITUTE(LOWER($J26),LOWER(C$3),"")))/LEN(C$3) -> 0 | D26: =(LEN($J26) - LEN(SUBSTITUTE(LOWER($J26),LOWER(D$3),"")))/LEN(D$3) -> 1 | E26: =SUM(B26:D26) -> 16 | F26: 2006 | G26: Retinoid receptors, transporters, and metabolizers as therapeutic targets in late onset Alzheimer disease. | H26: Goodman | I26: 17001693 | J26: Retinoid receptors, transporters, and metabolizers as therapeutic targets in late onset Alzheimer disease. Abstract: Vitamin A (retinoid) is required in the adult brain to enable cognition, learning, and memory. While brain levels of retinoid diminish over the course of normal ageing, retinoid deficit is greater in late onset Alzheimer disease (LOAD) brains than in normal-aged controls. This paper reviews recent evidence supporting these statements and further suggests that genes necessary for the synthesis, transport and function of retinoid to and within the ageing brain are appropriate targets for treatment of LOAD. These genes tend to be clustered with genes that have been proposed as candidates in LOAD, are found at chromosomal regions linked to LOAD, and suggest the possibility of an overall coordinated regulation. This phenomenon is termed Chromeron and is analogous to the operon mechanism observed in prokaryotes. Suggested treatment targets are the retinoic-acid inactivating enzymes (CYP26)s, the retinol binding and transport proteins, retinol-binding protein (RBP)4 and transthyretin (TTR), and the retinoid receptors. TTR as a LOAD target is the subject of active investigation. The retinoid receptors and the retinoid-inactivating enzymes have previously been proposed as targets. This is the first report to suggest that RBP4 is an amenable treatment target in LOAD. RBP4 is elevated in type-2 diabetes and obesity, conditions associated with increased risk for LOAD. Fenretinide, a novel synthetic retinoic acid (RA) analog lowers RBP4 in glucose intolerant obese mice. The feasibility of using fenretinide either as an adjunct to present LOAD therapies, or on its own as an early prevention strategy should be determined.
A27: =HYPERLINK("http://www.ncbi.nlm.nih.gov/pubmed/" & I27,I27) -> 15882777 | B27: =(LEN($J27) - LEN(SUBSTITUTE(LOWER($J27),LOWER(B$3),"")))/LEN(B$3) -> 16 | C27: =(LEN($J27) - LEN(SUBSTITUTE(LOWER($J27),LOWER(C$3),"")))/LEN(C$3) -> 0 | D27: =(LEN($J27) - LEN(SUBSTITUTE(LOWER($J27),LOWER(D$3),"")))/LEN(D$3) -> 0 | E27: =SUM(B27:D27) -> 16 | F27: 2005 | G27: Role of retinoid signalling in the adult brain. | H27: Lane | I27: 15882777 | J27: Role of retinoid signalling in the adult brain. Abstract: Vitamin A (all-trans-retinol) is the parent compound of a family of natural and synthetic compounds, the retinoids. Retinoids regulate gene transcription in numerous cells and tissues by binding to nuclear retinoid receptor proteins, which act as transcription factors. Much of the research conducted on retinoid signalling in the nervous system has focussed on developmental effects in the embryonic or early postnatal brain. Here, we review the increasing body of evidence indicating that retinoid signalling plays an important role in the function of the mature brain. Components of the metabolic pathway for retinoids have been identified in adult brain tissues, suggesting that all-trans-retinoic acid (ATRA) can be synthesized in discrete regions of the brain. The distribution of retinoid receptor proteins in the adult nervous system is different from that seen during development; and suggests that retinoid signalling is likely to have a physiological role in adult cortex, amygdala, hypothalamus, hippocampus, striatum and associated brain regions. A number of neuronal specific genes contain recognition sequences for the retinoid receptor proteins and can be directly regulated by retinoids. Disruption of retinoid signalling pathways in rodent models indicates their involvement in regulating synaptic plasticity and associated learning and memory behaviours. Retinoid signalling pathways have also been implicated in the pathophysiology of Alzheimers disease, schizophrenia and depression. Overall, the data underscore the likely importance of adequate nutritional Vitamin A status for adult brain function and highlight retinoid signalling pathways as potential novel therapeutic targets for neurological diseases.
A28: =HYPERLINK("http://www.ncbi.nlm.nih.gov/pubmed/" & I28,I28) -> 15320743 | B28: =(LEN($J28) - LEN(SUBSTITUTE(LOWER($J28),LOWER(B$3),"")))/LEN(B$3) -> 1 | C28: =(LEN($J28) - LEN(SUBSTITUTE(LOWER($J28),LOWER(C$3),"")))/LEN(C$3) -> 14 | D28: =(LEN($J28) - LEN(SUBSTITUTE(LOWER($J28),LOWER(D$3),"")))/LEN(D$3) -> 1 | E28: =SUM(B28:D28) -> 16 | F28: 2004 | G28: Pleiotropic actions of PPAR gamma activators thiazolidinediones in cardiovascular diseases. | H28: Takano | I28: 15320743 | J28: Pleiotropic actions of PPAR gamma activators thiazolidinediones in cardiovascular diseases. Abstract: Peroxisome proliferator-activated receptors (PPARs) are transcription factors belonging to the nuclear receptor superfamily and form heterodimers with retinoid X receptor. To date, three PPARs isoforms have been isolated and termed alpha, beta (or delta), and gamma. Although PPAR gamma is expressed predominantly in adipose tissue and associated with adipocyte differentiation and glucose homeostasis, it has been recently demonstrated that PPAR gamma is present in a variety of cell types. Synthetic antidiabetic thiazolidinediones (TZDs) and natural prostaglandin D(2) (PGD(2)) metabolite, 15-deoxy-Delta(12, 14)-prostaglandin J(2) (15d-PGJ(2)), are well-known as ligands for PPAR gamma. After it has been reported that activation of PPAR gamma suppresses production of proinflammatory cytokines in activated macrophages, medical interest in PPAR gamma have grown and a huge research effort has been concentrated. PPAR gamma, is currently known to be implicated in various human chronic diseases such as diabetes mellitus, atherosclerosis, rheumatoid arthritis, inflammatory bowel disease, and Alzheimers disease. Moreover, PPAR gamma ligands have potent tumor modulatory effects against colorectal, prostate, and breast cancers. Recent studies suggest that TZDs not only ameliorate insulin sensitivity but also have pleiotropic effects on many tissues and cell types. Although activation of PPAR gamma seems to have beneficial effects on atherosclerosis and heart failure, the mechanisms by which PPAR gamma ligands prevent the development of cardiovascular diseases are not fully understood. This review will focus on the latest developments in the PPAR gamma field and the roles of PPAR gamma-dependent pathway in cardiovascular diseases.
A29: =HYPERLINK("http://www.ncbi.nlm.nih.gov/pubmed/" & I29,I29) -> 12553421 | B29: =(LEN($J29) - LEN(SUBSTITUTE(LOWER($J29),LOWER(B$3),"")))/LEN(B$3) -> 16 | C29: =(LEN($J29) - LEN(SUBSTITUTE(LOWER($J29),LOWER(C$3),"")))/LEN(C$3) -> 0 | D29: =(LEN($J29) - LEN(SUBSTITUTE(LOWER($J29),LOWER(D$3),"")))/LEN(D$3) -> 0 | E29: =SUM(B29:D29) -> 16 | F29: 2002 | G29: Hepatic synthesis, maturation and complex formation between retinol-binding protein and transthyretin. | H29: Gaetani | I29: 12553421 | J29: Hepatic synthesis, maturation and complex formation between retinol-binding protein and transthyretin. Abstract: The retinol/retinol-binding protein/transthyretin complex, that carries and delivers hydrophobic retinol molecules to target cells, is assembled in the hepatocyte endoplasmic reticulum. In this paper, we review data related to events that lead to the formation of this complex, including transthyretin oligomerization and retinol-binding protein secretion. Our studies on transthyretin oligomerization have demonstrated that cleavage of signal peptide and the environment of endoplasmic reticulum influence transthyretin oligomerization. In vitro, mutated transthyretin without signal sequence fails to form dimers, while wild-type transthyretin is translocated into the microsomes where it forms dimers and small amounts of tetramers. In vivo, tetramers were detected in HepG2 cells but not in transfected Cos cells, suggesting that tissue-specific factors affect tetramer stability. In vitamin A deficiency, retinol-binding protein secretion is blocked and the protein accumulates in the endoplasmic reticulum, from where it is promptly released after retinol repletion. We use MMH cells to identify factors involved in complex formation, retention and secretion, the crucial steps to understand the molecular mechanisms underlying vitamin A homeostasis. In parallel, studies on vitamin A transport in fish are in progress; retinol-binding protein and transthyretin have already been characterized in different fish species.
A30: =HYPERLINK("http://www.ncbi.nlm.nih.gov/pubmed/" & I30,I30) -> 11411341 | B30: =(LEN($J30) - LEN(SUBSTITUTE(LOWER($J30),LOWER(B$3),"")))/LEN(B$3) -> 2 | C30: =(LEN($J30) - LEN(SUBSTITUTE(LOWER($J30),LOWER(C$3),"")))/LEN(C$3) -> 14 | D30: =(LEN($J30) - LEN(SUBSTITUTE(LOWER($J30),LOWER(D$3),"")))/LEN(D$3) -> 0 | E30: =SUM(B30:D30) -> 16 | F30: 2001 | G30: [Physiological and pharmacological function of PPARs]. | H30: Takahashi | I30: 11411341 | J30: [Physiological and pharmacological function of PPARs]. Abstract: The finding of nuclear receptors has greatly enhanced our understanding of gene regulation by lipophilic hormones such as steroids, thyroxine, vitamin D and retinoids. These receptors comprise a superfamily of transcription factors containing highly related DNA-binding domains. In mammals, the peroxisome proliferator-activated receptor (PPAR) family of nuclear hormone receptors consists of three subtypes by separate genes: PPAR alpha, PPAR delta (also referred to as hNUC1 or PPAR beta), and PPAR gamma. PPARs have been associated with several distinct biological programs. PPARs function as a heterodimer with the retinoid X receptor. This complex binds to sequences termed direct repeat-1 response element in enhancer sites of regulated genes and activates transcription upon ligand and coactivator binding. Three different PPAR subtypes have specific roles in different organs. PPAR alpha, mainly expressed in liver, plays an important role in fatty acid metabolism. PPAR gamma predominantly is expressed in adipose cells. PPAR delta displays a high level of expression in lipid-metabolizing organs such as small intestine, heart and adipose tissue. Naturally occurring and synthetic molecules (anti-hyperlipidemia and diabetic drugs) that are ligands for these nuclear receptors control transcriptional activity of PPARs. We believe that the pharmacological and genomic researches on PPAR will develop powerful tools for prevention and medical care against common diseases.
A31: =HYPERLINK("http://www.ncbi.nlm.nih.gov/pubmed/" & I31,I31) -> 6192964 | B31: =(LEN($J31) - LEN(SUBSTITUTE(LOWER($J31),LOWER(B$3),"")))/LEN(B$3) -> 15 | C31: =(LEN($J31) - LEN(SUBSTITUTE(LOWER($J31),LOWER(C$3),"")))/LEN(C$3) -> 1 | D31: =(LEN($J31) - LEN(SUBSTITUTE(LOWER($J31),LOWER(D$3),"")))/LEN(D$3) -> 0 | E31: =SUM(B31:D31) -> 16 | F31: 1983 | G31: Isotretinoin: new therapy for severe acne. | H31: Perry | I31: 6192964 | J31: Isotretinoin: new therapy for severe acne. Abstract: The chemistry, pharmacology, pharmacokinetics, clinical use, adverse effects, dosage and administration, and FDA-approved indications of isotretinoin, a new agent used for treating acne, are reviewed. Isotretinoin is a synthetic retinoid compound with pharmacologic actions similar to those of other retinoids. Isotretinoins effects on nodulocystic acne lesions apparently result from its reduction of the size of sebaceous glands, inhibition of sebum production, and inhibition of follicular keratinization. Isotretinoin is administered orally; peak serum drug concentrations occur approximately three hours after ingestion. The drug is widely distributed throughout body tissues and metabolized by the liver by oxidation and glucuronidation; both parent drug and metabolites are excreted in the urine and feces. Clinical trials of isotretinoin have shown the drug to be effective in treating cystic or conglobate acne that is unresponsive to therapy with oral or topical antibiotics, topical tretinoin, or topical benzoyl peroxide. Isotretinoin is unique in that acne remission continues after discontinuance of therapy. The most frequent adverse effects involve mucocutaneous tissues and include cheilitis, xerosis, xerostomia, dry nose, epistaxis, and pruritus. Other adverse effects--including some serious ones--have been found rarely in humans or animals receiving isotretinoin. The usual oral dosage of isotretinoin for patients with cystic acne is 1-2 mg/kg/day in two divided doses; administration should continue for 15-20 weeks. Isotretinoin is currently more expensive than other acne treatments. Isotretinoin is an effective agent for treating cystic acne; pending accumulation of further data, its use should be limited to patients with severe conditions that do not respond to older therapies because of isotretinoins cost and sometimes serious adverse effects.
A32: =HYPERLINK("http://www.ncbi.nlm.nih.gov/pubmed/" & I32,I32) -> 25069047 | B32: =(LEN($J32) - LEN(SUBSTITUTE(LOWER($J32),LOWER(B$3),"")))/LEN(B$3) -> 14 | C32: =(LEN($J32) - LEN(SUBSTITUTE(LOWER($J32),LOWER(C$3),"")))/LEN(C$3) -> 0 | D32: =(LEN($J32) - LEN(SUBSTITUTE(LOWER($J32),LOWER(D$3),"")))/LEN(D$3) -> 1 | E32: =SUM(B32:D32) -> 15 | F32: 2014 | G32: The mechanisms of Fenretinide-mediated anti-cancer activity and prevention of obesity and type-2 diabetes. | H32: Mody | I32: 25069047 | J32: The mechanisms of Fenretinide-mediated anti-cancer activity and prevention of obesity and type-2 diabetes. Abstract: Fenretinide remains the most investigated retinoid compound for the prevention of cancer. Its clinical use remains a genuine possibility due to a favourable toxicological profile and accumulation in fatty tissues. Like other well-characterised pharmacological therapies, Fenretinide has been shown to affect multiple signalling pathways. Recent findings have discovered additional beneficial properties the synthetic retinoid was not intentionally designed for, including the prevention of high-fat diet-induced obesity and insulin resistance. These preclinical findings in rodents are timely since obesity has reached pandemic proportions and safe effective therapeutics are severely lacking. Recent investigations have proposed various mechanisms of action for the beneficial effects of Fenretinide. This review covers the current knowledge about Fenretinides use as a therapy for cancer and potential to treat obesity, insulin resistance and glucose intolerance. An overview of the signalling pathways manipulated by Fenretinide including retinoid homeostasis, reactive oxygen species generation and inhibition of ceramide synthesis will be presented and insights into apoptosis and/or autophagy induction by Fenretinide will also be discussed. The largely unexplored area of Fenretinide metabolites as alternative therapeutic options and how these may be relevant will also be presented. Fenretinide shows great promise, but unfortunately evidence is lacking from clinical trials on Fenretinides effectiveness in humans. Finally we identify what action can be taken to further progress the investigation of this extremely important retinoid.
A33: =HYPERLINK("http://www.ncbi.nlm.nih.gov/pubmed/" & I33,I33) -> 21493923 | B33: =(LEN($J33) - LEN(SUBSTITUTE(LOWER($J33),LOWER(B$3),"")))/LEN(B$3) -> 2 | C33: =(LEN($J33) - LEN(SUBSTITUTE(LOWER($J33),LOWER(C$3),"")))/LEN(C$3) -> 12 | D33: =(LEN($J33) - LEN(SUBSTITUTE(LOWER($J33),LOWER(D$3),"")))/LEN(D$3) -> 1 | E33: =SUM(B33:D33) -> 15 | F33: 2011 | G33: The PPAR-RXR transcriptional complex in the vasculature: energy in the balance. | H33: Plutzky | I33: 21493923 | J33: The PPAR-RXR transcriptional complex in the vasculature: energy in the balance. Abstract: The peroxisome proliferator-activated receptors (PPARs) and the retinoid X receptors (RXRs) are ligand-activated transcription factors that coordinately regulate gene expression. This PPAR-RXR transcriptional complex plays a critical role in energy balance, including triglyceride metabolism, fatty acid handling and storage, and glucose homeostasis: processes whose dysregulation characterize obesity, diabetes, and atherosclerosis. PPARs and RXRs are also involved directly in inflammatory and vascular responses in endothelial and vascular smooth muscle cells. New insights into fundamental aspects of PPAR and RXR biology, and their actions in the vasculature, continue to appear. Although RXRs are obligate heterodimeric partners for PPAR action, the part that RXRs, and their endogenous retinoid mediators, exert in the vessel wall is less well understood. Biological insights into PPAR-RXRs may help inform interpretation of clinical trials with synthetic PPAR agonists and prospects for future PPAR therapeutics. Importantly, the extensive data establishing a key role for PPARs and RXRs in energy balance, inflammation, and vascular biology stands separately from the clinical experience with any given synthetic PPAR agonist. Both the basic science data and the clinical experience with PPAR agonists identify the need to better understand these important transcriptional regulators.
A34: =HYPERLINK("http://www.ncbi.nlm.nih.gov/pubmed/" & I34,I34) -> 21350678 | B34: =(LEN($J34) - LEN(SUBSTITUTE(LOWER($J34),LOWER(B$3),"")))/LEN(B$3) -> 15 | C34: =(LEN($J34) - LEN(SUBSTITUTE(LOWER($J34),LOWER(C$3),"")))/LEN(C$3) -> 0 | D34: =(LEN($J34) - LEN(SUBSTITUTE(LOWER($J34),LOWER(D$3),"")))/LEN(D$3) -> 0 | E34: =SUM(B34:D34) -> 15 | F34: 2011 | G34: Vitamin A metabolism: an update. | H34: DAmbrosio | I34: 21350678 | J34: Vitamin A metabolism: an update. Abstract: Retinoids are required for maintaining many essential physiological processes in the body, including normal growth and development, normal vision, a healthy immune system, normal reproduction, and healthy skin and barrier functions. In excess of 500 genes are thought to be regulated by retinoic acid. 11-cis-retinal serves as the visual chromophore in vision. The body must acquire retinoid from the diet in order to maintain these essential physiological processes. Retinoid metabolism is complex and involves many different retinoid forms, including retinyl esters, retinol, retinal, retinoic acid and oxidized and conjugated metabolites of both retinol and retinoic acid. In addition, retinoid metabolism involves many carrier proteins and enzymes that are specific to retinoid metabolism, as well as other proteins which may be involved in mediating also triglyceride and/or cholesterol metabolism. This review will focus on recent advances for understanding retinoid metabolism that have taken place in the last ten to fifteen years.
A35: =HYPERLINK("http://www.ncbi.nlm.nih.gov/pubmed/" & I35,I35) -> 16782410 | B35: =(LEN($J35) - LEN(SUBSTITUTE(LOWER($J35),LOWER(B$3),"")))/LEN(B$3) -> 1 | C35: =(LEN($J35) - LEN(SUBSTITUTE(LOWER($J35),LOWER(C$3),"")))/LEN(C$3) -> 14 | D35: =(LEN($J35) - LEN(SUBSTITUTE(LOWER($J35),LOWER(D$3),"")))/LEN(D$3) -> 0 | E35: =SUM(B35:D35) -> 15 | F35: 2006 | G35: Peroxisome proliferator-activated receptors in vascular biology-molecular mechanisms and clinical implications. | H35: Touyz | I35: 16782410 | J35: Peroxisome proliferator-activated receptors in vascular biology-molecular mechanisms and clinical implications. Abstract: Peroxisome proliferator-activated receptors (PPAR)alpha, gamma and beta/delta belong to the nuclear receptor family of ligand-activated transcription factors. PPARs heterodimerize with the retinoid X receptor (RXR) and then act as transcription factors to modulate the function of many target genes. PPARalpha, gamma and beta/delta subtypes have significant differences in their ligand and gene specificities. PPARalpha is activated by polyunsaturated fatty acids and by fibrate drugs (fenofibrate and gemfibrozil) and controls expression of genes involved in lipid metabolism. PPARgamma is activated by fatty acid derivatives, such as hydroxyoctadecadienoic acid (HODEs), prostaglandin derivatives, such as 15-deoxy-Delta12,14-prostaglandin J2, and thiazolidinedione (glitazone) drugs, such as pioglitazone and rosiglitazone. PPARgamma is a key regulator of glucose homeostasis and adipogenesis. PPARbeta/delta ligands include polyunsaturated fatty acids, prostaglandins and synthetic compounds and stimulate fatty acid oxidation. All PPARs are expressed in vascular cells where they exert antiatherogenic, anti-inflammatory and vasculoprotective actions. Activators of PPARalpha (fibrates) and PPARgamma (thiazolidinediones or glitazones) antagonize angiotensin II effects in vivo and in vitro and have cardiovascular antioxidant and anti-inflammatory actions. PPAR agonists slightly reduce blood pressure are cardio-protective and correct vascular structure and endothelial dysfunction in experimental models of hypertension. Because of these beneficial effects, activators of PPARs may have therapeutic potential in the prevention of cardiovascular disease beyond their actions on carbohydrate and lipid metabolism. The present chapter focuses on the role of PPARs in vascular biology and discusses the clinical implications of using PPAR agonists in the management of vascular disease.
A36: =HYPERLINK("http://www.ncbi.nlm.nih.gov/pubmed/" & I36,I36) -> 16129372 | B36: =(LEN($J36) - LEN(SUBSTITUTE(LOWER($J36),LOWER(B$3),"")))/LEN(B$3) -> 15 | C36: =(LEN($J36) - LEN(SUBSTITUTE(LOWER($J36),LOWER(C$3),"")))/LEN(C$3) -> 0 | D36: =(LEN($J36) - LEN(SUBSTITUTE(LOWER($J36),LOWER(D$3),"")))/LEN(D$3) -> 0 | E36: =SUM(B36:D36) -> 15 | F36: 2005 | G36: Retinoic acid and retinoid receptors: potential chemopreventive and therapeutic role in cervical cancer. | H36: Abu | I36: 16129372 | J36: Retinoic acid and retinoid receptors: potential chemopreventive and therapeutic role in cervical cancer. Abstract: Retinoids are natural and synthetic derivatives of vitamin A, which can be obtained from animal products (milk, liver, beef, fish oils, and eggs) and vegetables (carrots, mangos, sweet potatoes, and spinach). Retinoids regulate various important cellular functions in the body through specific nuclear retinoic-acid receptors and retinoid-X receptors, which are encoded by separate genes. Retinoic-acid receptors specifically bind tretinoin and alitretinoin, whereas retinoid-X receptors bind only alitretinoin. Retinoids have long been established as crucial for several essential life processes-healthy growth, vision, maintenance of tissues, reproduction, metabolism, tissue differentiation (normal, premalignant cells, and malignant cells), haemopoiesis, bone development, spermatogenesis, embryogenesis, and overall survival. Therefore, deficiency of vitamin A can lead to various unwanted biological effects. Several experimental and epidemiological studies have shown the antiproliferative activity of retinoids and their potential use in cancer treatment and chemoprevention. Emerging clinical trials have shown the chemotherapeutic and chemopreventive potential of retinoids in cancerous and precancerous conditions of the uterine cervix. In this review, we explore the potential chemopreventive and therapeutic roles of retinoids in preinvasive and invasive cervical neoplasia.
A37: =HYPERLINK("http://www.ncbi.nlm.nih.gov/pubmed/" & I37,I37) -> 12185990 | B37: =(LEN($J37) - LEN(SUBSTITUTE(LOWER($J37),LOWER(B$3),"")))/LEN(B$3) -> 0 | C37: =(LEN($J37) - LEN(SUBSTITUTE(LOWER($J37),LOWER(C$3),"")))/LEN(C$3) -> 15 | D37: =(LEN($J37) - LEN(SUBSTITUTE(LOWER($J37),LOWER(D$3),"")))/LEN(D$3) -> 0 | E37: =SUM(B37:D37) -> 15 | F37: 2002 | G37: Targeting peroxisome proliferator-activated receptors (PPARs) in kidney and urologic disease. | H37: Guan | I37: 12185990 | J37: Targeting peroxisome proliferator-activated receptors (PPARs) in kidney and urologic disease. Abstract: Peroxisome proliferator-activated receptors (PPARs) are members of the nuclear hormone receptor superfamily of ligand-activated transcription factors. Three PPAR isoforms, designated PPAR-alpha, beta/delta and -gamma, have been identified and were initially investigated in the tissues along urinary tract because of their known role in regulating lipid-activated gene transcription, lipid metabolism, inflammation and cell proliferation and differentiation. Gene distribution studies suggested that 3 PPAR isoforms are differentially expressed in the kidney. PPAR-alpha is predominantly expressed in renal proximal tubules and medullary thick ascending limbs. PPAR-gamma is mainly localized in renal medullary collecting duct with lower expression in renal glomeruli and renal microvasculature. Unlike PPAR-alpha and -gamma, PPAR-beta/delta is ubiquitously expressed in every segment along the nephron. In ureter and urinary bladder, all PPAR isoforms are mainly localized in urothelium of ureter and bladder. The emerging data have suggested physiological and pathophysiological roles of PPARs in tissues along urinary tract. PPAR-alpha plays a major role in triggering fatty acid utilization and the adaptive response to dietary lipids in the kidney. PPAR-beta/delta contributes to cell survival of renal interstitial cell in medullary hyperosmality. PPAR-gamma is involved in regulating renal hemodynamic and water and sodium transport. Furthermore, it also participates in the pathogenesis of glomerulopathy, antidiabetic thiazolidinedione-related water and sodium retention and renal, bladder and prostate carcinomas. PPARs may serve as potential therapeutic targets for certain diseases along urinary tract including glomerulosclerosis, diabetic nephropathy and kidney, prostate and bladder tumors.
A38: =HYPERLINK("http://www.ncbi.nlm.nih.gov/pubmed/" & I38,I38) -> 11818483 | B38: =(LEN($J38) - LEN(SUBSTITUTE(LOWER($J38),LOWER(B$3),"")))/LEN(B$3) -> 1 | C38: =(LEN($J38) - LEN(SUBSTITUTE(LOWER($J38),LOWER(C$3),"")))/LEN(C$3) -> 13 | D38: =(LEN($J38) - LEN(SUBSTITUTE(LOWER($J38),LOWER(D$3),"")))/LEN(D$3) -> 1 | E38: =SUM(B38:D38) -> 15 | F38: 2002 | G38: The mechanisms of action of PPARs. | H38: Berger | I38: 11818483 | J38: The mechanisms of action of PPARs. Abstract: The peroxisome proliferator-activated receptors (PPARs) are a group of three nuclear receptor isoforms, PPAR gamma, PPAR alpha, and PPAR delta, encoded by different genes. PPARs are ligand-regulated transcription factors that control gene expression by binding to specific response elements (PPREs) within promoters. PPARs bind as heterodimers with a retinoid X receptor and, upon binding agonist, interact with cofactors such that the rate of transcription initiation is increased. The PPARs play a critical physiological role as lipid sensors and regulators of lipid metabolism. Fatty acids and eicosanoids have been identified as natural ligands for the PPARs. More potent synthetic PPAR ligands, including the fibrates and thiazolidinediones, have proven effective in the treatment of dyslipidemia and diabetes. Use of such ligands has allowed researchers to unveil many potential roles for the PPARs in pathological states including atherosclerosis, inflammation, cancer, infertility, and demyelination. Here, we present the current state of knowledge regarding the molecular mechanisms of PPAR action and the involvement of the PPARs in the etiology and treatment of several chronic diseases.
A39: =HYPERLINK("http://www.ncbi.nlm.nih.gov/pubmed/" & I39,I39) -> 11237216 | B39: =(LEN($J39) - LEN(SUBSTITUTE(LOWER($J39),LOWER(B$3),"")))/LEN(B$3) -> 1 | C39: =(LEN($J39) - LEN(SUBSTITUTE(LOWER($J39),LOWER(C$3),"")))/LEN(C$3) -> 12 | D39: =(LEN($J39) - LEN(SUBSTITUTE(LOWER($J39),LOWER(D$3),"")))/LEN(D$3) -> 2 | E39: =SUM(B39:D39) -> 15 | F39: 2001 | G39: Peroxisome proliferator-activated receptors: from genes to physiology. | H39: Kliewer | I39: 11237216 | J39: Peroxisome proliferator-activated receptors: from genes to physiology. Abstract: The peroxisome proliferator-activated receptors (PPARalpha, gamma, delta) are members of the nuclear receptor superfamily of ligand-activated transcription factors that have central roles in the storage and catabolism of fatty acids. Although the three PPAR subtypes are closely related and bind to similar DNA response elements as heterodimers with the 9-cis retinoic acid receptor RXR, each subserves a distinct physiology. PPARalpha (NR1C1) is the receptor for the fibrate drugs, which are widely used to lower triglycerides and raise high-density lipoprotein cholesterol levels in the treatment and prevention of coronary artery disease. In rodents, PPARalpha agonists induce hepatomegaly and stimulate a dramatic proliferation of peroxisomes as part of a coordinated physiological response to lipid overload. PPARgamma (NR1C3) plays a critical role in adipocyte differentiation and serves as the receptor for the glitazone class of insulin-sensitizing drugs used in the treatment of type 2 diabetes. In contrast to PPARalpha and PPARgamma, relatively little is known about the biology of PPARdelta (NR1C2), although recent findings suggest that this subtype also has a role in lipid homeostasis. All three PPARs are activated by naturally occurring fatty acids and fatty acid metabolites, indicating that they function as the bodys fatty acid sensors. Three-dimensional crystal structures reveal that the ligand-binding pockets of the PPARs are much larger and more accessible than those of other nuclear receptors, providing a molecular basis for the promiscuous ligand-binding properties of these receptors. Given the fundamental roles that the PPARs play in energy balance, drugs that modulate PPAR activity are likely to be useful for treating a wide range of metabolic disorders, including atherosclerosis, dyslipidemia, obesity, and type 2 diabetes.
A40: =HYPERLINK("http://www.ncbi.nlm.nih.gov/pubmed/" & I40,I40) -> 10828316 | B40: =(LEN($J40) - LEN(SUBSTITUTE(LOWER($J40),LOWER(B$3),"")))/LEN(B$3) -> 14 | C40: =(LEN($J40) - LEN(SUBSTITUTE(LOWER($J40),LOWER(C$3),"")))/LEN(C$3) -> 0 | D40: =(LEN($J40) - LEN(SUBSTITUTE(LOWER($J40),LOWER(D$3),"")))/LEN(D$3) -> 1 | E40: =SUM(B40:D40) -> 15 | F40: 2000 | G40: Recent developments in receptor-selective retinoids. | H40: Nagpal | I40: 10828316 | J40: Recent developments in receptor-selective retinoids. Abstract: Natural (all trans-retinoic acid, RA) and synthetic retinoids exhibit potent anti-proliferative, normalization of differentiation and anti-inflammatory activities which appear to account for their therapeutic effects in acne, psoriasis, photoaging, precancerous lesions and established cancers. Although RA has shown considerable promise in dermatologic indications, certain side effects have restricted its use as a choice of agent for chronic administration. Systematic synthesis of receptor-selective retinoids has resulted in two topical drugs, Tazorac/Zorac (tazarotene) and Differin (adapalene). Tazorac is indicated for psoriasis and acne and Differin gel for the treatment of acne. These drugs bind to the retinoic acid receptor (RAR) family members. Various RAR subtype-specific and function-selective retinoids have been synthesized. These retinoids, which are in various stages of pre-clinical development for the treatment of cancers, psoriasis and as an antidote to Accutane-mediated mucocutaneous toxicity, will also be discussed in this review. Discovery of another retinoid receptor, retinoid X receptor (RXR), revealed that RXR-specific retinoids already existed in retinoid chemical libraries. Structure activity relationship studies based upon binding and transactivation assays led to the synthesis of RXR-specific ligands with high affinities for RXR subtypes. These compounds were found to be effective in the treatment of hyperglycemia in animal models of type II diabetes. The discovery of novel retinoids along with an increased understanding of the biological functions and mechanisms of action of retinoid receptors are likely to result in improved treatments for existing responsive indications and identification of new retinoid therapeutic targets.
A41: =HYPERLINK("http://www.ncbi.nlm.nih.gov/pubmed/" & I41,I41) -> 10637381 | B41: =(LEN($J41) - LEN(SUBSTITUTE(LOWER($J41),LOWER(B$3),"")))/LEN(B$3) -> 14 | C41: =(LEN($J41) - LEN(SUBSTITUTE(LOWER($J41),LOWER(C$3),"")))/LEN(C$3) -> 1 | D41: =(LEN($J41) - LEN(SUBSTITUTE(LOWER($J41),LOWER(D$3),"")))/LEN(D$3) -> 0 | E41: =SUM(B41:D41) -> 15 | F41: 2000 | G41: The importance of vitamin A in nutrition. | H41: Dawson | I41: 10637381 | J41: The importance of vitamin A in nutrition. Abstract: Preformed vitamin A (all-trans-retinol and its esters) and provitamin A (beta-carotene) are essential dietary nutrients that provide a source of retinol. Both retinyl esters and beta-carotene are metabolized to retinol. The retinol-binding proteins on binding retinol provide a means for solubilizing retinol for delivery to target tissues and for regulating retinol plasma concentrations. Oxidation of retinol provides retinal, which is essential for vision, and retinoic acid, a transcription factor ligand that has important roles in regulating genes involved in cell morphogenesis, differentiation, and proliferation. The observations that vitamin A can produce cell and tissue changes similar to those found during neoplastic transformation and that vitamin supplementation can reverse this process indicated a potential role for vitamin A in cancer prevention. Thus far, correlative epidemiological studies on vitamin A use and cancer prevention have produced mixed results, as this review indicates. Apparently, in populations deficient in vitamin A (caused by an inadequate diet or tobacco use), supplementation programs appear to be effective in reducing cancer incidence. In groups already having sufficient dietary or supplemental vitamin A, cancer prevention by added vitamin A may not be particularly effective. The most likely reason for the low efficacy in the latter groups is that feedback mechanisms that increase retinol storage in the liver limit retinol plasma levels; whereas, supplementation at higher doses causes toxicity. In addition to serving as a metabolic source of retinol, beta-carotene, along with other dietary carotenoids, function as antioxidants that can prevent carcinogenesis by decreasing the levels of the free-radicals that cause DNA damage.
A42: =HYPERLINK("http://www.ncbi.nlm.nih.gov/pubmed/" & I42,I42) -> 25083916 | B42: =(LEN($J42) - LEN(SUBSTITUTE(LOWER($J42),LOWER(B$3),"")))/LEN(B$3) -> 1 | C42: =(LEN($J42) - LEN(SUBSTITUTE(LOWER($J42),LOWER(C$3),"")))/LEN(C$3) -> 12 | D42: =(LEN($J42) - LEN(SUBSTITUTE(LOWER($J42),LOWER(D$3),"")))/LEN(D$3) -> 1 | E42: =SUM(B42:D42) -> 14 | F42: 2014 | G42: Natural product agonists of peroxisome proliferator-activated receptor gamma (PPARγ): a review. | H42: Wang | I42: 25083916 | J42: Natural product agonists of peroxisome proliferator-activated receptor gamma (PPARγ): a review. Abstract: Agonists of the nuclear receptor PPARγ are therapeutically used to combat hyperglycaemia associated with the metabolic syndrome and type 2 diabetes. In spite of being effective in normalization of blood glucose levels, the currently used PPARγ agonists from the thiazolidinedione type have serious side effects, making the discovery of novel ligands highly relevant. Natural products have proven historically to be a promising pool of structures for drug discovery, and a significant research effort has recently been undertaken to explore the PPARγ-activating potential of a wide range of natural products originating from traditionally used medicinal plants or dietary sources. The majority of identified compounds are selective PPARγ modulators (SPPARMs), transactivating the expression of PPARγ-dependent reporter genes as partial agonists. Those natural PPARγ ligands have different binding modes to the receptor in comparison to the full thiazolidinedione agonists, and on some occasions activate in addition PPARα (e.g. genistein, biochanin A, sargaquinoic acid, sargahydroquinoic acid, resveratrol, amorphastilbol) or the PPARγ-dimer partner retinoid X receptor (RXR; e.g. the neolignans magnolol and honokiol). A number of in vivo studies suggest that some of the natural product activators of PPARγ (e.g. honokiol, amorfrutin 1, amorfrutin B, amorphastilbol) improve metabolic parameters in diabetic animal models, partly with reduced side effects in comparison to full thiazolidinedione agonists. The bioactivity pattern as well as the dietary use of several of the identified active compounds and plant extracts warrants future research regarding their therapeutic potential and the possibility to modulate PPARγ activation by dietary interventions or food supplements.
A43: =HYPERLINK("http://www.ncbi.nlm.nih.gov/pubmed/" & I43,I43) -> 15850670 | B43: =(LEN($J43) - LEN(SUBSTITUTE(LOWER($J43),LOWER(B$3),"")))/LEN(B$3) -> 3 | C43: =(LEN($J43) - LEN(SUBSTITUTE(LOWER($J43),LOWER(C$3),"")))/LEN(C$3) -> 10 | D43: =(LEN($J43) - LEN(SUBSTITUTE(LOWER($J43),LOWER(D$3),"")))/LEN(D$3) -> 1 | E43: =SUM(B43:D43) -> 14 | F43: 2005 | G43: Hormone regulation of microglial cell activation: relevance to multiple sclerosis. | H43: Drew | I43: 15850670 | J43: Hormone regulation of microglial cell activation: relevance to multiple sclerosis. Abstract: Peroxisome proliferator-activated receptors (PPARs) are members of the nuclear hormone receptor superfamily of proteins. The role of PPARs in regulating the transcription of genes involved in glucose and lipid metabolism has been extensively characterized. Interestingly, PPARs have also been demonstrated to mediate inflammatory responses. Microglia participate in pathology associated with multiple sclerosis (MS). Upon activation, microglia produce molecules including NO and TNF-alpha that can be toxic to CNS cells including myelin-producing oligodendrocytes and neurons, which are compromised in the course of MS. Previously, we and others demonstrated that PPAR-gamma agonists including 15d-PGJ(2) are effective in the treatment of experimental autoimmune encephalomyelitis (EAE), an animal model of MS. PPAR-gamma modulation of EAE may occur, at least in part, by inhibition of microglial cell activation. Here, we indicate that 15d-PGJ(2) is a more potent inhibitor of microglial activation than thiazolidinediones, which are currently used to treat diabetes. Furthermore, 15d-PGJ(2) acts cooperatively with 9-cis retinoic acid, the ligand for the retinoid X receptor (RXR), in inhibiting microglial cell activation. This suggests that 15d-PGJ(2) and 9-cis RA inhibit cell activation through the formation of PPAR-gamma/RXR heterodimers. Interestingly, PGA(2), which like 15d-PGJ(2) is a cyclopentenone prostaglandin, but which unlike 15d-PGJ(2) does not bind PPAR-gamma, is a potent inhibitor of microglial cell activation. Collectively, these studies suggest that 15d-PGJ(2) inhibits microglial cell activation by PPAR-gamma-dependent as well as PPAR-gamma-independent mechanisms. The studies further suggest that the PPAR-gamma agonist 15d-PGJ(2) in combination with retinoids may be effective in the treatment of MS.
A44: =HYPERLINK("http://www.ncbi.nlm.nih.gov/pubmed/" & I44,I44) -> 15134535 | B44: =(LEN($J44) - LEN(SUBSTITUTE(LOWER($J44),LOWER(B$3),"")))/LEN(B$3) -> 14 | C44: =(LEN($J44) - LEN(SUBSTITUTE(LOWER($J44),LOWER(C$3),"")))/LEN(C$3) -> 0 | D44: =(LEN($J44) - LEN(SUBSTITUTE(LOWER($J44),LOWER(D$3),"")))/LEN(D$3) -> 0 | E44: =SUM(B44:D44) -> 14 | F44: 2004 | G44: Retinoids in cancer chemoprevention. | H44: Okuno | I44: 15134535 | J44: Retinoids in cancer chemoprevention. Abstract: We review the therapeutic and preventive applications of a retinoid analog (vitamin A and its derivatives) for human cancers. Chemoprevention of cancer is an intervention in the carcinogenic process by chemical agents that block or reverse the malignant transformation of cells. Retinoids are prime candidates for cancer chemoprevention since cancer is characterized by abnormal growth with a lack of differentiation, which could be modified by retinoids. Retinoids exert their biological functions through nuclear receptors, retinoic acid receptor (RAR) and retinoid X receptor (RXR). A number of experimental and clinical studies have been performed in the past two decades with retinoids showing that they inhibit or reverse the carcinogenic process in some organs, including hematological malignancy as well as premalignant and malignant lesions in the oral cavity, head and neck, breast, skin and liver. We particularly focus upon the therapeutic application of all-trans RA (atRA) to acute promyelocytic leukemia (APL) and on the preventive approach to hepatocellular carcinoma (HCC) by a synthetic retinoid analog, acyclic retinoid. In both malignancies, malfunction of retinoid nuclear receptors is closely related to their carcinogenic process. In APL, a chromosomal translocation produces a chimeric protein between RAR alpha and a protein called promyelocyte leukemia protein (PML). PML-RAR alpha works as a dominant negative receptor in the leukemic cells, interfering with the normal function of RAR alpha and/or PML, which in turn results in the arrest of cell maturation at the stage of promyelocytes. Oral administration of atRA induces differentiation of promyelocytic leukemic cells to mature neutrophils, and leads to a high rates (over 90%) of complete remission. AtRA therapy has become standard in the treatment of APL. In the case of HCC, post-translational modification of RXR by phosphorylation impairs its function, which leads to uncontrolled cell growth. Acyclic retinoid suppresses the phosphorylation of RXR alpha, restores its function in the presence of its endogenous ligand, 9-cis RA, and thereby induces apoptosis of the cancer cells. Acyclic retinoid given orally successfully suppresses the development of second primary tumors in cirrhotic patients who undergo curative removal of preceding HCC. Eradication of (pre)malignant clones (clonal deletion) from the liver is suggested as a mechanism of the chemopreventive effect. Further development of more effective retinoids as well as their use in combination with other classes of anticancer agents including immunopreventive drugs like interferons may provide strategies for cancer prevention.
A45: =HYPERLINK("http://www.ncbi.nlm.nih.gov/pubmed/" & I45,I45) -> 12500431 | B45: =(LEN($J45) - LEN(SUBSTITUTE(LOWER($J45),LOWER(B$3),"")))/LEN(B$3) -> 1 | C45: =(LEN($J45) - LEN(SUBSTITUTE(LOWER($J45),LOWER(C$3),"")))/LEN(C$3) -> 10 | D45: =(LEN($J45) - LEN(SUBSTITUTE(LOWER($J45),LOWER(D$3),"")))/LEN(D$3) -> 3 | E45: =SUM(B45:D45) -> 14 | F45: 2002 | G45: Experimental approaches to study PPAR gamma agonists as antidiabetic drugs. | H45: Vázquez | I45: 12500431 | J45: Experimental approaches to study PPAR gamma agonists as antidiabetic drugs. Abstract: Peroxisome proliferator-activated receptors (PPARs) are members of the nuclear hormone receptor superfamily of ligand-activated transcription factors that are related to retinoid, steroid and thyroid hormone receptors. Since PPARs appear to be closely involved in the regulation of dietary fat storage and catabolism, they have been established as an important target for the treatment of type 2 diabetes and other disorders associated with the high intake of dietary fat. Thiazolidinediones (TZDs) were the first class of compounds to be identified as PPAR gamma-ligands, constituting a new class of antidiabetic drugs that have recently been introduced as therapeutic agents for the treatment of type 2 diabetes mellitus by acting as insulin sensitizers. These compounds improve insulin resistance by increasing cell sensitivity to insulin. In fact, PPAR gamma agonists increase peripheral insulin sensitivity by increasing the transcription of genes, which, in turn, increase glucose uptake, also improving insulin-stimulated glucose disposal in muscle. PPAR gamma agonists increase insulin signaling, reduce circulating levels of free fatty acids and stimulate adipocyte differentiation, thus favoring the formation of smaller, more insulin-sensitive adipocytes. TZDs have been proven effective in different experimental models to evaluate their effectiveness as an antidiabetic agent, and the involvement of PPAR gamma in the pharmacological effects of these compounds has been supported by studies showing an excellent correlation between the hypoglycemic action of these drugs and their affinity for PPAR gamma. Despite this evidence, the site of action and the molecular mechanism of TZDs remain unclear. The aim of the present article was to review and discuss the most relevant pharmacological studies performed in the search for establishing the mechanism of action of antidiabetic TZDs and related compounds acting as PPAR gamma agonists, as well as to summarize those representative experimental approaches currently used to evaluate PPAR gamma agonists as therapeutic agents for the treatment of insulin-resistant type 2 diabetes mellitus.
A46: =HYPERLINK("http://www.ncbi.nlm.nih.gov/pubmed/" & I46,I46) -> 12079620 | B46: =(LEN($J46) - LEN(SUBSTITUTE(LOWER($J46),LOWER(B$3),"")))/LEN(B$3) -> 1 | C46: =(LEN($J46) - LEN(SUBSTITUTE(LOWER($J46),LOWER(C$3),"")))/LEN(C$3) -> 12 | D46: =(LEN($J46) - LEN(SUBSTITUTE(LOWER($J46),LOWER(D$3),"")))/LEN(D$3) -> 1 | E46: =SUM(B46:D46) -> 14 | F46: 2002 | G46: Physiological and therapeutic roles of peroxisome proliferator-activated receptors. | H46: Berger | I46: 12079620 | J46: Physiological and therapeutic roles of peroxisome proliferator-activated receptors. Abstract: The peroxisome proliferator-activated receptors (PPARs) are a group of nuclear receptor isoforms, including PPARgamma, PPARalpha, and PPARdelta, encoded by different genes. PPARs are ligand-regulated transcription factors that control gene expression by binding to specific response elements (PPREs) within promoters. PPARs bind as heterodimers with a retinoid X receptor and, upon binding agonist, interact with cofactors increasing the rate of transcription initiation. The PPARs play a critical physiological role as lipid sensors and regulators of lipid metabolism. Natural ligands for the PPARs include fatty acids and eicosanoids. More potent synthetic PPAR ligands, including the fibrates and thiazolidinediones, are effective in the treatment of dyslipidemia and diabetes. Use of selective ligands led to the discovery of additional potential roles for the PPARs in pathological states, including atherosclerosis, inflammation, and hypertension. This review provides an overview of the molecular mechanisms of PPAR action and the involvement of the PPARs in the etiology and treatment of several chronic diseases.
A47: =HYPERLINK("http://www.ncbi.nlm.nih.gov/pubmed/" & I47,I47) -> 11007938 | B47: =(LEN($J47) - LEN(SUBSTITUTE(LOWER($J47),LOWER(B$3),"")))/LEN(B$3) -> 1 | C47: =(LEN($J47) - LEN(SUBSTITUTE(LOWER($J47),LOWER(C$3),"")))/LEN(C$3) -> 13 | D47: =(LEN($J47) - LEN(SUBSTITUTE(LOWER($J47),LOWER(D$3),"")))/LEN(D$3) -> 0 | E47: =SUM(B47:D47) -> 14 | F47: 2000 | G47: Regulation of the peroxisomal beta-oxidation-dependent pathway by peroxisome proliferator-activated receptor alpha and kinases. | H47: Latruffe | I47: 11007938 | J47: Regulation of the peroxisomal beta-oxidation-dependent pathway by peroxisome proliferator-activated receptor alpha and kinases. Abstract: The first PPAR (peroxisome proliferator-activated receptor) was cloned in 1990 by Issemann and Green (Nature 347:645-650). This nuclear receptor was so named since it is activated by peroxisome proliferators including several drugs of the fibrate family, plasticizers, and herbicides. This receptor belongs to the steroid receptor superfamily. After activation by a specific ligand, it binds to a DNA response element, PPRE (peroxisome proliferator response element), which is a DR-1 direct repeat of the consensus sequence TGACCT x TGACCT. This mechanism leads to the transcriptional activation of target genes (Motojima et al., J Biol Chem 273:16710-16714, 1998). After the first discovery, several isoforms were characterized in most of the vertebrates investigated. PPAR alpha, activated by hypolipidemic agents of the fibrate family or by leukotrienes; regulates lipid metabolism as well as the detoxifying enzyme-encoding genes. PPAR beta/delta, which is not very well known yet, appears to be more specifically activated by fatty acids. PPAR gamma (subisoforms 1, 2, 3) is activated by the prostaglandin PGJ2 or by antidiabetic thiazolidinediones (Vamecq and Latruffe, Lancet 354:411-418, 1999). This latter isoform is involved in adipogenesis. The level of PPAR expression is largely dependent on the tissue type. PPAR alpha is mainly expressed in liver and kidney, while PPAR beta/delta is almost constitutively expressed. In contrast, PPAR gamma is largely expressed in white adipose tissue. PPAR is a transcriptional factor that requires other nuclear proteins in order to function, i.e. RXRalpha (9-cis-retinoic acid receptor alpha) in all cases in addition to other regulatory proteins. Peroxisomes are specific organelles for very long-chain and polyunsaturated fatty acid catabolism. From our results and those of others, the inventory of the role of PPAR alpha in the regulation of peroxisomal fatty acid beta-oxidation is presented. In relation to this, we showed that PPAR alpha activates peroxisomal beta-oxidation-encoding genes such as acyl-CoA oxidase, multifunctional protein, and thiolase (Bardot et al., FEBS Lett 360:183-186, 1995). Moreover, rat liver PPAR alpha regulatory activity is dependent on its phosphorylated state (Passilly et al., Biochem Pharmacol 58:1001-1008, 1999). On the other hand, some signal transduction pathways such as protein kinase C are modified by peroxisome proliferators that increase the phosphorylation level of some specific proteins (Passilly et al. Eur J Biochem 230:316-321, 1995). From all these findings, PPAR alpha and kinases appear to play an important role in lipid homeostasis.
A48: =HYPERLINK("http://www.ncbi.nlm.nih.gov/pubmed/" & I48,I48) -> 10731129 | B48: =(LEN($J48) - LEN(SUBSTITUTE(LOWER($J48),LOWER(B$3),"")))/LEN(B$3) -> 13 | C48: =(LEN($J48) - LEN(SUBSTITUTE(LOWER($J48),LOWER(C$3),"")))/LEN(C$3) -> 0 | D48: =(LEN($J48) - LEN(SUBSTITUTE(LOWER($J48),LOWER(D$3),"")))/LEN(D$3) -> 1 | E48: =SUM(B48:D48) -> 14 | F48: 1999 | G48: Novel retinoids with receptor selectivity and functional selectivity. | H48: Johnson | I48: 10731129 | J48: Novel retinoids with receptor selectivity and functional selectivity. Abstract: Retinoids mediate a number of physiological pathways through their effects on cellular growth and differentiation. Upon binding to retinoic acid receptors (RARs) and retinoid X receptors (RXRs), retinoids regulate cellular processes by directly modulating the expression of responsive genes. The wide-ranging effects of retinoid action are attributable to two main factors-the ubiquitous distribution of several subtypes and isoforms of RARs and RXRs, and the ability of these receptors to regulate numerous genes upon ligand activation. The broad range of effects mediated by retinoids means not only that they have many potential therapeutic applications but also that non-selective retinoids are associated with a high incidence of adverse effects. The design of retinoids that are receptor-selective and function-selective is a strategy that is proving successful in developing novel retinoids that offer not only good efficacy but also good tolerability. Tazarotene, a receptor-selective retinoid indicated for the topical treatment of psoriasis, is at the forefront of this new generation of retinoids. In the near future, other receptor-selective retinoids may prove useful for the treatment of other dermatological diseases, cancer, and diabetes.
A49: =HYPERLINK("http://www.ncbi.nlm.nih.gov/pubmed/" & I49,I49) -> 9787993 | B49: =(LEN($J49) - LEN(SUBSTITUTE(LOWER($J49),LOWER(B$3),"")))/LEN(B$3) -> 14 | C49: =(LEN($J49) - LEN(SUBSTITUTE(LOWER($J49),LOWER(C$3),"")))/LEN(C$3) -> 0 | D49: =(LEN($J49) - LEN(SUBSTITUTE(LOWER($J49),LOWER(D$3),"")))/LEN(D$3) -> 0 | E49: =SUM(B49:D49) -> 14 | F49: 1998 | G49: Current research and future developments in retinoids: oral and topical agents. | H49: Chandraratna | I49: 9787993 | J49: Current research and future developments in retinoids: oral and topical agents. Abstract: The retinoids are a class of small molecules capable of affecting biological systems in a fundamental way by interacting with a variety of nuclear receptors and affecting gene transcription. As such, they have powerful therapeutic potential in the treatment of a variety of diseases. However, non-selective retinoid drugs that indiscriminately activate many or all of the different retinoid receptors and their signaling pathways will invariably produce both undesirable and beneficial effects. Therefore, current and future retinoid research must employ a rational approach to drug discovery, the goal of which is to design retinoid drugs with sufficient receptor or function selectivity that only those biological systems relevant to a specific disease are affected. Tazarotene is a retinoid with properties that are a result of this rational approach to drug discovery. Its molecular structure was engineered in such a way as to make it selective for the retinoic acid receptor (RAR) class of nuclear receptors over retinoid X receptors (RXRs), with preferential activation of RAR beta and RAR gamma over RAR alpha. It was further engineered to possess clinically favorable pharmacokinetic properties. To date, all retinoid drugs available for therapeutic use are retinoid agonists; they bind to retinoid receptors and facilitate gene transcription. However, ongoing research has developed retinoid antagonists (that bind to receptors without activating gene transcription) and inverse agonists (that bind to receptors and inhibit gene transcription). These new drugs and other retinoids currently under development represent new opportunities for the treatment of a variety of disorders in dermatology, oncology, and metabolic disease.
A50: =HYPERLINK("http://www.ncbi.nlm.nih.gov/pubmed/" & I50,I50) -> 9035704 | B50: =(LEN($J50) - LEN(SUBSTITUTE(LOWER($J50),LOWER(B$3),"")))/LEN(B$3) -> 14 | C50: =(LEN($J50) - LEN(SUBSTITUTE(LOWER($J50),LOWER(C$3),"")))/LEN(C$3) -> 0 | D50: =(LEN($J50) - LEN(SUBSTITUTE(LOWER($J50),LOWER(D$3),"")))/LEN(D$3) -> 0 | E50: =SUM(B50:D50) -> 14 | F50: 1996 | G50: Oral retinoids--efficacy and toxicity in psoriasis. | H50: Gollnick | I50: 9035704 | J50: Oral retinoids--efficacy and toxicity in psoriasis. Abstract: Psoriasis is a disease of unknown aetiology, affecting approximately 1-3% of the population. In most cases involving relatively localized disease, patients are best managed with either topical therapy alone or topical therapy in combination with UV-phototherapy. However, approximately 35% of patients do not respond well to these conventional treatments or have moderate-to-severe disease requiring more aggressive forms of therapy. The second-generation retinoids, etretinate and its metabolite acitretin, are important additions to the armamentarium of agents used to treat these recalcitrant or severe forms of the disease. Generalized pustular psoriasis generally responds well to high-dose (0.7-1 mg/kg/day) oral retinoid monotherapy. In contrast, increasing small doses of the retinoid are recommended initially in erythrodermic psoriasis in order not to provoke the disease. Long-term clinical experience favours a combination treatment of the retinoid with either topical and/or UV irradiation in chronic plaque-like psoriasis. Both oral retinoids have comparable efficacy and tolerability profiles, and the relapse rates for both drugs are similar. The toxicities associated with both short- and long-term treatment with oral retinoids are significant and include mucocutaneous effects, adverse modulation of serum lipid chemistries, elevation of liver enzymes, and after long-term chronic dosing, skeletal and ligamentous calcification, and hyperostosis. Both etretinate and acitretin, like all retinoids, are known teratogens in animal models, and documented evidence exists for teratogenic activity in humans as well. Consequently, women of childbearing age are strongly advised to avoid pregnancy during treatment and up to 5 years following cessation of therapy with both etretinate and the carboxylic acid metabolite acitretin.
A51: =HYPERLINK("http://www.ncbi.nlm.nih.gov/pubmed/" & I51,I51) -> 7641581 | B51: =(LEN($J51) - LEN(SUBSTITUTE(LOWER($J51),LOWER(B$3),"")))/LEN(B$3) -> 14 | C51: =(LEN($J51) - LEN(SUBSTITUTE(LOWER($J51),LOWER(C$3),"")))/LEN(C$3) -> 0 | D51: =(LEN($J51) - LEN(SUBSTITUTE(LOWER($J51),LOWER(D$3),"")))/LEN(D$3) -> 0 | E51: =SUM(B51:D51) -> 14 | F51: 1995 | G51: Alterations in chemically induced tissue injury related to all-trans-retinol pretreatment in rodents. | H51: Sauer | I51: 7641581 | J51: Alterations in chemically induced tissue injury related to all-trans-retinol pretreatment in rodents. Abstract: Retinol (vitamin A) is an essential nutrient which has many physiological effects throughout the body. Our studies have demonstrated that retinol modulation of immune response, through alteration of macrophage and neutrophil function, can have dramatic effects on the toxicity of some compounds. Based on these studies, our current hypothesis for retinol potentiation of chemical-induced liver injury is that retinol administered to rats prior to the hepatotoxicant (CCl4 and AA in rats; and AA, APAP, and GalN in mice) primes the Kupffer cells to a more active state. This may occur in part as a result of increases in chemical mediators such as TNF from these Kupffer cells. Following hepatocyte damage by a toxicant, Kupffer cells are activated to release reactive oxygen species, immune mediators, and chemotactic factors which all serve to enhance the inflammatory response. This increased inflammatory response then results in increased injury to the already toxicant-damaged hepatocytes. In addition, retinol modulation of toxicant activation and detoxification may also make important contributions to the potentiation of some toxicants such as AA. Retinol protection of CCl4 hepatotoxicity in mice is more difficult to explain at this time but is possibly related to alterations in CCl4 metabolism in this species. Differences in response between pulmonary and liver macrophages (Kupffer cells) may explain the retinol protection from 1-NN pulmonary toxicity. Retinol may decrease the inflammatory response through downregulation of pulmonary macrophage function, thus resulting in decreased pulmonary injury. Finally, since retinol protection of cadmium toxicity in the liver and testis requires 7 days of retinol pretreatment, we suspect that retinol is inducing protective protein(s) in these organs. Aside from its normal biological role in rhe body, clinical medicine has found new uses for retinol in the treatment and prevention of some cancers, and in the treatment of certain dermatologic conditions. Since these patients are frequently administered or exposed to other potentially toxic compounds, it is obviously prudent and necessary to continue research into the effects of retinol on immune modulation and interaction with other compounds. More importantly, these studies demonstrate the modulation of immune function is one mechanism by which one chemical can influence the toxicity of another.
A52: =HYPERLINK("http://www.ncbi.nlm.nih.gov/pubmed/" & I52,I52) -> 24393720 | B52: =(LEN($J52) - LEN(SUBSTITUTE(LOWER($J52),LOWER(B$3),"")))/LEN(B$3) -> 13 | C52: =(LEN($J52) - LEN(SUBSTITUTE(LOWER($J52),LOWER(C$3),"")))/LEN(C$3) -> 0 | D52: =(LEN($J52) - LEN(SUBSTITUTE(LOWER($J52),LOWER(D$3),"")))/LEN(D$3) -> 0 | E52: =SUM(B52:D52) -> 13 | F52: 2014 | G52: Retinoic acid signaling pathways in development and diseases. | H52: Das | I52: 24393720 | J52: Retinoic acid signaling pathways in development and diseases. Abstract: Retinoids comprise a group of compounds each composed of three basic parts: a trimethylated cyclohexene ring that is a bulky hydrophobic group, a conjugated tetraene side chain that functions as a linker unit, and a polar carbon-oxygen functional group. Biochemical conversion of carotenoid or other retinoids to retinoic acid (RA) is essential for normal regulation of a wide range of biological processes including development, differentiation, proliferation, and apoptosis. Retinoids regulate various physiological outputs by binding to nuclear receptors called retinoic acid receptors (RARs) and retinoid X receptors (RXRs), which themselves are DNA-binding transcriptional regulators. The functional response of RA and their receptors are modulated by a host of coactivators and corepressors. Retinoids are essential in the development and function of several organ systems; however, deregulated retinoid signaling can contribute to serious diseases. Several natural and synthetic retinoids are in clinical use or undergoing trials for treating specific diseases including cancer. In this review, we provide a broad overview on the importance of retinoids in development and various diseases, highlighting various retinoids in the drug discovery process, ranging all the way from retinoid chemistry to clinical uses and imaging.
A53: =HYPERLINK("http://www.ncbi.nlm.nih.gov/pubmed/" & I53,I53) -> 22320921 | B53: =(LEN($J53) - LEN(SUBSTITUTE(LOWER($J53),LOWER(B$3),"")))/LEN(B$3) -> 13 | C53: =(LEN($J53) - LEN(SUBSTITUTE(LOWER($J53),LOWER(C$3),"")))/LEN(C$3) -> 0 | D53: =(LEN($J53) - LEN(SUBSTITUTE(LOWER($J53),LOWER(D$3),"")))/LEN(D$3) -> 0 | E53: =SUM(B53:D53) -> 13 | F53: 2012 | G53: Retinoic acids and hepatic stellate cells in liver disease. | H53: Lee | I53: 22320921 | J53: Retinoic acids and hepatic stellate cells in liver disease. Abstract: Quiescent hepatic stellate cells (HSCs) in healthy liver store 80% of total liver retinols and release them depending on the extracellular retinol status. However, HSCs activated by liver injury lose their retinols and produce a considerable amount of extracellular matrix, subsequently leading to liver fibrosis. Emerging evidence suggests that retinols and their metabolites such as retinoic acids (RAs) contribute to liver regeneration, fibrosis and tumor. However, it is not clear yet why HSCs lose retinol, which enzymes are involved in the retinol metabolism of HSCs and what function of retinol metabolites on HSCs upon liver injury. Recently, our group and collaborators have demonstrated that during activation, HSCs not only lose retinols but also metabolize them into RAs by alcohol dehydrogenases and retinaldehyde dehydrogenases. As transcriptional factors, metabolized RAs induce retinoic acid early inducible-1 and suppressor of cytokine signaling 1 in HSCs, which plays an important role in the interaction between HSCs and natural killer cells. In addition, RAs released from HSCs may induce hepatic cannabinoid receptor 1 expression in alcoholic liver steatosis or regulate immune responses upon liver inflammation. The present review summarizes the role of endogenous metabolized RAs on HSCs themselves and on other liver cells including hepatocytes and immune cells. Moreover, the effects of exogenous retinol and RA treatments on HSCs and liver disease are discussed.
A54: =HYPERLINK("http://www.ncbi.nlm.nih.gov/pubmed/" & I54,I54) -> 22166499 | B54: =(LEN($J54) - LEN(SUBSTITUTE(LOWER($J54),LOWER(B$3),"")))/LEN(B$3) -> 13 | C54: =(LEN($J54) - LEN(SUBSTITUTE(LOWER($J54),LOWER(C$3),"")))/LEN(C$3) -> 0 | D54: =(LEN($J54) - LEN(SUBSTITUTE(LOWER($J54),LOWER(D$3),"")))/LEN(D$3) -> 0 | E54: =SUM(B54:D54) -> 13 | F54: 2011 | G54: Chemical pathology of homocysteine. V. Thioretinamide, thioretinaco, and cystathionine synthase function in degenerative diseases. | H54: McCully | I54: 22166499 | J54: Chemical pathology of homocysteine. V. Thioretinamide, thioretinaco, and cystathionine synthase function in degenerative diseases. Abstract: Hyperhomocysteinemia was first associated with degenerative disease by observation of accelerated arteriosclerosis in children with inherited disorders of cystathionine synthase, methionine synthase, and methylene tetrohydrofolate reductase. The metabolic blockade of sulfate synthesis from homocysteine thiolactone in malignant cells is ascribed to a deficiency of a chemopreventive derivative of homocysteine thiolactone that occurs in normal cells. Its chemical structure was elucidated by the organic synthesis of thioretinamide from retinoic acid and homocysteine thiolactone. Oxidation of the sulfur atom of homocysteine is inhibited in scorbutic guinea pigs, demonstrating ascorbate function in sulfate synthesis from homocysteine. Studies of homocysteine metabolism in protein energy malnutrition led to the conclusion that the biosynthesis of thioretinamide from the retinol of transthyretin is catalyzed by dehydroascorbate and superoxide generated from the heme oxygenase group of cystathionine synthase. Newly synthesized thioretinamide is complexed with cobalamin to form thioretinaco, which is activated by ozone and oxygen to function as the active site of oxidative phosphorylation. In accordance with the trophoblastic theory of cancer, pancreatic enzymes are believed to be oncolytic because they hydrolyze the homocysteinylated proteins, nucleic acids and glycosaminoglycans of malignant tissues. The clonal selection of malignant cells that are deficient in the heme oxygenase function of cystathionine synthase produces cells dependent upon glycolysis for ATP synthesis, since they are deficient in synthesis of thioretinamide, thioretinaco and thioretinaco ozonide. The vulnerable plaque of arteriosclerosis originates from complexes of microbes with homocysteinylated lipoproteins, obstructing vasa vasorum narrowed by endothelial dysfunction, causing arterial ischemia, and intimal micro-abscesses. Degenerative diseases may be ameliorated by a proposed therapeutic protocol of thioretinamide with pancreatic enzymes.
A55: =HYPERLINK("http://www.ncbi.nlm.nih.gov/pubmed/" & I55,I55) -> 19906796 | B55: =(LEN($J55) - LEN(SUBSTITUTE(LOWER($J55),LOWER(B$3),"")))/LEN(B$3) -> 0 | C55: =(LEN($J55) - LEN(SUBSTITUTE(LOWER($J55),LOWER(C$3),"")))/LEN(C$3) -> 12 | D55: =(LEN($J55) - LEN(SUBSTITUTE(LOWER($J55),LOWER(D$3),"")))/LEN(D$3) -> 1 | E55: =SUM(B55:D55) -> 13 | F55: 2010 | G55: Selective peroxisome proliferator-activated receptor gamma (PPARgamma) modulation as a strategy for safer therapeutic PPARgamma activation. | H55: Higgins | I55: 19906796 | J55: Selective peroxisome proliferator-activated receptor gamma (PPARgamma) modulation as a strategy for safer therapeutic PPARgamma activation. Abstract: Peroxisome proliferator-activated receptor gamma (PPARgamma) is a clinically validated target for treatment of insulin resistance. PPARgamma activation by full agonists such as thiazolidinediones has shown potent and durable glucose-lowering activity in patients with type 2 diabetes without the concern for hypoglycemia or gastrointestinal toxicities associated with some other medications used to treat this disease. However, thiazolidinediones are linked to safety and tolerability issues such as weight gain, fluid retention, edema, congestive heart failure, and bone fracture. Distinctive properties of PPARgamma provide the opportunity for selective modulation of the receptor such that desirable therapeutic effects may be attained without the unwanted effects of full activation. PPARgamma is a nuclear receptor that forms a complex with coreceptor RXR and a cell type- and cell state-specific array of coregulators to control gene transcription. PPARgamma affinity for these components, and hence transcriptional response, is determined by the conformational changes induced by ligand binding within a complex pocket with multiple interaction points. This molecular mechanism thereby offers the opportunity for selective modulation. A desirable selective PPARgamma modulator profile would include high-affinity interaction with the PPARgamma-binding pocket in a manner that leads to retention of the insulin-sensitizing activity that is characteristic of full agonists as well as mitigation of the effects leading to increased adiposity, fluid retention, congestive heart failure, and bone fracture. Examples of endogenous and synthetic selective PPARgamma modulator (SPPARM) ligands have been identified. SPPARM drug candidates are being tested clinically and provide support for this strategy.
A56: =HYPERLINK("http://www.ncbi.nlm.nih.gov/pubmed/" & I56,I56) -> 19260526 | B56: =(LEN($J56) - LEN(SUBSTITUTE(LOWER($J56),LOWER(B$3),"")))/LEN(B$3) -> 13 | C56: =(LEN($J56) - LEN(SUBSTITUTE(LOWER($J56),LOWER(C$3),"")))/LEN(C$3) -> 0 | D56: =(LEN($J56) - LEN(SUBSTITUTE(LOWER($J56),LOWER(D$3),"")))/LEN(D$3) -> 0 | E56: =SUM(B56:D56) -> 13 | F56: 2009 | G56: [Retinal degeneration diseases and the retinoid cycle]. | H56: Maeda | I56: 19260526 | J56: [Retinal degeneration diseases and the retinoid cycle]. Abstract: The retinoid cycle is a vitamin A metabolic circuit which occurs between the photoreceptor outer segment and the retinal pigmented epithelium to maintain visual function. Abnormalities in the retinoid cycle are involved in some hereditary retinal degenerative diseases and age-related retinal degeneration. Here, we summarize the entire process of the retinoid cycle and the pathophysiology of those retinal diseases due to molecular abnormalities of the cycle. Gene transfer and pharmacologic treatment have been developed based on recent studies revealing characteristic clinical features initiated by each aberrant reaction in the retinoid cycle. The molecular mechanisms of retinal degeneration caused by an abnormal retinoid cycle have been investigated intensively, and practical therapies have been introduced for currently incurable retinal diseases.
A57: =HYPERLINK("http://www.ncbi.nlm.nih.gov/pubmed/" & I57,I57) -> 19129679 | B57: =(LEN($J57) - LEN(SUBSTITUTE(LOWER($J57),LOWER(B$3),"")))/LEN(B$3) -> 1 | C57: =(LEN($J57) - LEN(SUBSTITUTE(LOWER($J57),LOWER(C$3),"")))/LEN(C$3) -> 11 | D57: =(LEN($J57) - LEN(SUBSTITUTE(LOWER($J57),LOWER(D$3),"")))/LEN(D$3) -> 1 | E57: =SUM(B57:D57) -> 13 | F57: 2009 | G57: Peroxisome proliferator-activated receptor gamma and cardiovascular diseases. | H57: Takano | I57: 19129679 | J57: Peroxisome proliferator-activated receptor gamma and cardiovascular diseases. Abstract: Peroxisome proliferator-activated receptors (PPARs) are members of the nuclear receptor superfamily and form heterodimers with retinoid X receptor. Three PPAR isoforms have been isolated and termed alpha, beta (or delta) and gamma. Although PPARgamma is expressed predominantly in adipose tissue and associated with adipocyte differentiation and glucose homeostasis, PPARgamma is also present in a variety of cell types. Synthetic antidiabetic thiazolidinediones (TZDs) are well known as ligands and activators for PPARgamma. After it was reported that activation of PPARgamma suppressed production of pro-inflammatory cytokines in activated macrophages, medical interest in PPARgamma has grown and there has been a huge research effort. PPARgamma is currently known to be implicated in various human chronic diseases such as diabetes mellitus, atherosclerosis, rheumatoid arthritis, inflammatory bowel disease, and Alzheimers disease. Many studies suggest that TZDs not only ameliorate insulin sensitivity, but also have pleiotropic effects on many tissues and cell types. Although activation of PPARgamma seems to have beneficial effects on cardiovascular diseases, the mechanisms by which PPARgamma ligands prevent their development are not fully understood. Recent data about the actions and its mechanisms of PPARgamma-dependent pathway in cardiovascular diseases are discussed here.
A58: =HYPERLINK("http://www.ncbi.nlm.nih.gov/pubmed/" & I58,I58) -> 15721857 | B58: =(LEN($J58) - LEN(SUBSTITUTE(LOWER($J58),LOWER(B$3),"")))/LEN(B$3) -> 1 | C58: =(LEN($J58) - LEN(SUBSTITUTE(LOWER($J58),LOWER(C$3),"")))/LEN(C$3) -> 11 | D58: =(LEN($J58) - LEN(SUBSTITUTE(LOWER($J58),LOWER(D$3),"")))/LEN(D$3) -> 1 | E58: =SUM(B58:D58) -> 13 | F58: 2005 | G58: Beneficial effects of PPAR-gamma ligands in ischemia-reperfusion injury, inflammation and shock. | H58: Abdelrahman | I58: 15721857 | J58: Beneficial effects of PPAR-gamma ligands in ischemia-reperfusion injury, inflammation and shock. Abstract: Peroxisome proliferator-activated receptor-gamma (PPAR-gamma) is a ligand-activated transcription factor belonging to the nuclear hormone receptor superfamily. PPAR-gamma regulates gene expression by forming a heterodimer with the retinoid X receptor (RXR) before binding to sequence-specific PPAR response elements (PPREs) in the promoter region of target genes, thereby regulating several metabolic pathways, including lipid biosynthesis and glucose metabolism. Thiazolidinediones (TZDs, i.e. rosiglitazone, pioglitazone), which are synthetic PPAR-gamma agonists, act as insulin sensitizers and are used in the treatment of type 2 diabetes. In the last few years, it has, however, become evident that the therapeutic effects of PPAR-gamma ligands reach far beyond their use as insulin sensitizers. Recently, PPAR-gamma has been implicated as a regulator of cellular inflammatory and ischemic responses. PPAR-gamma agonists may exert their anti-inflammatory effects by negatively regulating the expression of pro-inflammatory genes induced during macrophage differentiation and activation, by either PPAR-gamma-dependent or -independent mechanisms. Several lines of evidence suggest that TZDs protect the heart and other organs against the tissue injury caused by ischemia/reperfusion (I/R) injury and shock. This review discusses the anti-inflammatory signalling pathways activated by PPAR-gamma, as well as the potential therapeutic effects of PPAR-gamma agonists in animal models of ischemia/reperfusion, inflammation and shock.
A59: =HYPERLINK("http://www.ncbi.nlm.nih.gov/pubmed/" & I59,I59) -> 15032732 | B59: =(LEN($J59) - LEN(SUBSTITUTE(LOWER($J59),LOWER(B$3),"")))/LEN(B$3) -> 9 | C59: =(LEN($J59) - LEN(SUBSTITUTE(LOWER($J59),LOWER(C$3),"")))/LEN(C$3) -> 0 | D59: =(LEN($J59) - LEN(SUBSTITUTE(LOWER($J59),LOWER(D$3),"")))/LEN(D$3) -> 4 | E59: =SUM(B59:D59) -> 13 | F59: 2004 | G59: Retinoids and retinoid receptors in the control of energy balance: novel pharmacological strategies in obesity and diabetes. | H59: Villarroya | I59: 15032732 | J59: Retinoids and retinoid receptors in the control of energy balance: novel pharmacological strategies in obesity and diabetes. Abstract: Obesity and type II diabetes are closely related metabolic diseases with an increasing incidence worldwide. No clear-cut pharmacological treatment for these complex metabolic disturbances is available despite current efforts. New directions and perspectives for the pharmacological or nutritional treatment of these diseases should be defined. In recent years, a growing body of evidence shows that retinoids and retinoic acid receptors are involved in the control of biological aspects (e.g. adiposity and energy expenditure mechanisms), which offers great potential for research on the treatment of obesity and type II diabetes. All-trans retinoic acid is known to inhibit adipocyte differentiation, whereas, molecules activating the retinoid X-receptor (rexinoids) promote the differentiation of adipocytes. Treatment with rexinoids ameliorates glycemic control in rodent models of type II diabetes and obesity, although other findings indicate similar positive effects by inhibiting the receptor. Moreover, natural products of dietary origin, such as phytanic acid can activate RXR and thus, trigger adipose cell differentiation. Finally, the activation of retinoic acid receptors or retinoid X receptors has been reported to induce the gene expression of uncoupling proteins, which are mitochondrial proteins involved in the regulation of energy expenditure and fatty acid metabolism. Further research is required to exploit the capacities of the retinoid-dependent pathways of regulation of adiposity, insulin sensitivity and energy expenditure for drug development in metabolic disturbances.
A60: =HYPERLINK("http://www.ncbi.nlm.nih.gov/pubmed/" & I60,I60) -> 12055342 | B60: =(LEN($J60) - LEN(SUBSTITUTE(LOWER($J60),LOWER(B$3),"")))/LEN(B$3) -> 1 | C60: =(LEN($J60) - LEN(SUBSTITUTE(LOWER($J60),LOWER(C$3),"")))/LEN(C$3) -> 12 | D60: =(LEN($J60) - LEN(SUBSTITUTE(LOWER($J60),LOWER(D$3),"")))/LEN(D$3) -> 0 | E60: =SUM(B60:D60) -> 13 | F60: 2002 | G60: PPAR(gamma) and glucose homeostasis. | H60: Picard | I60: 12055342 | J60: PPAR(gamma) and glucose homeostasis. Abstract: Peroxisome proliferator-activated receptor gamma (PPARgamma) is a nuclear receptor involved in the control of metabolism. Research on PPARgamma is oriented towards understanding its role in insulin sensitization, which was inspired by the discovery that antidiabetic agents, the thiazolidinediones, were agonists for PPARgamma. PPARgamma stimulation improves glucose tolerance and insulin sensitivity in type 2 diabetic patients and in animal models of insulin resistance through mechanisms that are incompletely understood. Upon activation, PPARgamma heterodimerizes with retinoid X receptor, recruits specific cofactors, and binds to responsive DNA elements, thereby stimulating the transcription of target genes. Because PPARgamma is highly enriched in adipose tissue and because of its major role in adipocyte differentiation, it is thought that the effects of PPARgamma in adipose tissue are crucial to explain its role in insulin sensitization, but recent studies have highlighted the contribution of other tissues as well. Although relatively potent for their insulin-sensitizing action, currently marketed PPARgamma activators have some important undesirable side effects. These concerns led to the discovery of new ligands with potent antidiabetic properties but devoid of certain of these side effects. Data from human genetic studies and from PPARgamma heterozygous knockout mice indicate that a reduction in PPARgamma activity could paradoxically improve insulin sensitivity. These findings suggest that modulation of PPARgamma activity by partial agonists or compounds that affect cofactor recruitment might hold promise for the treatment of insulin resistance.
A61: =HYPERLINK("http://www.ncbi.nlm.nih.gov/pubmed/" & I61,I61) -> 11460037 | B61: =(LEN($J61) - LEN(SUBSTITUTE(LOWER($J61),LOWER(B$3),"")))/LEN(B$3) -> 13 | C61: =(LEN($J61) - LEN(SUBSTITUTE(LOWER($J61),LOWER(C$3),"")))/LEN(C$3) -> 0 | D61: =(LEN($J61) - LEN(SUBSTITUTE(LOWER($J61),LOWER(D$3),"")))/LEN(D$3) -> 0 | E61: =SUM(B61:D61) -> 13 | F61: 2001 | G61: [Acitretine]. | H61: Berbis | I61: 11460037 | J61: [Acitretine]. Abstract: Acitretin (Soriatane(R)) is an aromatic retinoïd (carboxylic acid metabolite of etretinate). Acitretin has a terminal elimination half-life of about 55 to 60 hours. However, concomitant intake of alcohol induces transformation to etretinate (lipophilic ester) which has a longer terminal elimination half life (84 to 168 days). Due to the teratogenic effect of acitretin, contraception should be used during therapy and 2 years afterwards. Acitretin monotherapy is effective in pustular psoriasis and psoriatic palmo-plantar keratoderma. In the other forms of psoriasis, combination with phototherapy (PUVA, UVB) or topical therapy is necessary (calcipotriol, corticosteroids). Acitretin is effective in cutaneous disorders of keratinization (ichtyosis, palmo-plantar keratoderma, Dariers disease). Severe cutaneous forms of lichen planus were recently recognized as indications of acitretin treatment; 35 to 40 mg daily is the mean effective dosage in adults (0.5 mg/kg/j in children). Acitretin was shown effective in preventing the development of new skin carcinomas in predisposed patients (Xeroderma pigmentosum, immunosupression). Acitretin is a potent teratogen. Mucocutaneous side effects are varied (cheilitis, dry mucosae, xerosis, palmo-plantar peeling, hair loss.), dose-dependent and reversible. Biological side-effects consist principally in elevations of transaminases (5 to 8% of patients). Acute hepatotoxic reactions are rare. Hyperlipidemia is another side-effect commonly observed. Bony changes (ligament calcifications, osteoporosis) have been reported with various incidence. In children, growth and development have to be monitored. Combination of acitretin with potentially hepatotoxic molecules (methotrexate) is contraindicated, as is combination with cyclines (risk of intracranial hypertension).
A62: =HYPERLINK("http://www.ncbi.nlm.nih.gov/pubmed/" & I62,I62) -> 8538617 | B62: =(LEN($J62) - LEN(SUBSTITUTE(LOWER($J62),LOWER(B$3),"")))/LEN(B$3) -> 1 | C62: =(LEN($J62) - LEN(SUBSTITUTE(LOWER($J62),LOWER(C$3),"")))/LEN(C$3) -> 12 | D62: =(LEN($J62) - LEN(SUBSTITUTE(LOWER($J62),LOWER(D$3),"")))/LEN(D$3) -> 0 | E62: =SUM(B62:D62) -> 13 | F62: 1995 | G62: PPAR: a mediator of peroxisome proliferator action. | H62: Green | I62: 8538617 | J62: PPAR: a mediator of peroxisome proliferator action. Abstract: Peroxisome proliferators are a diverse group of rodent hepatocarcinogens that include hypolipidemic drugs, plasticizers and herbicides. These compounds when administered to rats and mice produce a dramatic increase in the size and number of hepatic peroxisomes and increase the capacity of the hepatocyte to metabolise fatty acids by inducing peroxisomal beta-oxidation enzymes such as acyl CoA oxidase. Members of the steroid hormone receptor superfamily of ligand-activated transcription factors have been identified that can be activated by peroxisome proliferators and are therefore called peroxisome proliferator activated receptors (PPAR). There appear to be four PPAR isoforms within vertebrates termed alpha, beta, gamma and delta and the alpha isoform appears to be the one that is most strongly activated by synthetic peroxisome proliferators such as Wy-14,643. It has been demonstrated that PPAR alpha forms a heterodimer with the retinoid X receptor (RXR) and binds to specific DNA sequences located upstream of peroxisome proliferator responsive genes. It is therefore suggested that PPARs mediate the pleiotropic effects of peroxisome proliferators including the regulation of gene expression and rodent hepatocarcinogenesis. Rodents fed a high-fat diet develop peroxisome proliferation and many of the enzymes induced by peroxisome proliferators are involved in fatty acid metabolism. Furthermore, PPARs are activated by a wide range of fatty acids and hypolipidemic drugs, such as clofibrate, that lower triglyceride levels in man. Although it remains to be determined whether fatty acids and peroxisome proliferators bind directly to any PPAR these data suggest that the natural role of PPARs in man is to regulate lipid homeostasis. Interestingly, hypolipidaemic drugs fail to elicit peroxisome proliferation in human hepatocytes although hypolipidaemic effects are observed in patients. A further understanding of the role of PPAR in man will require: (1) the identification of additional human PPARs combined with functional analyses using these and other nuclear receptors that can antagonise PPAR action; (2) a comparison of the expression of these different receptors in human tissues; (3) a clearer understanding of how peroxisome proliferators and fatty acids activate PPAR; and (4) sequence analysis of the regulatory regions in the human counterparts of rodent peroxisome proliferator responsive genes. Together, these data will provide an important mechanism-based framework to assess the hazard of peroxisome proliferators to humans.
A63: =HYPERLINK("http://www.ncbi.nlm.nih.gov/pubmed/" & I63,I63) -> 2258296 | B63: =(LEN($J63) - LEN(SUBSTITUTE(LOWER($J63),LOWER(B$3),"")))/LEN(B$3) -> 13 | C63: =(LEN($J63) - LEN(SUBSTITUTE(LOWER($J63),LOWER(C$3),"")))/LEN(C$3) -> 0 | D63: =(LEN($J63) - LEN(SUBSTITUTE(LOWER($J63),LOWER(D$3),"")))/LEN(D$3) -> 0 | E63: =SUM(B63:D63) -> 13 | F63: 1990 | G63: [Retinoid-induced changes of the bones and ligaments]. | H63: Zelger | I63: 2258296 | J63: [Retinoid-induced changes of the bones and ligaments]. Abstract: Bone and ligament lesions induced by systemic retinoids (premature epiphyseal closure, osteophytes, calcification of ligaments, osteoporosis, etc.) are radiologically nonspecific. We assessed the incidence of quot;possibly retinoid-induced bone and ligament lesionsquot; (MRKBV) in 46 patients (aged 24-82 years) who had been treated with various systemic retinoids for a variety of chronic dermatoses for an average of 4.5 years and compared the data with observations in a similarly structured group of control patients. All types of MRKBV were found more frequently in the retinoid group (41.3% vs 30.2%) and were more severe. Differences were only slight, however, being statistically significant only for moderate and severe MRKBV and for calcification of ligaments. Within the retinoid group, MRKBV were strikingly correlated with age, whereas no correlation was found with duration of treatment, mean daily and cumulative retinoid dose, underlying dermatosis, type of retinoid used or presence of other retinoid side-effects. Within the control group, MRKBV were also correlated with age, although to a lesser degree. We conclude that retinoids amplify and accelerate physiological and pathophysiological remodelling of the bones, thereby producing a varied range of lesions, which are characteristic for the age and the individual constitution of the patient treated. Retinoid-induced bone and ligament lesions, as a rule, do not cause subjective symptoms and are not associated with predictive or accompanying laboratory values. Also, MRKBV are not paralleled by other retinoid-induced side-effects (hyperlipidaemia, elevation of liver transaminases). In 16 cases in which bone X-ray had been performed prior to retinoid treatment, no indication of reversibility of MRKBV was found.(ABSTRACT TRUNCATED AT 250 WORDS)
A64: =HYPERLINK("http://www.ncbi.nlm.nih.gov/pubmed/" & I64,I64) -> 27768859 | B64: =(LEN($J64) - LEN(SUBSTITUTE(LOWER($J64),LOWER(B$3),"")))/LEN(B$3) -> 2 | C64: =(LEN($J64) - LEN(SUBSTITUTE(LOWER($J64),LOWER(C$3),"")))/LEN(C$3) -> 9 | D64: =(LEN($J64) - LEN(SUBSTITUTE(LOWER($J64),LOWER(D$3),"")))/LEN(D$3) -> 1 | E64: =SUM(B64:D64) -> 12 | F64: 2016 | G64: 4-Hydroxyalkenal-activated PPARδ mediates hormetic interactions in diabetes. | H64: Sasson | I64: 27768859 | J64: 4-Hydroxyalkenal-activated PPARδ mediates hormetic interactions in diabetes. Abstract: NlmCategory=UNASSIGNEDActivated peroxisome proliferator-activated receptor-δ (PPARδ) induces the expression of genes encoding enzymes that metabolize fatty acids and carbohydrate. Attempts to identify cellular activators of PPARδ produced large lists of various fatty acids and their metabolic derivatives; however, there is no consensus on specific and selective binding interactions of natural ligands with PPARδ. Most models on binding interactions within the ligand binding domain (LBD) of PPARδ have been derived from analyses of PPARδ-LBD crystals formed with synthetic low molecular weight ligands. Nonetheless, crystals of the whole receptor with natural ligands or of its heterodimer with its cognate retinoid X receptor (RXR) are not yet available for analysis. We have found that 4-hydroxyalkenals, non-enzymatic peroxidation products of polyunsaturated fatty acids (PUFA), namely, 4-hydroxy-2E,6Z-dodecadienal (4-HDDE) and 4-hydroxy-2E-nonenal (4-HNE), activate PPARδ in vascular endothelial cells and insulin-secreting beta cells, respectively. In both cases activated PPARδ induced adaptive responses that allowed the cells to adjust to ambient stressful metabolic conditions. This review article addresses the interactions of 4-hydroxyalkenals with PPARδ and the resulting hormetic interactions in cells exposed to nutrient overload conditions.
A65: =HYPERLINK("http://www.ncbi.nlm.nih.gov/pubmed/" & I65,I65) -> 27320332 | B65: =(LEN($J65) - LEN(SUBSTITUTE(LOWER($J65),LOWER(B$3),"")))/LEN(B$3) -> 2 | C65: =(LEN($J65) - LEN(SUBSTITUTE(LOWER($J65),LOWER(C$3),"")))/LEN(C$3) -> 6 | D65: =(LEN($J65) - LEN(SUBSTITUTE(LOWER($J65),LOWER(D$3),"")))/LEN(D$3) -> 4 | E65: =SUM(B65:D65) -> 12 | F65: 2016 | G65: Retinoid X Receptor Ligands With Anti-type 2 Diabetic Activity. | H65: Morishita | I65: 27320332 | J65: Retinoid X Receptor Ligands With Anti-type 2 Diabetic Activity. Abstract: NlmCategory=UNASSIGNEDPeroxisome proliferator-activated receptor gamma (PPARγ) is a ligand-dependent transcription factor that plays an important role in regulating glucose metabolism. Agonists of PPARγ, such as thiazolidinediones, have anti-hyperglycemic activity, and are therefore used to treat type 2 diabetes. However, the functional activity of PPARγ is manifested by heterodimers of PPARγ with retinoid X receptors (RXRs). Since RXR/PPARγ heterodimers can be activated not only by PPARγ agonists, but also by RXR agonists, RXR agonists are also attractive candidates for treatment of type 2 diabetes. However, RXR full agonists have side effects, such as triglyceride elevation and hypothyroidism. Therefore, RXR partial agonists have been developed as new anti-type 2 diabetes agent candidates with reduced side effects. In addition, RXR antagonists also show therapeutic potency in type 2 diabetes patients. Here, we review RXR full agonists, RXR antagonists, and RXR modulators (partial agonists) with reported anti-diabetic effects, and we discuss their potential suitability as anti-diabetic agents.
A66: =HYPERLINK("http://www.ncbi.nlm.nih.gov/pubmed/" & I66,I66) -> 25430543 | B66: =(LEN($J66) - LEN(SUBSTITUTE(LOWER($J66),LOWER(B$3),"")))/LEN(B$3) -> 1 | C66: =(LEN($J66) - LEN(SUBSTITUTE(LOWER($J66),LOWER(C$3),"")))/LEN(C$3) -> 10 | D66: =(LEN($J66) - LEN(SUBSTITUTE(LOWER($J66),LOWER(D$3),"")))/LEN(D$3) -> 1 | E66: =SUM(B66:D66) -> 12 | F66: 2015 | G66: Pleiotropic role of PPARγ in intracerebral hemorrhage: an intricate system involving Nrf2, RXR, and NF-κB. | H66: Zhao | I66: 25430543 | J66: Pleiotropic role of PPARγ in intracerebral hemorrhage: an intricate system involving Nrf2, RXR, and NF-κB. Abstract: Intracerebral hemorrhage (ICH) is a subtype of stroke involving formation of hematoma within brain parenchyma, which accounts for 8-15% of all strokes in Western societies and 20-30% among Asian populations, and has a 1-year mortality rate gt;50%. The high mortality and severe morbidity make ICH a major public health problem. Only a few evidence-based targeted treatments are used for ICH management, and interventions focus primarily on supportive care and comorbidity prevention. Even in patients who survive the ictus, extravasated blood (including plasma components) and subsequent intrahematoma hemolytic products trigger a series of adverse events within the brain parenchyma, leading to secondary brain injury, edema and severe neurological deficits or death. Although the hematoma in humans gradually resolves within months, full restoration of neurological function can be slow and often incomplete, leaving survivors with devastating neurological deficits. During past years, peroxisome proliferator-activated receptor gamma (PPARγ) transcription factor and its agonists received recognition as important players in regulating not only glucose and lipid metabolism (which underlies its therapeutic effect in type 2 diabetes mellitus), and more recently, as an instrumental pleiotropic regulator of antiinflammation, antioxidative regulation, and phagocyte-mediated cleanup processes. PPARγ agonists have emerged as potential therapeutic target for stroke. The use of PPARγ as a therapeutic target appears to have particularly strong compatibility toward pathogenic components of ICH. In addition to its direct genomic effect, PPARγ may interact with transcription factor, NF-κB, which may underlie many aspects of the antiinflammatory effect of PPARγ. Furthermore, PPARγ appears to regulate expression of Nrf2, another transcription factor and master regulator of detoxification and antioxidative regulation. Finally, the synergistic costimulation of PPARγ and retinoid X receptor, RXR, may play an additional role in the therapeutic modulation of PPARγ function. In this article, we outline the main components of the role of PPARγ in ICH pathogenesis.
A67: =HYPERLINK("http://www.ncbi.nlm.nih.gov/pubmed/" & I67,I67) -> 24524207 | B67: =(LEN($J67) - LEN(SUBSTITUTE(LOWER($J67),LOWER(B$3),"")))/LEN(B$3) -> 0 | C67: =(LEN($J67) - LEN(SUBSTITUTE(LOWER($J67),LOWER(C$3),"")))/LEN(C$3) -> 11 | D67: =(LEN($J67) - LEN(SUBSTITUTE(LOWER($J67),LOWER(D$3),"")))/LEN(D$3) -> 1 | E67: =SUM(B67:D67) -> 12 | F67: 2014 | G67: Peroxisome proliferator-activated receptors and their ligands: nutritional and clinical implications--a review. | H67: Grygiel-Górniak | I67: 24524207 | J67: Peroxisome proliferator-activated receptors and their ligands: nutritional and clinical implications--a review. Abstract: Peroxisome proliferator-activated receptors are expressed in many tissues, including adipocytes, hepatocytes, muscles and endothelial cells; however, the affinity depends on the isoform of PPAR, and different distribution and expression profiles, which ultimately lead to different clinical outcomes. Because they play an important role in lipid and glucose homeostasis, they are called lipid and insulin sensors. Their actions are limited to specific tissue types and thus, reveal a characteristic influence on target cells. PPARα mainly influences fatty acid metabolism and its activation lowers lipid levels, while PPARγ is mostly involved in the regulation of the adipogenesis, energy balance, and lipid biosynthesis. PPARβ/δ participates in fatty acid oxidation, mostly in skeletal and cardiac muscles, but it also regulates blood glucose and cholesterol levels. Many natural and synthetic ligands influence the expression of these receptors. Synthetic ligands are widely used in the treatment of dyslipidemia (e.g. fibrates--PPARα activators) or in diabetes mellitus (e.g. thiazolidinediones--PPARγ agonists). New generation drugs--PPARα/γ dual agonists--reveal hypolipemic, hypotensive, antiatherogenic, anti-inflammatory and anticoagulant action while the overexpression of PPARβ/δ prevents the development of obesity and reduces lipid accumulation in cardiac cells, even during a high-fat diet. Precise data on the expression and function of natural PPAR agonists on glucose and lipid metabolism are still missing, mostly because the same ligand influences several receptors and a number of reports have provided conflicting results. To date, we know that PPARs have the capability to accommodate and bind a variety of natural and synthetic lipophilic acids, such as essential fatty acids, eicosanoids, phytanic acid and palmitoylethanolamide. A current understanding of the effects of PPARs, their molecular mechanisms and the role of these receptors in nutrition and therapeutic treatment are delineated in this paper.
A68: =HYPERLINK("http://www.ncbi.nlm.nih.gov/pubmed/" & I68,I68) -> 23281051 | B68: =(LEN($J68) - LEN(SUBSTITUTE(LOWER($J68),LOWER(B$3),"")))/LEN(B$3) -> 10 | C68: =(LEN($J68) - LEN(SUBSTITUTE(LOWER($J68),LOWER(C$3),"")))/LEN(C$3) -> 0 | D68: =(LEN($J68) - LEN(SUBSTITUTE(LOWER($J68),LOWER(D$3),"")))/LEN(D$3) -> 2 | E68: =SUM(B68:D68) -> 12 | F68: 2013 | G68: Retinoids: Potent regulators of metabolism. | H68: Brun | I68: 23281051 | J68: Retinoids: Potent regulators of metabolism. Abstract: Retinoids (vitamin A and its analogs) are highly potent regulators of cell differentiation, cell proliferation, and apoptosis. Because of these activities, retinoids have been most extensively studied in the contexts of embryonic development and of proliferative diseases, especially cancer and skin disease. Recently, there has been considerable new research interest focused on gaining understanding of the roles that retinoids and/or retinoid-related proteins may have in the development of metabolic diseases, primarily obesity, diabetes, and dyslipidemia. This review will summarize recent advances that have been made in these areas, focusing on the role of retinoids in modulating adipogenesis, the roles of retinoids and retinoid-related proteins as signaling molecules linking obesity with the development of type II diabetes, the roles of retinoids in pancreatic β-cell biology/insulin secretion, and the actions of retinoids in hepatic steatosis.
A69: =HYPERLINK("http://www.ncbi.nlm.nih.gov/pubmed/" & I69,I69) -> 20182540 | B69: =(LEN($J69) - LEN(SUBSTITUTE(LOWER($J69),LOWER(B$3),"")))/LEN(B$3) -> 11 | C69: =(LEN($J69) - LEN(SUBSTITUTE(LOWER($J69),LOWER(C$3),"")))/LEN(C$3) -> 0 | D69: =(LEN($J69) - LEN(SUBSTITUTE(LOWER($J69),LOWER(D$3),"")))/LEN(D$3) -> 1 | E69: =SUM(B69:D69) -> 12 | F69: 2010 | G69: The retinal pigment epithelium: something more than a constituent of the blood-retinal barrier--implications for the pathogenesis of diabetic retinopathy. | H69: Simó | I69: 20182540 | J69: The retinal pigment epithelium: something more than a constituent of the blood-retinal barrier--implications for the pathogenesis of diabetic retinopathy. Abstract: The retinal pigment epithelium (RPE) is an specialized epithelium lying in the interface between the neural retina and the choriocapillaris where it forms the outer blood-retinal barrier (BRB). The main functions of the RPE are the following: (1) transport of nutrients, ions, and water, (2) absorption of light and protection against photooxidation, (3) reisomerization of all-trans-retinal into 11-cis-retinal, which is crucial for the visual cycle, (4) phagocytosis of shed photoreceptor membranes, and (5) secretion of essential factors for the structural integrity of the retina. An overview of these functions will be given. Most of the research on the physiopathology of diabetic retinopathy has been focused on the impairment of the neuroretina and the breakdown of the inner BRB. By contrast, the effects of diabetes on the RPE and in particular on its secretory activity have received less attention. In this regard, new therapeutic strategies addressed to modulating RPE impairment are warranted.
A70: =HYPERLINK("http://www.ncbi.nlm.nih.gov/pubmed/" & I70,I70) -> 15670663 | B70: =(LEN($J70) - LEN(SUBSTITUTE(LOWER($J70),LOWER(B$3),"")))/LEN(B$3) -> 1 | C70: =(LEN($J70) - LEN(SUBSTITUTE(LOWER($J70),LOWER(C$3),"")))/LEN(C$3) -> 11 | D70: =(LEN($J70) - LEN(SUBSTITUTE(LOWER($J70),LOWER(D$3),"")))/LEN(D$3) -> 0 | E70: =SUM(B70:D70) -> 12 | F70: 2004 | G70: Molecular mechanisms of alcoholic fatty liver: role of peroxisome proliferator-activated receptor alpha. | H70: Crabb | I70: 15670663 | J70: Molecular mechanisms of alcoholic fatty liver: role of peroxisome proliferator-activated receptor alpha. Abstract: Normal function of the peroxisome proliferator-activated receptor alpha (PPARalpha) is crucial for the regulation of hepatic fatty acid metabolism. Fatty acids serve as ligands for PPARalpha, and when fatty acid levels increase, activation of PPARalpha induces a battery of fatty acid-metabolizing enzymes to restore fatty acid levels to normal. Hepatic fatty acid levels are increased during ethanol consumption. However, results of in vitro work showed that ethanol metabolism inhibited the ability of PPARalpha to bind DNA and activate reporter genes. This observation has been further studied in mice. Four weeks of ethanol feeding of C57BL/6J mice also impairs fatty acid catabolism in liver by blocking PPARalpha-mediated responses. Ethanol feeding decreased the level of retinoid X receptor alpha (RXRalpha) as well as the ability of PPARalpha/RXR in liver nuclear extracts to bind its consensus sequence, and the levels of mRNAs for several PPARalpha-regulated genes were reduced [long-chain acyl coenzyme A (acyl-CoA) dehydrogenase and medium-chain acyl-CoA dehydrogenase] or failed to be induced (acyl-CoA dehydrogenase, liver carnitine palmitoyl-CoA transferase I, very long-chain acyl-CoA synthetase, very long-chain acyl-CoA dehydrogenase) in livers of the ethanol-fed animals. Consistent with this finding, ethanol feeding did not induce the rate of fatty acid beta-oxidation, as assayed in liver homogenates. Inclusion of WY14,643, a PPARalpha agonist, in the diet restored the DNA-binding activity of PPARalpha/RXR, induced mRNA levels of several PPARalpha target genes, stimulated the rate of fatty acid beta-oxidation in liver homogenates, and prevented fatty liver in ethanol-fed animals. Blockade of PPARalpha function during ethanol consumption contributes to the development of alcoholic fatty liver, which can be overcome by WY14,643.
A71: =HYPERLINK("http://www.ncbi.nlm.nih.gov/pubmed/" & I71,I71) -> 14749265 | B71: =(LEN($J71) - LEN(SUBSTITUTE(LOWER($J71),LOWER(B$3),"")))/LEN(B$3) -> 1 | C71: =(LEN($J71) - LEN(SUBSTITUTE(LOWER($J71),LOWER(C$3),"")))/LEN(C$3) -> 10 | D71: =(LEN($J71) - LEN(SUBSTITUTE(LOWER($J71),LOWER(D$3),"")))/LEN(D$3) -> 1 | E71: =SUM(B71:D71) -> 12 | F71: 2004 | G71: The biology of peroxisome proliferator-activated receptors: relationship with lipid metabolism and insulin sensitivity. | H71: Ferré | I71: 14749265 | J71: The biology of peroxisome proliferator-activated receptors: relationship with lipid metabolism and insulin sensitivity. Abstract: Peroxisome proliferator-activated receptors (PPARs) are transcription factors belonging to the superfamily of nuclear receptors. Three isoforms (alpha, delta, and gamma) have been described. They act on DNA response elements as heterodimers with the nuclear retinoic acid receptor. Their natural activating ligands are fatty acids and lipid-derived substrates. PPAR-alpha is present in liver, heart, and, to a lesser extent, skeletal muscle. When activated, it promotes fatty acid oxidation, ketone body synthesis, and glucose sparing. Fibrates, which are used as hypolipidemic drugs, are ligands of PPAR-alpha. PPAR-delta is ubiquitous and could also favor fatty acid oxidation in tissues in which PPAR-alpha is absent or less expressed. PPAR-gamma is expressed in adipose tissue, lower intestine, and cells involved in immunity. Activation of PPAR-gamma induces the differentiation of preadipocytes into adipocytes and stimulates triglyceride storage. Thiazolidinediones are compounds used as hypoglycemic, muscle insulin-sensitizing agents in type 2 diabetes. Unexpectedly, they are activators of PPAR-gamma. Their action on muscle insulin sensitivity may be secondary to the lowering of circulating lipids on PPAR-gamma activation and to the secretion by adipocytes of insulin-sensitizing hormones such as adiponectin, all promoting glucose utilization. The PPARs are thus major regulators of lipid and glucose metabolism, allowing adaptation to the prevailing nutritional environment.
A72: =HYPERLINK("http://www.ncbi.nlm.nih.gov/pubmed/" & I72,I72) -> 14704336 | B72: =(LEN($J72) - LEN(SUBSTITUTE(LOWER($J72),LOWER(B$3),"")))/LEN(B$3) -> 12 | C72: =(LEN($J72) - LEN(SUBSTITUTE(LOWER($J72),LOWER(C$3),"")))/LEN(C$3) -> 0 | D72: =(LEN($J72) - LEN(SUBSTITUTE(LOWER($J72),LOWER(D$3),"")))/LEN(D$3) -> 0 | E72: =SUM(B72:D72) -> 12 | F72: 2004 | G72: Assessing vitamin A status: past, present and future. | H72: Tanumihardjo | I72: 14704336 | J72: Assessing vitamin A status: past, present and future. Abstract: Xerophthalmia classification was traditionally used to identify populations with vitamin A deficiency. Currently, night blindness and dark adaptometry have been proposed as population assessment methods. While eye signs and function tests are still used in areas where vitamin A deficiency is severe, a subclinical vitamin A deficiency is more prevalent. Serum and breast milk retinol concentrations are used to identify vitamin A deficiency risk. However, in healthy individuals, serum retinol concentrations are homeostatically controlled and do not begin to decline until liver reserves of vitamin A are dangerously low. Moreover, serum retinol and retinol binding protein (RBP) concentrations fall during times of infection. The RBP:transthyretin ratio may help to determine if serum retinol concentrations are depressed by infection. Other methods better reflect liver reserves of vitamin A, the quot;goldquot; standard. The relative dose response and modified relative dose response tests involve giving a small dose of retinyl or dehydroretinyl ester, respectively, and determining a response in the serum at about 5 h. A new response test where retinoyl beta-glucuronide is administered and the degree of hydrolysis to retinoic acid is measured has been investigated. Unlike isotope dilution tests, the dose response tests lack utility in defining the total body reserve of vitamin A. The deuterated retinol isotope dilution test has been used in several different groups. Recently, a new isotope assay was developed using 13C-retinyl acetate and gas chromatography-combustion-isotope ratio mass spectrometry for analysis. Thus, having many choices of vitamin A assessment methods, laboratory sophistication and resources available will usually dictate which methods are chosen.
A73: =HYPERLINK("http://www.ncbi.nlm.nih.gov/pubmed/" & I73,I73) -> 11697231 | B73: =(LEN($J73) - LEN(SUBSTITUTE(LOWER($J73),LOWER(B$3),"")))/LEN(B$3) -> 2 | C73: =(LEN($J73) - LEN(SUBSTITUTE(LOWER($J73),LOWER(C$3),"")))/LEN(C$3) -> 7 | D73: =(LEN($J73) - LEN(SUBSTITUTE(LOWER($J73),LOWER(D$3),"")))/LEN(D$3) -> 3 | E73: =SUM(B73:D73) -> 12 | F73: 2001 | G73: PPAR gamma/RXR as a molecular target for diabetes. | H73: Lenhard | I73: 11697231 | J73: PPAR gamma/RXR as a molecular target for diabetes. Abstract: Type 2 diabetes is associated with insulin resistance in peripheral tissues, such as muscle and fat. Novel therapies that improve insulin action include ligands that bind and activate the nuclear receptors peroxisome proliferator activating receptor gamma (PPAR gamma) and retinoid X receptor (RXR). PPAR gamma/RXR form heterodimers that regulate transcription of genes involved in insulin action, adipocyte differentiation, lipid metabolism and inflammation. PPAR gamma activators include prostanoids, fatty acids, thiazolidinediones and N-(2-benzoylphenyl)tyrosine analogues. RXR ligands include naturally occurring retinoic acid and synthetic rexinoids. Selective ligands for these receptors improve metabolic abnormalities associated with type 2 diabetes, such as hyperglycemia, hyperlipidemia, insulin resistance and other cardiovascular risk factors. Although adipose tissue mediates some of the effects of PPAR gamma/RXR ligands, other tissues also regulate the effects of these receptors. The activity of the PPAR gamma/RXR heterodimer is influenced by posttranslational modifications, receptor turnover, polymorphisms, splice variants, coactivators and corepressors. This article reviews recent developments in research on these receptors, with particular emphasis on metabolic effects, ligand selectivity, structure and regulation of the PPAR gamma/RXR heterodimer.
A74: =HYPERLINK("http://www.ncbi.nlm.nih.gov/pubmed/" & I74,I74) -> 9777794 | B74: =(LEN($J74) - LEN(SUBSTITUTE(LOWER($J74),LOWER(B$3),"")))/LEN(B$3) -> 11 | C74: =(LEN($J74) - LEN(SUBSTITUTE(LOWER($J74),LOWER(C$3),"")))/LEN(C$3) -> 0 | D74: =(LEN($J74) - LEN(SUBSTITUTE(LOWER($J74),LOWER(D$3),"")))/LEN(D$3) -> 1 | E74: =SUM(B74:D74) -> 12 | F74: 1998 | G74: Future trends: a new generation of retinoids. | H74: Chandraratna | I74: 9777794 | J74: Future trends: a new generation of retinoids. Abstract: The existence of several different types of retinoid receptors, response elements, and cofactors means that retinoid physiology is mediated by multiple discrete pathways and is highly complex. As a result, non-selective retinoids have a multitude of physiologic effects and are usually associated with toxicity problems that limit their therapeutic usefulness. In contrast, because receptor-selective retinoids have a more focused and targeted action, they are likely to have a better therapeutic index. Tazarotene is the first of a new generation of receptor-selective retinoids. Its actions are targeted on 2 retinoic acid receptors (RARs), RAR-beta and RAR-gamma. Current retinoid research is leading to the development not only of many more novel receptor-selective retinoids but also of novel types of function-selective retinoids such as RAR inverse agonists and RAR antagonists. These retinoids are expected to be of clinical benefit not only in dermatology but also in oncology, diabetes, and diseases associated with the human papilloma virus.
A75: =HYPERLINK("http://www.ncbi.nlm.nih.gov/pubmed/" & I75,I75) -> 9739911 | B75: =(LEN($J75) - LEN(SUBSTITUTE(LOWER($J75),LOWER(B$3),"")))/LEN(B$3) -> 12 | C75: =(LEN($J75) - LEN(SUBSTITUTE(LOWER($J75),LOWER(C$3),"")))/LEN(C$3) -> 0 | D75: =(LEN($J75) - LEN(SUBSTITUTE(LOWER($J75),LOWER(D$3),"")))/LEN(D$3) -> 0 | E75: =SUM(B75:D75) -> 12 | F75: 1997 | G75: [Gilbert disease and isotretinoin]. | H75: Le Gal | I75: 9739911 | J75: [Gilbert disease and isotretinoin]. Abstract: INTRODUCTION : Because of the potential hepatotoxicity of retinoids, prescription of isotretinoin is always very carefully made in healthy subjects, and prohibited in case of concomitant hepatopathy. Gilberts syndrome consists of chronic, mild, unconjugated hyperbilirubinemia. In this syndrome, isotretinoin has been reported twice to be perfectly tolerated, and once even beneficial. We report here a new case of good tolerance and even improvement of a Gilberts syndrome during isotretinoin therapy. CASE REPORT : A 17-year-old man with Gilberts syndrome presented with a nodulocystic acne. Topical agents had been inefficient, and cyclines bad tolerated. Thus isotretinoin has been gradually introduced, with a regular monitoring of the liver function. We observed a steady decrease of the bilirubinemia during the course of isotretinoin, and then a reappearance of hyperbilirubinemia as soon as posology was diminished and particularly after completion of isotretinoin therapy. DISCUSSION : A review of the literature finds only very few cases of hepatic injuries caused by isotretinoin, contrary to etretinate. Safety of isotretinoin in Gilberts syndrome was first observed in 1984, but its beneficial effects have only recently been described by Wang et al., and we report here a similar case. Pharmacological mechanisms remain hypothetic. However, considering the prevalence of Gilberts syndrome and its usual first expression during postpubertal period, it seems to us interesting for therapeutic practice to know that isotretinoin is not less safe in these patients.
A76: =HYPERLINK("http://www.ncbi.nlm.nih.gov/pubmed/" & I76,I76) -> 7610285 | B76: =(LEN($J76) - LEN(SUBSTITUTE(LOWER($J76),LOWER(B$3),"")))/LEN(B$3) -> 12 | C76: =(LEN($J76) - LEN(SUBSTITUTE(LOWER($J76),LOWER(C$3),"")))/LEN(C$3) -> 0 | D76: =(LEN($J76) - LEN(SUBSTITUTE(LOWER($J76),LOWER(D$3),"")))/LEN(D$3) -> 0 | E76: =SUM(B76:D76) -> 12 | F76: 1995 | G76: [Advances in vitamin A and retinoid-binding proteins]. | H76: Torres y Torres | I76: 7610285 | J76: [Advances in vitamin A and retinoid-binding proteins]. Abstract: The recent interest in the study of vitamin A is due to the discovery of an increasing variety of functions, actions or associations of this vitamin with cellular differentiation of epithelial tissues, growth, reproduction and vision. This review describes the recent advances on the metabolism of vitamin A especially in regard to the retinoid-binding proteins in the transport of hydrophobic retinoids and their participation in the transformation of the different retinoids in the organism as well as in the interior of the cell. Seven binding proteins have been discovered and well characterized: retinol binding protein (RBP); cellular retinol-binding protein (CRBP); cellular retinol-binding protein type two (CRBP-II); cellular retinoic acid binding protein (CRABP); cellular retinoic acid binding protein type two (CRABP-II); cellular retinal-binding protein (CRALBP) and interphotoreceptor retinol-binding protein (IRBP). Their specific roles are presented. Also the function and mechanisms of the regulation of gene expression by retinoic acid is described.
A77: =HYPERLINK("http://www.ncbi.nlm.nih.gov/pubmed/" & I77,I77) -> 8056148 | B77: =(LEN($J77) - LEN(SUBSTITUTE(LOWER($J77),LOWER(B$3),"")))/LEN(B$3) -> 4 | C77: =(LEN($J77) - LEN(SUBSTITUTE(LOWER($J77),LOWER(C$3),"")))/LEN(C$3) -> 8 | D77: =(LEN($J77) - LEN(SUBSTITUTE(LOWER($J77),LOWER(D$3),"")))/LEN(D$3) -> 0 | E77: =SUM(B77:D77) -> 12 | F77: 1994 | G77: Peroxisome proliferator-activated receptors: finding the orphan a home. | H77: Green | I77: 8056148 | J77: Peroxisome proliferator-activated receptors: finding the orphan a home. Abstract: The peroxisome proliferator-activated receptor (PPAR) is a member of the steroid hormone receptor superfamily and is activated by a variety of fibrate hypolipidaemic drugs and non-genotoxic rodent hepatocarcinogens that are collectively termed peroxisome proliferators. A key marker of peroxisome proliferator action is the peroxisomal enzyme acyl CoA oxidase, which is elevated about ten fold in the livers of treated rodents. Additional peroxisome proliferator responsive genes include other peroxisomal beta-oxidation enzymes and members of the cytochrome P450 IVA family. A peroxisome proliferator response element (PPRE), consisting of an almost perfect direct repeat of the sequence TGACCT spaced by a single base pair, has been identified in the upstream regulatory sequences of each of these genes. The retinoid X receptor (RXR) forms a heterodimer with PPAR and binds to the PPRE. Furthermore, the RXR ligand, 9-cis retinoic acid, enhances PPAR action. Retinoids may therefore modulate the action of peroxisome proliferators and PPAR may interfere with retinoid action, perhaps providing one mechanism to explain the toxicity of peroxisome proliferators. Interestingly, a variety of fatty acids can activate PPAR supporting the suggestion that fatty acids, or their acyl CoA derivatives, may be the natural ligands of PPAR and that the physiological role of PPAR is to regulate fatty acid homeostasis. Taken together, the discovery of PPAR has opened up new opportunities in understanding how lipid homeostasis is regulated, how the fibrate hypolipidaemic drugs may act and should lead to improvements in the assessment of human risk from peroxisome proliferators based upon a better understanding of their mechanism of action.
A78: =HYPERLINK("http://www.ncbi.nlm.nih.gov/pubmed/" & I78,I78) -> 7832047 | B78: =(LEN($J78) - LEN(SUBSTITUTE(LOWER($J78),LOWER(B$3),"")))/LEN(B$3) -> 12 | C78: =(LEN($J78) - LEN(SUBSTITUTE(LOWER($J78),LOWER(C$3),"")))/LEN(C$3) -> 0 | D78: =(LEN($J78) - LEN(SUBSTITUTE(LOWER($J78),LOWER(D$3),"")))/LEN(D$3) -> 0 | E78: =SUM(B78:D78) -> 12 | F78: 1994 | G78: The function of vitamin A in cellular growth and differentiation, and its roles during pregnancy and lactation. | H78: Ross | I78: 7832047 | J78: The function of vitamin A in cellular growth and differentiation, and its roles during pregnancy and lactation. Abstract: Recent advances in the molecular biology of the retinoids have provided a mechanistic explanation for the observations, first made several decades ago, that vitamin A profoundly influences the differentiation of tissues throughout the body. A central concept has recently emerged, namely that retinoids seldom exist quot;freequot; in solution but, rather, are nearly always associated with specific retinoid-binding proteins. In plasma, these include RBP and the chylomicron whereas, in cells two distinct classes of retinoid-binding proteins exist: the cellular (cytoplasmic) proteins (CRBPs and CRABPs) and the nuclear receptors proteins (RARs and RXRs). Whereas the cellular retinoid-binding proteins serve as buffers and as chaperones during metabolism (Ross, 1993b), the nuclear receptors are now recognized to be the direct mediators of retinoid actions on the genome. Both the cytoplasmic and nuclear classes of retinoid-binding proteins are expressed early in development and are proposed to control the concentration of retinoic acid and the transcription of retinoid-responsive genes, respectively. Given the profound effects of retinoic deficiency or excess on the developing fetus, it is not surprising that mechanisms have evolved to control the placental transfer of vitamin A. Transfer is nearly uniform over a rather wide range of maternal dietary vitamin A intake. The importance of RBP in transporting retinol to tissues is suggested by the observations that the visceral yolk sac and the liver of the fetus transcribe and translate RBP. In comparison to pregnancy, vitamin A transport during lactation is much more responsive to variations in maternal vitamin A intake. The young of mothers with good vitamin A nutriture may thus accumulate significant retinol reserves during the suckling period. Conversely, young nursed by mothers with poor vitamin A status and low intake during lactation may fail to develop adequate stores and be vulnerable to vitamin A deficiency if the post-weaning diet is also poor in vitamin A. In populations with low vitamin A status, the lactation period provides an excellent window of opportunity for supplementing mothers and, indirectly, their offspring, with vitamin A to replenish the mothers vitamin A reserves and assure that the infants growth and development are not limited by an inadequate quantity of this essential nutrient.
A79: =HYPERLINK("http://www.ncbi.nlm.nih.gov/pubmed/" & I79,I79) -> 3054426 | B79: =(LEN($J79) - LEN(SUBSTITUTE(LOWER($J79),LOWER(B$3),"")))/LEN(B$3) -> 12 | C79: =(LEN($J79) - LEN(SUBSTITUTE(LOWER($J79),LOWER(C$3),"")))/LEN(C$3) -> 0 | D79: =(LEN($J79) - LEN(SUBSTITUTE(LOWER($J79),LOWER(D$3),"")))/LEN(D$3) -> 0 | E79: =SUM(B79:D79) -> 12 | F79: 1988 | G79: Adverse effects of retinoids. | H79: David | I79: 3054426 | J79: Adverse effects of retinoids. Abstract: Oral retinoids, synthetic derivatives of vitamin A, have been used in the treatment of various dermatoses over the last decade. The most useful drugs have been isotretinoin (13-cis-retinoic acid) for nodulocystic acne and etretinate for psoriasis vulgaris. Retinoids are also effective in the treatment of papulosquamous dermatoses other than psoriasis (i.e. inherited disorders of keratinisation), cutaneous T-cell lymphoma and in chemotherapy and chemoprevention of cancer. However, systemic administration of these compounds is frequently associated with mucocutaneous side effects, liver toxicity and abnormalities of serum lipid profiles, which might be related to an increased risk of coronary heart disease. Of particular concern is the teratogenic effect of all retinoids, which limits their use in women of child-bearing potential. Chronic toxicities from long term therapy with retinoids may result in skeletal abnormalities, usually mimicking diffuse idiopathic hyperostosis syndrome. Furthermore, the chronic use of retinoids in children may inhibit their growth due to premature epiphyseal closure. In contrast to other side effects of retinoids which are dose dependent and reversible upon withdrawal of the drug, it seems unlikely that bone abnormalities will resolve after discontinuation of the medication. In view of the wide spectrum of toxicities, treatment with retinoids requires appropriate selection of patients, careful consideration of the benefit to risk ratio for each individual, periodic monitoring of clinical response and laboratory tests. Clinicians should use special management techniques in order to prevent or minimize slide effects. Extensive investigations are currently being conducted in an attempt to develop new retinoids which will improve the therapeutic efficacy and reduce unwanted reactions.
A80: =HYPERLINK("http://www.ncbi.nlm.nih.gov/pubmed/" & I80,I80) -> 363444 | B80: =(LEN($J80) - LEN(SUBSTITUTE(LOWER($J80),LOWER(B$3),"")))/LEN(B$3) -> 12 | C80: =(LEN($J80) - LEN(SUBSTITUTE(LOWER($J80),LOWER(C$3),"")))/LEN(C$3) -> 0 | D80: =(LEN($J80) - LEN(SUBSTITUTE(LOWER($J80),LOWER(D$3),"")))/LEN(D$3) -> 0 | E80: =SUM(B80:D80) -> 12 | F80: 1978 | G80: Retinoids, a new class of compounds with prophylactic and therapeutic activities in oncology and dermatology. | H80: Mayer | I80: 363444 | J80: Retinoids, a new class of compounds with prophylactic and therapeutic activities in oncology and dermatology. Abstract: A review of recent investigations in the retinoid field is presented. Retinoic acid exerts a prophylactic and a therapeutic effect on chemically induced benign and malignant epithelial tumors in mice. In clinical studies positive therapeutic results have been obtained in patients with preneoplastic and neoplastic epithelial lesions. However, treatment with retinoic acid is limited by serious side effects (hypervitaminosis A syndrome). Therefore, the synthesis of analogs of retinoic acid (retinoids) possessing a more favorable therapeutic ratio has been initiated. Among a large series of synthesized compounds, certain aromatic analogs proved to have a particularly favorable therapeutic ratio. The structure-activity relationship of the most active retinoids is discussed including some biological data concerning prophylaxis and therapy of epithelial tumors. The total synthesis of retinoids according to various building schemes is discussed in detail. Methods for the synthesis of the cyclic end group, of the polyene chain component, and of the full retinoid skeleton are described. Metabolic studies of retinoic acid and of the most active retinoid, as well as the synthesis of some isolated metabolites are outlined. Suggestions concerning the mechanism of action of retinoids are made. Some clinical results on the treatment of acne, psoriasis and precancerous conditions are reported.
A81: =HYPERLINK("http://www.ncbi.nlm.nih.gov/pubmed/" & I81,I81) -> 26729422 | B81: =(LEN($J81) - LEN(SUBSTITUTE(LOWER($J81),LOWER(B$3),"")))/LEN(B$3) -> 11 | C81: =(LEN($J81) - LEN(SUBSTITUTE(LOWER($J81),LOWER(C$3),"")))/LEN(C$3) -> 0 | D81: =(LEN($J81) - LEN(SUBSTITUTE(LOWER($J81),LOWER(D$3),"")))/LEN(D$3) -> 0 | E81: =SUM(B81:D81) -> 11 | F81: 2016 | G81: Vitamin A in regulation of insulin responsiveness: mini review. | H81: Noy | I81: 26729422 | J81: Vitamin A in regulation of insulin responsiveness: mini review. Abstract: Vitamin A, retinol, circulates in blood bound to retinol-binding protein (RBP4) which, in turn, associates with another serum protein, transthyretin (TTR), to form a ternary retinol-RBP4-TTR complex. At some tissues, retinol-bound (holo-) RBP4 is recognised by a receptor termed stimulated by retinoic acid 6 (STRA6) which transports retinol into cells. This mini-review summarises evidence demonstrating that, in addition to functioning as a retinol transporter, STRA6 is also a signalling receptor which is activated by holo-RBP4. The data show that STRA6-mediated retinol transport induces receptor phosphorylation, in turn activating a Janus kinases2/signal transducers and activators of transcription (STAT)3/5 cascade that culminates in induction of STAT target genes. STRA6-mediated retinol transport and cell signalling are inter-dependent, and both functions critically rely on intracellular retinol trafficking and metabolism. Hence, STRA6 couples sensing of vitamin A homeostasis and metabolism to cell signalling, allowing it to control important biological functions. For example, by inducing the expression of the STAT target gene suppressor of cytokine signalling 3, STRA6 potently suppresses insulin responses. These observations provide a rationale for understanding the reports that elevation in serum levels of RBP4, often observed in obese mice and human subjects, causes insulin resistance. The observations indicate that the holo-RBP4 /STRA6 signalling cascade may comprise an important link through which obesity leads to insulin resistance and suggest that the pathway may be a novel target for treatment of metabolic diseases.
A82: =HYPERLINK("http://www.ncbi.nlm.nih.gov/pubmed/" & I82,I82) -> 26311412 | B82: =(LEN($J82) - LEN(SUBSTITUTE(LOWER($J82),LOWER(B$3),"")))/LEN(B$3) -> 11 | C82: =(LEN($J82) - LEN(SUBSTITUTE(LOWER($J82),LOWER(C$3),"")))/LEN(C$3) -> 0 | D82: =(LEN($J82) - LEN(SUBSTITUTE(LOWER($J82),LOWER(D$3),"")))/LEN(D$3) -> 0 | E82: =SUM(B82:D82) -> 11 | F82: 2015 | G82: Retinoid roles in blocking hepatocellular carcinoma. | H82: Shirakami | I82: 26311412 | J82: Retinoid roles in blocking hepatocellular carcinoma. Abstract: Hepatocellular carcinoma (HCC) is a major health issue in many countries. The prognosis of HCC is still poor due to its high recurrence rate and its resistance to chemotherapy. Retinoids have long been known to have a connection with liver diseases, including HCC. Many experimental and clinical investigations have demonstrated associations between retinoids and hepatic disease, including the loss of retinoid activity in HCC cell lines and decreased hepatic retinoid stores and altered retinoid signaling in patients with cirrhosis and HCC. Based on these findings, preclinical and clinical investigations of retinoid effects on HCC have been undertaken. Recently, clinical trial results for the use of a synthetic retinoid, acyclic retinoid (ACR), to prevent HCC recurrence were published. In addition, extensive experimental studies on the action of retinoids in liver disease, including chronic viral hepatitis and non-alcoholic fatty liver disease (NAFLD), which lead to HCC have been performed. In the first section of this review, we will summarize the effectiveness and roles of retinoid for treating liver disease and blocking HCC. Subsequently, we will focus on ACR actions in blocking HCC.
A83: =HYPERLINK("http://www.ncbi.nlm.nih.gov/pubmed/" & I83,I83) -> 25019074 | B83: =(LEN($J83) - LEN(SUBSTITUTE(LOWER($J83),LOWER(B$3),"")))/LEN(B$3) -> 11 | C83: =(LEN($J83) - LEN(SUBSTITUTE(LOWER($J83),LOWER(C$3),"")))/LEN(C$3) -> 0 | D83: =(LEN($J83) - LEN(SUBSTITUTE(LOWER($J83),LOWER(D$3),"")))/LEN(D$3) -> 0 | E83: =SUM(B83:D83) -> 11 | F83: 2014 | G83: The multifaceted nature of retinoid transport and metabolism. | H83: Li | I83: 25019074 | J83: The multifaceted nature of retinoid transport and metabolism. Abstract: Since their discovery over a century ago, retinoids have been the most studied of the fat-soluble vitamins. Unlike most vitamins, retinoids are stored at relatively high concentrations in the body to buffer against nutritional insufficiency. Until recently, it was thought that the sole important retinoid delivery pathway to tissues involved retinol bound to retinol-binding protein (RBP4). More recent findings, however, indicate that retinoids can be delivered to tissues through multiple overlapping delivery pathways, involving chylomicrons, very low density lipoprotein (VLDL) and low density lipoprotein (LDL), retinoic acid bound to albumin, water soluble β-glucuronides of retinol and retinoic acid, and provitamin A carotenoids. This review will focus on explaining this evolving understanding of retinoid metabolism and transport within the body.
A84: =HYPERLINK("http://www.ncbi.nlm.nih.gov/pubmed/" & I84,I84) -> 24523914 | B84: =(LEN($J84) - LEN(SUBSTITUTE(LOWER($J84),LOWER(B$3),"")))/LEN(B$3) -> 0 | C84: =(LEN($J84) - LEN(SUBSTITUTE(LOWER($J84),LOWER(C$3),"")))/LEN(C$3) -> 0 | D84: =(LEN($J84) - LEN(SUBSTITUTE(LOWER($J84),LOWER(D$3),"")))/LEN(D$3) -> 11 | E84: =SUM(B84:D84) -> 11 | F84: 2014 | G84: Taiwanese vegetarians and omnivores: dietary composition, prevalence of diabetes and IFG. | H84: Chiu | I84: 24523914 | J84: Taiwanese vegetarians and omnivores: dietary composition, prevalence of diabetes and IFG. Abstract: INTRODUCTION : Vegetarian diets have been shown to improve glucose metabolism and reduce risk for diabetes in Westerners but whether Chinese vegetarian diets have the same benefits is unknown. METHODS : We evaluated the association between diet and diabetes/impaired fasting glucose (IFG) among 4384 Taiwanese Buddhist volunteers and identified diabetes/IFG cases from a comprehensive review of medical history and fasting plasma glucose. RESULTS : Vegetarians had higher intakes of carbohydrates, fiber, calcium, magnesium, total and non-heme iron, folate, vitamin A, and lower intakes of saturated fat, cholesterol, and vitamin B12. Besides avoiding meat and fish, vegetarians had higher intakes of soy products, vegetables, whole grains, but similar intakes of dairy and fruits, compared with omnivores. The crude prevalence of diabetes in vegetarians versus omnivores is 0.6% versus 2.3% in pre-menopausal women, 2.8% versus 10% in menopausal women, and 4.3% versus 8.1% in men. Polytomous logistic regression adjusting for age, body mass index, family history of diabetes, education, leisure time physical activity, smoking and alcohol, showed that this vegetarian diet was negatively associated with diabetes and IFG in men (OR for diabetes: 0.49, 95% CI: 0.28-0.89; OR for IFG: 0.66, 95% CI: 0.46-0.95); in pre-menopausal women (OR for diabetes: 0.26, 95% CI: 0.06-1.21; OR for IFG: 0.60, 95% CI: 0.35-1.04); and in menopausal women (OR for diabetes: 0.25, 95% CI: 0.15-0.42; OR for IFG: 0.73, 95% CI: 0.56-0.95). CONCLUSION : We found a strong protective association between Taiwanese vegetarian diet and diabetes/IFG, after controlling for various potential confounders and risk factors.
A85: =HYPERLINK("http://www.ncbi.nlm.nih.gov/pubmed/" & I85,I85) -> 23855293 | B85: =(LEN($J85) - LEN(SUBSTITUTE(LOWER($J85),LOWER(B$3),"")))/LEN(B$3) -> 11 | C85: =(LEN($J85) - LEN(SUBSTITUTE(LOWER($J85),LOWER(C$3),"")))/LEN(C$3) -> 0 | D85: =(LEN($J85) - LEN(SUBSTITUTE(LOWER($J85),LOWER(D$3),"")))/LEN(D$3) -> 0 | E85: =SUM(B85:D85) -> 11 | F85: 2013 | G85: Retinoids and their target genes in liver functions and diseases. | H85: Shiota | I85: 23855293 | J85: Retinoids and their target genes in liver functions and diseases. Abstract: Retinoids have been reported to prevent several kinds of cancers, including hepatocellular carcinoma (HCC). Retinoic acid (RA) coupled with retinoic acid receptor/retinoid X receptor heterodimer exerts its functions by regulating its target genes. We previously reported that transgenic mice, in which RA signaling is suppressed in a hepatocyte-specific manner, developed liver cancer at a high rate, and that disruption of RA functions led to the increased oxidative stress via aberrant metabolisms of lipid and iron, indicating that retinoids play an important role in liver pathophysiology. These data suggest that exploring the metabolism of retinoids in liver diseases and their target genes provides us with useful information to understand the liver functions and diseases. Consequently, the altered metabolism of retinoids was observed in liver diseases, including non-alcoholic fatty liver disease. In this review, we summarize the metabolism of retinoids in the liver, highlight the functions of retinoids in HCC, non-alcoholic fatty liver disease, and alcoholic liver disease, and discuss the target genes of RA. Investigation of retinoids in the liver will likely help us identify novel therapies and diagnostic modalities for HCC.
A86: =HYPERLINK("http://www.ncbi.nlm.nih.gov/pubmed/" & I86,I86) -> 23344030 | B86: =(LEN($J86) - LEN(SUBSTITUTE(LOWER($J86),LOWER(B$3),"")))/LEN(B$3) -> 11 | C86: =(LEN($J86) - LEN(SUBSTITUTE(LOWER($J86),LOWER(C$3),"")))/LEN(C$3) -> 0 | D86: =(LEN($J86) - LEN(SUBSTITUTE(LOWER($J86),LOWER(D$3),"")))/LEN(D$3) -> 0 | E86: =SUM(B86:D86) -> 11 | F86: 2012 | G86: The controversial role of retinoic acid in fibrotic diseases: analysis of involved signaling pathways. | H86: Zhou | I86: 23344030 | J86: The controversial role of retinoic acid in fibrotic diseases: analysis of involved signaling pathways. Abstract: Fibrotic diseases, such as liver, pulmonary and renal fibrosis, are common end-stage conditions and represent a major global health problem. Furthermore, effective therapeutic measures are presently unavailable. Extracellular matrix accumulation is the most prominent characteristic in the pathogenesis of fibrotic disease. Retinoic acid, including all-trans retinoic acid, 9-cis and 13-cis retinoic acid, play important roles in various physiological processes, such as in embryonic development, reproduction, vision, cell growth, differentiation, apoptosis and inflammation. Present studies report that retinoic acid treatment may affect various processes involved in the onset and progression of fibrotic disease. However, the therapeutic effects of retinoic acid in such diseases remain controversial. Several reports indicate that retinoic acid positively affects the progression of fibrosis and alleviates the accumulation of the extracellular matrix, whereas other studies report the opposite; that retinoic acid exacerbates fibrosis and induces extracellular matrix accumulation. Signaling pathways might be an important influencing factor and differences in signaling events might be responsible for the contradictory role of retinoic acid in fibrotic diseases. Since there was no review available that investigated the role of retinoic acid and the signaling pathways involved, we retrospectively studied the literature and provide a comprehensive analysis of retinoic acids role in fibrotic diseases, and provide an overview of the signal transduction pathways involved in its pathogenesis.
A87: =HYPERLINK("http://www.ncbi.nlm.nih.gov/pubmed/" & I87,I87) -> 21057731 | B87: =(LEN($J87) - LEN(SUBSTITUTE(LOWER($J87),LOWER(B$3),"")))/LEN(B$3) -> 1 | C87: =(LEN($J87) - LEN(SUBSTITUTE(LOWER($J87),LOWER(C$3),"")))/LEN(C$3) -> 9 | D87: =(LEN($J87) - LEN(SUBSTITUTE(LOWER($J87),LOWER(D$3),"")))/LEN(D$3) -> 1 | E87: =SUM(B87:D87) -> 11 | F87: 2010 | G87: The nuclear hormone receptor PPARγ as a therapeutic target in major diseases. | H87: Schmidt | I87: 21057731 | J87: The nuclear hormone receptor PPARγ as a therapeutic target in major diseases. Abstract: The peroxisome proliferator-activated receptor γ (PPARγ belongs to the nuclear hormone receptor superfamily and regulates gene expression upon heterodimerization with the retinoid X receptor by ligating to peroxisome proliferator response elements (PPREs) in the promoter region of target genes. Originally, PPARγ was identified as being essential for glucose metabolism. Thus, synthetic PPARγ agonists, the thiazolidinediones (TZDs), are used in type 2 diabetes therapy as insulin sensitizers. More recent evidence implied an important role for the nuclear hormone receptor PPARγ in controlling various diseases based on its anti-inflammatory, cell cycle arresting, and proapoptotic properties. In this regard, expression of PPARγ is not restricted to adipocytes, but is also found in immune cells, such as B and T lymphocytes, monocytes, macrophages, dendritic cells, and granulocytes. The expression of PPARγ in lymphoid organs and its modulation of macrophage inflammatory responses, lymphocyte proliferation, cytokine production, and apoptosis underscore its immune regulating functions. Moreover, PPARγ expression is found in tumor cells, where its activation facilitates antitumorigenic actions. This review provides an overview about the role of PPARγ as a possible therapeutic target approaching major, severe diseases, such as sepsis, cancer, and atherosclerosis.
A88: =HYPERLINK("http://www.ncbi.nlm.nih.gov/pubmed/" & I88,I88) -> 15834303 | B88: =(LEN($J88) - LEN(SUBSTITUTE(LOWER($J88),LOWER(B$3),"")))/LEN(B$3) -> 1 | C88: =(LEN($J88) - LEN(SUBSTITUTE(LOWER($J88),LOWER(C$3),"")))/LEN(C$3) -> 9 | D88: =(LEN($J88) - LEN(SUBSTITUTE(LOWER($J88),LOWER(D$3),"")))/LEN(D$3) -> 1 | E88: =SUM(B88:D88) -> 11 | F88: 2005 | G88: Peroxisome proliferator-activated receptor-gamma is a new therapeutic target in sepsis and inflammation. | H88: Zingarelli | I88: 15834303 | J88: Peroxisome proliferator-activated receptor-gamma is a new therapeutic target in sepsis and inflammation. Abstract: Peroxisome proliferator-activated receptor-gamma (PPARgamma) is a member of the nuclear receptor superfamily and a ligand-activated transcription factor with pleiotropic effects on lipid metabolism, inflammation, and cell proliferation. PPARgamma forms a heterodimer with the retinoid X receptor and upon ligand-activation binds to the PPAR response element in the promoter of genes to allow transcription. The class of insulin-sensitizing drugs known as thiazolidinediones have been identified as specific PPARgamma agonists that have allowed the characterization of many genes regulated by PPARgamma. Thiazolidinediones include rosiglitazone, pioglitazone, troglitazone, and ciglitazone. In addition to these synthetic agonists, cyclopentenone prostaglandins of the J2 series have been identified as natural ligands for PPARgamma. Several in vitro and in vivo studies have demonstrated that pharmacological activation of PPARgamma by 15-deoxy-Delta(12,14)-PGJ2 (15d-PGJ2) or thiazolidinediones has anti-inflammatory effects. This article provides an overview of the role of PPARgamma in regulating the inflammatory response and emphasizes the potential efficacy of PPARgamma ligands as novel therapeutic approaches beyond diabetes in sepsis, inflammation, and reperfusion injury.
A89: =HYPERLINK("http://www.ncbi.nlm.nih.gov/pubmed/" & I89,I89) -> 15374828 | B89: =(LEN($J89) - LEN(SUBSTITUTE(LOWER($J89),LOWER(B$3),"")))/LEN(B$3) -> 1 | C89: =(LEN($J89) - LEN(SUBSTITUTE(LOWER($J89),LOWER(C$3),"")))/LEN(C$3) -> 10 | D89: =(LEN($J89) - LEN(SUBSTITUTE(LOWER($J89),LOWER(D$3),"")))/LEN(D$3) -> 0 | E89: =SUM(B89:D89) -> 11 | F89: 2005 | G89: Peroxisome proliferator-activated receptors and cardiovascular remodeling. | H89: Schiffrin | I89: 15374828 | J89: Peroxisome proliferator-activated receptors and cardiovascular remodeling. Abstract: Peroxisome proliferator-activated receptors (PPARs) are nuclear receptors that heterodimerize with the retinoid X receptor and then modulate the function of many target genes. Three PPARs are known: alpha, beta/delta, and gamma. The better known are PPAR-alpha and PPAR-gamma, which may be activated by different synthetic agonists, although the endogenous ligands are unknown. PPAR-alpha is involved in fatty acid oxidation and expressed in the liver, kidney, and skeletal muscle, whereas PPAR-gamma is involved in fat cell differentiation, lipid storage, and insulin sensitivity. However, both have been shown to be present in variable amounts in cardiovascular tissues, including endothelium, smooth muscle cells, macrophages, and the heart. The activators of PPAR-alpha (fibrates) and PPAR-gamma (thiazolidinediones or glitazones) antagonized the actions of angiotensin II in vivo and in vitro and exerted cardiovascular antioxidant and anti-inflammatory effects. PPAR activators lowered blood pressure, induced favorable effects on the heart, and corrected vascular structure and endothelial dysfunction in several rodent models of hypertension. Activators of PPARs may become therapeutic agents useful in the prevention of cardiovascular disease beyond their effects on carbohydrate and lipid metabolism. Some side effects, such as weight gain, as well as documented aggravation of advanced heart failure through fluid retention by glitazones, may, however, limit their therapeutic application in prevention of cardiovascular disease.
A90: =HYPERLINK("http://www.ncbi.nlm.nih.gov/pubmed/" & I90,I90) -> 14704332 | B90: =(LEN($J90) - LEN(SUBSTITUTE(LOWER($J90),LOWER(B$3),"")))/LEN(B$3) -> 11 | C90: =(LEN($J90) - LEN(SUBSTITUTE(LOWER($J90),LOWER(C$3),"")))/LEN(C$3) -> 0 | D90: =(LEN($J90) - LEN(SUBSTITUTE(LOWER($J90),LOWER(D$3),"")))/LEN(D$3) -> 0 | E90: =SUM(B90:D90) -> 11 | F90: 2004 | G90: Regulation of hepatic retinol metabolism: perspectives from studies on vitamin A status. | H90: Ross | I90: 14704332 | J90: Regulation of hepatic retinol metabolism: perspectives from studies on vitamin A status. Abstract: Liver vitamin A (retinol) is obtained from several sources and is subject to multiple fates. Lecithin:retinol acyltransferase (LRAT), a microsomal enzyme present in liver and several other retinol-metabolizing tissues, esterifies retinol that is associated with a cellular retinol-binding protein, CRBP or CRBP-II. Recent research has shown that LRAT mRNA expression and enzyme activity are regulated in a tissue-specific manner. In vitamin A-deficient liver, both LRAT mRNA and activity are significantly down-regulated as well as rapidly induced after the administration of vitamin A or its principal hormonal metabolite, retinoic acid (RA). In long-term feeding studies and the metabolic steady state, liver LRAT is expressed dose-dependently across a wide range of dietary vitamin A. Additionally, an RA-inducible cytochrome P450, P450RAI or CYP26, is down-regulated in liver during vitamin A deficiency and up-regulated dose-dependently by dietary vitamin A and exogenous RA. Based on these results, we propose that LRAT and CYP26 serve as two molecular mechanisms, coordinately regulated by all-trans-RA, to control the availability of retinol and RA, respectively. The LRAT reaction, besides providing a readily retrievable storage form of vitamin A, may regulate the availability of retinol to other pathways, while the CYP26 reaction may serve to prevent a detrimental quot;overshootquot; of RA concentration. Moreover, retinoid metabolism in the liver is likely to be closely integrated with that in peripheral tissues through the rapid interorgan transfer and recycling of retinoids, affecting the whole-body economy of vitamin A.
A91: =HYPERLINK("http://www.ncbi.nlm.nih.gov/pubmed/" & I91,I91) -> 10637371 | B91: =(LEN($J91) - LEN(SUBSTITUTE(LOWER($J91),LOWER(B$3),"")))/LEN(B$3) -> 10 | C91: =(LEN($J91) - LEN(SUBSTITUTE(LOWER($J91),LOWER(C$3),"")))/LEN(C$3) -> 0 | D91: =(LEN($J91) - LEN(SUBSTITUTE(LOWER($J91),LOWER(D$3),"")))/LEN(D$3) -> 1 | E91: =SUM(B91:D91) -> 11 | F91: 2000 | G91: Therapeutic applications for ligands of retinoid receptors. | H91: Thacher | I91: 10637371 | J91: Therapeutic applications for ligands of retinoid receptors. Abstract: Synthetic retinoids, ligands for the RAR and RXR members of the steroid/thyroid superfamily of nuclear hormone receptors, are used for the treatment of psoriasis, acne, photoaging and cancer. Retinoid mechanisms of action for these conditions largely involve effects on epithelial differentiation and modulation of inflammation with some impact on the immune system. Retinoid medicinal chemistry in recent years has identified ligands highly specific for one of the three RAR subtypes (RAR-alpha) and for the RXR family of receptors, as well as antagonists for the RARs, RARalpha and the RXRs. Structure-activity relationships among the novel retinoid classes are reviewed along with potential therapeutic activities and side effects. RAR-alpha specific retinoids inhibit cancer cell growth but lack other retinoid toxicities, including skin irritation now ascribed to RAR-gama. RXR-specific retinoids lower blood glucose in animal models of type 2 diabetes albeit with a potential for mild hypothyroidism. Function-selective retinoids, especially a class of RAR antagonists called inverse agonists, have unexpected gene regulatory activity. Given the diverse properties and tissue distributions of the retinoid receptors, synthesis of additional classes of receptor-specific and function-selective ligands has the potential to produce novel therapeutic applications.
A92: =HYPERLINK("http://www.ncbi.nlm.nih.gov/pubmed/" & I92,I92) -> 9706226 | B92: =(LEN($J92) - LEN(SUBSTITUTE(LOWER($J92),LOWER(B$3),"")))/LEN(B$3) -> 11 | C92: =(LEN($J92) - LEN(SUBSTITUTE(LOWER($J92),LOWER(C$3),"")))/LEN(C$3) -> 0 | D92: =(LEN($J92) - LEN(SUBSTITUTE(LOWER($J92),LOWER(D$3),"")))/LEN(D$3) -> 0 | E92: =SUM(B92:D92) -> 11 | F92: 1998 | G92: Lipases and carboxylesterases: possible roles in the hepatic metabolism of retinol. | H92: Harrison | I92: 9706226 | J92: Lipases and carboxylesterases: possible roles in the hepatic metabolism of retinol. Abstract: The formation of hydrolysis of retinyl esters are key processes in the metabolism of the fat-soluble micronutrient vitamin A. Long-chain acyl esters of retinol are the major chemical form of vitamin A (retinoid) stored in the body. Retinyl esters are found in a variety of tissues and cell types, but most of the total body retinoid is accounted for by the retinyl esters stored in the liver. Thus, these esters represent the major endogenous source of retinoid that can be delivered to peripheral tissues for conversion to biologically active forms. This review summarizes current knowledge about the identity, function, and regulation of the hepatic enzymes potentially involved in catalyzing the hydrolysis of retinyl esters. These enzymes include several known and characterized lipases and carboxylesterases. Although there is accumulating evidence that these enzymes function as retinyl ester hydrolases in vitro, it is not clear which play important physiological roles in hepatic retinyl ester metabolism.
A93: =HYPERLINK("http://www.ncbi.nlm.nih.gov/pubmed/" & I93,I93) -> 1617858 | B93: =(LEN($J93) - LEN(SUBSTITUTE(LOWER($J93),LOWER(B$3),"")))/LEN(B$3) -> 11 | C93: =(LEN($J93) - LEN(SUBSTITUTE(LOWER($J93),LOWER(C$3),"")))/LEN(C$3) -> 0 | D93: =(LEN($J93) - LEN(SUBSTITUTE(LOWER($J93),LOWER(D$3),"")))/LEN(D$3) -> 0 | E93: =SUM(B93:D93) -> 11 | F93: 1992 | G93: Pharmacokinetics and therapeutic efficacy of retinoids in skin diseases. | H93: Larsen | I93: 1617858 | J93: Pharmacokinetics and therapeutic efficacy of retinoids in skin diseases. Abstract: The retinoids are a class of compounds that includes the natural forms and synthetic analogues of vitamin A. Isotretinoin, often referred to as a first generation retinoid, may be of considerable benefit to patients with severe, recalcitrant acne. Etretinate and acitretin, 2 aromatic compounds representing the second generation, have found their major success in the treatment of psoriasis, particularly in combination with more traditional therapies. Retinoid therapy is associated with a distinctive adverse effect profile typical of hypervitaminosis A; thus, it is especially important that fertile women undergoing retinoid therapy adhere to a contraceptive regimen. These drugs are extensively metabolised and only traces of unchanged drugs are eliminated in urine. The terminal elimination half-lives of isotretinoin, etretinate and acitretin after long term treatment are up to 20h, 120 days and 48h, respectively. Because of lack of definite correlation between plasma concentration and desired pharmacological effects, in conjunction with the very pronounced inter- and intraindividual variation in systemic availability (15 to 90%) after oral administration of these drugs, initial dosages in individual patients can only be roughly judged on the basis of the general pharmacokinetics of the agents. Later dosage adjustments should be made on the basis of monitoring of both plasma drug (and possible metabolite) concentrations, and the efficacy and tolerability of the drugs.
A94: =HYPERLINK("http://www.ncbi.nlm.nih.gov/pubmed/" & I94,I94) -> 3303134 | B94: =(LEN($J94) - LEN(SUBSTITUTE(LOWER($J94),LOWER(B$3),"")))/LEN(B$3) -> 11 | C94: =(LEN($J94) - LEN(SUBSTITUTE(LOWER($J94),LOWER(C$3),"")))/LEN(C$3) -> 0 | D94: =(LEN($J94) - LEN(SUBSTITUTE(LOWER($J94),LOWER(D$3),"")))/LEN(D$3) -> 0 | E94: =SUM(B94:D94) -> 11 | F94: 1987 | G94: Vitamin A in human nutrition. | H94: Sklan | I94: 3303134 | J94: Vitamin A in human nutrition. Abstract: Vitamin A, an unsaturated 20 carbon cyclic alcohol, has a variety of physiological functions including a role in vision, reproduction, growth and maintenance of epithelial and bone structures. The main sources of vitamin A are from preformed vitamin A in animal foods or from -carotene in green plants. Carotene is cleaved in the intestinal mucosa to retinol, which is transported in chylomicrons mainly to the liver which is the major storage site of vitamin A, where stores are mainly of retinyl palmitate. Utilization of vitamin A appears to be a highly regulated process; retinol is transported in the serum bound to a specific binding protein. There also may be some control of the level of retinol in cells possibly through membrane receptors or of excretion from the cell. Intracellular cytosolic retinol binding proteins transport retinol to the nucleus where specific receptors for retinol have been found. Intracellular binding proteins for retinoic acid and retinal, metabolites of retinol have also been found, and an interstitial protein transporting retinol is present in the eye. Vitamin A deficiency causes cessation of growth, night blindness, and renders the organism more susceptible to infection, and vitamin A supplementation has been shown to enhance immune response. Epidemiological studies have shown low vitamin A and carotene to be correlated with incidence of cancer. Excess vitamin A intake results in hypervitaminosis with severe detrimental effects. Vitamin A requirements appear to be met in most developed countries although in the populations at greatest risk, newborns and pregnant and nursing women, cases of deficiency are observed. However, in large areas of the world vitamin A deficiency is endemic, causing widespread blindness and mortality.
A95: =HYPERLINK("http://www.ncbi.nlm.nih.gov/pubmed/" & I95,I95) -> 27655446 | B95: =(LEN($J95) - LEN(SUBSTITUTE(LOWER($J95),LOWER(B$3),"")))/LEN(B$3) -> 7 | C95: =(LEN($J95) - LEN(SUBSTITUTE(LOWER($J95),LOWER(C$3),"")))/LEN(C$3) -> 3 | D95: =(LEN($J95) - LEN(SUBSTITUTE(LOWER($J95),LOWER(D$3),"")))/LEN(D$3) -> 0 | E95: =SUM(B95:D95) -> 10 | F95: 2016 | G95: Senescence in hepatic stellate cells as a mechanism of liver fibrosis reversal: a putative synergy between retinoic acid and PPAR-gamma signalings. | H95: Panebianco | I95: 27655446 | J95: Senescence in hepatic stellate cells as a mechanism of liver fibrosis reversal: a putative synergy between retinoic acid and PPAR-gamma signalings. Abstract: NlmCategory=UNASSIGNEDHepatic stellate cells (HSCs), also known as perisinusoidal cells, are pericytes found in the perisinusoidal space of the liver. HSCs are the major cell type involved in liver fibrosis, which is the formation of scar tissue in response to liver damage. When the liver is damaged, stellate cells can shift into an activated state, characterized by proliferation, contractility and chemotaxis. The activated HSCs secrete collagen scar tissue, which can lead to cirrhosis. Recent studies have shown that in vivo activation of HSCs by fibrogenic agents can eventually lead to senescence of these cells, which would contribute to reversal of fibrosis although it may also favor the insurgence of liver cancer. HSCs in their non-active form store huge amounts of retinoic acid derivatives in lipid droplets, which are progressively depleted upon cell activation in injured liver. Retinoic acid is a metabolite of vitamin A (retinol) that mediates the functions of vitamin A, generally required for growth and development. The precise function of retinoic acid and its alterations in HSCs has yet to be elucidated, and nonetheless in various cell types retinoic acid and its receptors (RAR and RXR) are known to act synergistically with peroxisome proliferator-activated receptor gamma (PPAR-gamma) signaling through the activity of transcriptional heterodimers. Here, we review the recent advancements in the understanding of how retinoic acid signaling modulates the fibrogenic potential of HSCs and proposes a synergistic combined action with PPAR-gamma in the reversal of liver fibrosis.
A96: =HYPERLINK("http://www.ncbi.nlm.nih.gov/pubmed/" & I96,I96) -> 26904552 | B96: =(LEN($J96) - LEN(SUBSTITUTE(LOWER($J96),LOWER(B$3),"")))/LEN(B$3) -> 10 | C96: =(LEN($J96) - LEN(SUBSTITUTE(LOWER($J96),LOWER(C$3),"")))/LEN(C$3) -> 0 | D96: =(LEN($J96) - LEN(SUBSTITUTE(LOWER($J96),LOWER(D$3),"")))/LEN(D$3) -> 0 | E96: =SUM(B96:D96) -> 10 | F96: 2016 | G96: Retinoids in the pancreas. | H96: Brun | I96: 26904552 | J96: Retinoids in the pancreas. Abstract: Retinoids (vitamin A and its natural and synthetic analogs) are required by most tissues for maintaining the normal health of the tissue. This is certainly true for the pancreas. The recent literature is convincing that retinoids are needed by the adult to assure normal pancreatic endocrine functions, especially those of the α- and β-cells. It is also well established that retinoids are required to insure normal pancreas development in utero, including the development of the endocrine pancreas. The actions of retinoids for maintaining normal pancreatic islet functions has drawn considerable research interest from investigators interested in understanding and treating metabolic disease. Pancreatic retinoids are also of interest to investigators studying the origins of pancreatic disease, including the development of pancreatic fibrosis and its sequelae. This research interest is focused on pancreatic stellate cells (PSCs) which store retinoids and possess the metabolic machinery needed to metabolize retinoids. The literature on pancreatic disease and retinoids suggests that there is an association between impairments in pancreatic retinoid storage and metabolism and the development of pancreatic disease. These topics will be considered in this review.
A97: =HYPERLINK("http://www.ncbi.nlm.nih.gov/pubmed/" & I97,I97) -> 23744414 | B97: =(LEN($J97) - LEN(SUBSTITUTE(LOWER($J97),LOWER(B$3),"")))/LEN(B$3) -> 10 | C97: =(LEN($J97) - LEN(SUBSTITUTE(LOWER($J97),LOWER(C$3),"")))/LEN(C$3) -> 0 | D97: =(LEN($J97) - LEN(SUBSTITUTE(LOWER($J97),LOWER(D$3),"")))/LEN(D$3) -> 0 | E97: =SUM(B97:D97) -> 10 | F97: 2013 | G97: Oxidative stress, polyunsaturated fatty acids-derived oxidation products and bisretinoids as potential inducers of CNS diseases: focus on age-related macular degeneration. | H97: Nowak | I97: 23744414 | J97: Oxidative stress, polyunsaturated fatty acids-derived oxidation products and bisretinoids as potential inducers of CNS diseases: focus on age-related macular degeneration. Abstract: Many pathologies of the central nervous system (CNS) originate from excess of reactive free radicals, notably reactive oxygen species (ROS), and oxidative stress. A phenomenon which usually runs in parallel with oxidative stress is unsaturated lipid peroxidation, which, via a chain reaction, contributes to the progression of disbalanced redox homeostasis. Among long-chain (LC) polyunsaturated fatty acids (PUFAs) abundantly occurring in the CNS, docosahexaenoic acid (DHA), a member of ω-3 LC-PUFAs, deserves special attention, as it is avidly retained and uniquely concentrated in the nervous system, particularly in retinal photoreceptors and synaptic membranes; owing to the presence of the six double bonds between carbon atoms in its polyene chain (C=C), DHA is exquisitely sensitive to oxidative damage. In addition to oxidative stress and LC-PUFAs peroxidation, other stress-related mechanisms may also contribute to the development of various CNS malfunctions, and a good example of such mechanisms is the process of lipofuscin formation occurring particularly in the retina, an integral part of the CNS. The retinal lipofuscin is formed and accumulated by the retinal pigment epithelial (RPE) cells as a consequence of both visual process taking place in photoreceptor-RPE functional complex and metabolic insufficiency of RPE lysosomal compartment. Among various retinal lipofuscin constituents, bisretinoids, originating from all-trans retinal substrate--a photometabolite of visual pigment cofactor 11-cis-retinal (responsible for photon capturing), are endowed with cytotoxic and complement-activating potential which increases upon illumination and oxidation. This survey deals with oxidative stress, PUFAs (especially DHA) peroxidation products of carboxyalkylpyrrole type and bisretinoids as potential inducers of the CNS pathology. A focus is put on vision-threatening disease, i.e., age-related macular degeneration (AMD), as an example of the CNS disorder whose pathogenesis has strong background in both oxidative stress and lipid peroxidation products.
A98: =HYPERLINK("http://www.ncbi.nlm.nih.gov/pubmed/" & I98,I98) -> 22292422 | B98: =(LEN($J98) - LEN(SUBSTITUTE(LOWER($J98),LOWER(B$3),"")))/LEN(B$3) -> 9 | C98: =(LEN($J98) - LEN(SUBSTITUTE(LOWER($J98),LOWER(C$3),"")))/LEN(C$3) -> 0 | D98: =(LEN($J98) - LEN(SUBSTITUTE(LOWER($J98),LOWER(D$3),"")))/LEN(D$3) -> 1 | E98: =SUM(B98:D98) -> 10 | F98: 2012 | G98: Roles of vitamin A status and retinoids in glucose and fatty acid metabolism. | H98: Zhao | I98: 22292422 | J98: Roles of vitamin A status and retinoids in glucose and fatty acid metabolism. Abstract: The rising prevalence of metabolic diseases, such as obesity and diabetes, has become a public health concern. Vitamin A (VA, retinol) is an essential micronutrient for a variety of physiological processes, such as tissue differentiation, immunity, and vision. However, its role in glucose and lipid metabolism has not been clearly defined. VA activities are mediated by the metabolite of retinol catabolism, retinoic acid, which activates the retinoic acid receptor and retinoid X receptor (RXR). Since RXR is an obligate heterodimeric partner for many nuclear receptors involved in metabolism, it is reasonable to assume that VA status and retinoids contribute to glucose and lipid homeostasis. To date, the impacts of VA and retinoids on energy metabolism in animals and humans have been demonstrated in some basic and clinical investigations. This review summarizes the effects of VA status and retinoid treatments on metabolism of the liver, adipocytes, pancreatic β-cells, and skeletal muscle. It proposes a mechanism by which the dietary and hormonal signals converge on the promoter of sterol regulatory element-binding protein 1c gene to induce its expression, and in turn, the expression of lipogenic genes in hepatocytes. Future research projects relevant to the VAs roles in metabolic diseases are also discussed.
A99: =HYPERLINK("http://www.ncbi.nlm.nih.gov/pubmed/" & I99,I99) -> 21628978 | B99: =(LEN($J99) - LEN(SUBSTITUTE(LOWER($J99),LOWER(B$3),"")))/LEN(B$3) -> 2 | C99: =(LEN($J99) - LEN(SUBSTITUTE(LOWER($J99),LOWER(C$3),"")))/LEN(C$3) -> 3 | D99: =(LEN($J99) - LEN(SUBSTITUTE(LOWER($J99),LOWER(D$3),"")))/LEN(D$3) -> 5 | E99: =SUM(B99:D99) -> 10 | F99: 2011 | G99: [Challenge of creating single-agents for the treatment of type 1 and 2 diabetes by targeting retinoid X receptor]. | H99: Kakuta | I99: 21628978 | J99: [Challenge of creating single-agents for the treatment of type 1 and 2 diabetes by targeting retinoid X receptor]. Abstract: It might be seen as reckless to challenge to create single-agents for the treatment of both type 1 diabetes caused by the destruction of the Langerhans β cells in pancreas by excessive autoimmunity, and type 2 diabetes caused by the obesity. However, we hypothesized that retinoid X receptor (RXR) agonists, which are researched for the treatment of type 2 diabetes, will also be useful like metformin, which shows insulin-sparing effect in type 1 diabetes. This is because PPARγ/RXR is known to be a target of thiazolidinediones (TZDs), which are used for the treatment of insulin resistance, LXR/RXR is reported to be involved in glucose/lipid metabolism, and these heterodimers can be activated by RXR agonists alone (permissive mechanism). However, repeated administration of RXR agonists can elevate blood triglyceride and induce hypothyroidism. In this study, we performed systematic conversion of the alkoxy side chain of 5a (6-[ethyl-(3-isopropoxy-4-isopropylphenyl)amino] nicotinic acid: NEt-3IP) and evaluated the RXR-, PPAR/RXR- and LXR/RXR-agonist activities of the products. The cyclopropylmethoxy analog (5c) showed similar RXR- and LXR/RXR-agonistic activities to the benzyloxy analog (5i) and n-propoxy analog (5k), but exhibited more potent PPAR/RXR-agonistic activity than 5i or 5k. Differential modulation of RXR heterodimer-activating ability by conversion of the alkoxy group located in the lipophilic domain of the RXR-agonist common structure is expected to be a useful approach in the design of new RXR agonists for the treatment of hyperlipidemia.
A100: =HYPERLINK("http://www.ncbi.nlm.nih.gov/pubmed/" & I100,I100) -> 21091043 | B100: =(LEN($J100) - LEN(SUBSTITUTE(LOWER($J100),LOWER(B$3),"")))/LEN(B$3) -> 10 | C100: =(LEN($J100) - LEN(SUBSTITUTE(LOWER($J100),LOWER(C$3),"")))/LEN(C$3) -> 0 | D100: =(LEN($J100) - LEN(SUBSTITUTE(LOWER($J100),LOWER(D$3),"")))/LEN(D$3) -> 0 | E100: =SUM(B100:D100) -> 10 | F100: 2011 | G100: Retinoic acid receptor modulators: a perspective on recent advances and promises. | H100: Alvarez | I100: 21091043 | J100: Retinoic acid receptor modulators: a perspective on recent advances and promises. Abstract: IMPORTANCE OF THE FIELD : Retinoids are currently used in the clinic for the treatment of skin diseases and acute promielocytic leukemia and are known to contribute to early development and organogenesis in embryo and throughout life. Most of these activities are primarily due to the binding of the retinoid to the retinoic acid receptors (RARs, subtypes α, β and γ). Ligand modulates, via allosteric conformational changes, the ability of RARs to interact with different sets of co-regulators. Structure-based insights on the ligand-binding domain of the ligand-bound RARs have clearly linked retinoid function to co-activator (CoA) recruitment for agonists, CoA dissociation for antagonists and corepressor stabilization for inverse agonists. AREAS COVERED IN THIS REVIEW : To help understand ligand-modulated RAR action as a consequence of its interaction with different sets of co-regulators, we present the chemical engineering of subsets of retinoid chemotypes (rexinoids, i.e., the ligands of the retinoid X receptors, α, β and γ, with impact in the treatment of cancer and metabolic diseases, are not covered) that display the whole range of ligand functions, including subtype- and isotype-selectivities. WHAT THE READER WILL GAIN : An understanding of the correlation of retinoid ligand structure and function. Structural insights into ligand action and retinoid chemotypes. Potential for clinical application of retinoid receptor modulators. TAKE HOME MESSAGE : Potential pharmacological/therapeutic applications of these chemical tools extend beyond cancer prevention and therapy to the treatment of autoimmune and neurodegenerative diseases.
A101: =HYPERLINK("http://www.ncbi.nlm.nih.gov/pubmed/" & I101,I101) -> 16503871 | B101: =(LEN($J101) - LEN(SUBSTITUTE(LOWER($J101),LOWER(B$3),"")))/LEN(B$3) -> 1 | C101: =(LEN($J101) - LEN(SUBSTITUTE(LOWER($J101),LOWER(C$3),"")))/LEN(C$3) -> 9 | D101: =(LEN($J101) - LEN(SUBSTITUTE(LOWER($J101),LOWER(D$3),"")))/LEN(D$3) -> 0 | E101: =SUM(B101:D101) -> 10 | F101: 2005 | G101: Peroxisome proliferator-activated receptor alpha (PPARalpha) and athero-sclerosis. | H101: Gouni-Berthold | I101: 16503871 | J101: Peroxisome proliferator-activated receptor alpha (PPARalpha) and athero-sclerosis. Abstract: The peroxisome proliferator-activated receptors (PPARs) alpha, beta/delta and gamma are ligand-activated transcription factors belonging to the nuclear receptor superfamily. PPARs heterodimerize with the retinoid X receptor (RXR) and modulate the function of many target genes. They were originally described as regulators of various metabolic, pathways, but have been recently found to also exert modulating actions in the vascular wall. PPARalpha is activated by endogenous ligands, such as polyunsaturated fatty acids and by synthetic agonists such as the fibrates. PPARalpha is expressed mainly in the liver, kidney and skeletal muscle and is involved in fatty acid oxidation. However, it is also expressed in vascular cells such as the endothelial cells, vascular smooth muscle cells and macrophages, where it exerts anti-inflammatory and antioxidant effects. Since atherosclerosis is both a chronic inflammatory and a lipid disorder and since PPARalpha is expressed in vascular cells and regulates the expression of genes involved in lipid metabolism and inflammation, PPARalpha activators may constitute useful agents for the prevention of atherosclerosis, beyond their effects on lipid metabolism. This review will focus on the functions of PPARalpha on lipid metabolism, on vascular inflammation and its relationship to atherosclerosis. Furthermore, the currently available preclinical and clinical data on PPARalpha activators as well as their future perspectives will be discussed.
A102: =HYPERLINK("http://www.ncbi.nlm.nih.gov/pubmed/" & I102,I102) -> 15588697 | B102: =(LEN($J102) - LEN(SUBSTITUTE(LOWER($J102),LOWER(B$3),"")))/LEN(B$3) -> 10 | C102: =(LEN($J102) - LEN(SUBSTITUTE(LOWER($J102),LOWER(C$3),"")))/LEN(C$3) -> 0 | D102: =(LEN($J102) - LEN(SUBSTITUTE(LOWER($J102),LOWER(D$3),"")))/LEN(D$3) -> 0 | E102: =SUM(B102:D102) -> 10 | F102: 2004 | G102: Interactions amongst plasma retinol-binding protein, transthyretin and their ligands: implications in vitamin A homeostasis and transthyretin amyloidosis. | H102: Raghu | I102: 15588697 | J102: Interactions amongst plasma retinol-binding protein, transthyretin and their ligands: implications in vitamin A homeostasis and transthyretin amyloidosis. Abstract: Retinol transport complex consisting of retinol-binding protein (RBP) and transthyretin (TTR) is involved in the transport of retinol (vitamin A) and thyroxine (T(4)) in the human plasma. RBP is a 21-kDa single polypeptide chain protein, synthesized in the liver, which binds and transports retinol to the target organs. The circulating RBP binds to another protein called TTR, a 55-kDa homotetrameric T(4) transport protein. Such protein-protein complex formation is thought to prevent glomerular filtration of low molecular mass RBP. Misfolding and aggregation of TTR is implicated in amyloid disorders such as familial amyloid polyneuropathy (FAP) and senile systemic amyloidosis (SSA). Recent observations suggest that both RBP and T(4), the physiological ligands of TTR, prevent its misfolding and amyloid fibril formation, suggesting yet another structure-function relationship to this protein-protein complex. TTR2, a poorly characterized protein, was also found bound to RBP in human and pig plasma but its significance remains to be understood. Furthermore, knockout models of both RBP and TTR unequivocally demonstrated the importance of this protein-protein complex in retinoid transport. Thus, interactions amongst multiple components of retinol transport play critical roles in vitamin A homeostasis and TTR amyloidosis.
A103: =HYPERLINK("http://www.ncbi.nlm.nih.gov/pubmed/" & I103,I103) -> 15570053 | B103: =(LEN($J103) - LEN(SUBSTITUTE(LOWER($J103),LOWER(B$3),"")))/LEN(B$3) -> 10 | C103: =(LEN($J103) - LEN(SUBSTITUTE(LOWER($J103),LOWER(C$3),"")))/LEN(C$3) -> 0 | D103: =(LEN($J103) - LEN(SUBSTITUTE(LOWER($J103),LOWER(D$3),"")))/LEN(D$3) -> 0 | E103: =SUM(B103:D103) -> 10 | F103: 2004 | G103: New aspects in vitamin a metabolism: the role of retinyl esters as systemic and local sources for retinol in mucous epithelia. | H103: Biesalski | I103: 15570053 | J103: New aspects in vitamin a metabolism: the role of retinyl esters as systemic and local sources for retinol in mucous epithelia. Abstract: Vitamin A and its active metabolites are important for growth and differentiation of a variety of cells, mainly in mucosa-associated epithelia, where they exhibit a wide spectrum of activities. Vitamin A, stored as retinyl esters (REs), is delivered from liver stores into the bloodstream as retinol bound to retinol binding protein. This process is regulated homeostatically, ending up in a more or less constant plasma retinol level. In situations of a high vitamin A demand (e.g., inflammation, diseases, prenatal period), this supply can be insufficient because of delayed production of retinol binding protein, leading to local deficiencies and impairment of structure and function in the respective tissues. This delay may be overcome by cellular RE stores. Several cell types, including buccal mucosa cells, can take up RE. Retinyl palmitate is taken up when it is applied topically to either metaplastically mutated rat vaginal epithelium (as a gel) or to human meta- and dysplastic bronchial epithelia (via inhalation) that have a vitamin A deficiency. In rats and humans, the modified epithelia can be normalized, at least in part. In conclusion, topically applied retinyl esters may be a promising therapy for local retinol deficiencies and may reverse the morphological alterations of the epithelium in tissues that are vitamin A deficient.
A104: =HYPERLINK("http://www.ncbi.nlm.nih.gov/pubmed/" & I104,I104) -> 12505311 | B104: =(LEN($J104) - LEN(SUBSTITUTE(LOWER($J104),LOWER(B$3),"")))/LEN(B$3) -> 1 | C104: =(LEN($J104) - LEN(SUBSTITUTE(LOWER($J104),LOWER(C$3),"")))/LEN(C$3) -> 9 | D104: =(LEN($J104) - LEN(SUBSTITUTE(LOWER($J104),LOWER(D$3),"")))/LEN(D$3) -> 0 | E104: =SUM(B104:D104) -> 10 | F104: 2002 | G104: Regulation of P450 4A expression by peroxisome proliferator activated receptors. | H104: Johnson | I104: 12505311 | J104: Regulation of P450 4A expression by peroxisome proliferator activated receptors. Abstract: The induction of P450 4A enzymes by peroxisome proliferators (PPs) and fatty acids is mediated by the peroxisome proliferator activated receptor alpha (PPAR alpha) that binds to response elements in target genes as a heterodimer with the retinoid X receptor (RXR). The consensus sequence recognized by PPAR/RXR heterodimers, contains an imperfect direct repeat of two nuclear receptor binding motifs separated by a single nucleotide. This repeat is preceded by a conserved A/T rich sequence that is required for function. In mice, chronic exposure to PPs results in PPAR alpha mediated liver hypertrophy, hyperplasia and carcinogenesis accompanied by a proliferation of peroxisomes. In contrast, humans exhibit a reduced sensitivity to PP pathogenesis. This could reflect gt;10-fold lower PPAR alpha levels relative to mice as well as differences in targeted genes. In order to identify PPAR responsive human genes, the human hepatoma cell line, HepG2, was engineered to express increased levels of PPAR alpha. Several genes encoding rate-limiting enzymes and branch points in ketone body formation are regulated by PPAR alpha in these cells. In contrast, significant induction by PP is not evident for peroxisomal fatty acid oxidation that is associated with peroxisome proliferation in mice. Human P450 4A11 is not expressed in dividing cultures of cells with enhanced PPAR alpha levels, but it is expressed in confluent cultures expressing elevated amounts of PPAR alpha.
A105: =HYPERLINK("http://www.ncbi.nlm.nih.gov/pubmed/" & I105,I105) -> 12195157 | B105: =(LEN($J105) - LEN(SUBSTITUTE(LOWER($J105),LOWER(B$3),"")))/LEN(B$3) -> 6 | C105: =(LEN($J105) - LEN(SUBSTITUTE(LOWER($J105),LOWER(C$3),"")))/LEN(C$3) -> 4 | D105: =(LEN($J105) - LEN(SUBSTITUTE(LOWER($J105),LOWER(D$3),"")))/LEN(D$3) -> 0 | E105: =SUM(B105:D105) -> 10 | F105: 2002 | G105: Linkage between retinoid and fatty acid receptors: implications for breast cancer prevention. | H105: Stoll | I105: 12195157 | J105: Linkage between retinoid and fatty acid receptors: implications for breast cancer prevention. Abstract: Certain dietary retinoids and polyunsaturated fatty acids (PUFAs) consistently inhibit progression of mammary carcinogenesis both in animal studies and cell culture, but clinically, their effect is inconsistent. New evidence of synergistic interaction between the nuclear receptors for the two groups of nutritional agents suggests that appropriate selective ligands from each group might be combined in breast cancer chemoprevention studies. Peroxisome proliferator-activated receptor (PPAR) gamma is a nuclear receptor that is activated by PUFAs, eicosanoids and antidiabetic agents such as troglitazone. Such activation can cause growth inhibition in human mammary cancer cells in culture and the effect is enhanced by ligands of retinoic acid receptor (RAR) and retinoid X receptor (RXR). In mouse mammary tissue in organ culture, an RXR-selective ligand has been shown to enhance the effect of troglitazone in suppressing carcinogen-induced pre-neoplastic changes. A PPAR/RXR heterodimer is involved in tumour growth inhibition and has been shown to bind directly to nuclear oestrogen response elements (ERE) independently of oestrogen receptor (ER) activity. A combination of an RXR-selective retinoid with either troglitazone or else a long-chain n-3 PUFA, is proposed for a short-term study in postmenopausal women after primary surgery for intraductal breast cancer. The resulting activation of PPAR/RXR expression may increase response to retinoid administration, especially in the presence of obesity and insulin resistance, because of the ability of PPAR gamma ligands to reduce insulin-like growth factor I (IGF-I) concentrations. Serial core biopsies of breast tissue over a short term are proposed to identify changes in phenotype, which may influence progression to invasiveness. In addition to cytomorphological criteria, expression of ER alpha and beta, RAR alpha and beta, and IGF-I receptor in the nucleus should be examined.
A106: =HYPERLINK("http://www.ncbi.nlm.nih.gov/pubmed/" & I106,I106) -> 11327101 | B106: =(LEN($J106) - LEN(SUBSTITUTE(LOWER($J106),LOWER(B$3),"")))/LEN(B$3) -> 1 | C106: =(LEN($J106) - LEN(SUBSTITUTE(LOWER($J106),LOWER(C$3),"")))/LEN(C$3) -> 8 | D106: =(LEN($J106) - LEN(SUBSTITUTE(LOWER($J106),LOWER(D$3),"")))/LEN(D$3) -> 1 | E106: =SUM(B106:D106) -> 10 | F106: 2001 | G106: The pleiotropic functions of peroxisome proliferator-activated receptor gamma. | H106: Debril | I106: 11327101 | J106: The pleiotropic functions of peroxisome proliferator-activated receptor gamma. Abstract: Peroxisome proliferator-activated receptors (PPARs) are nuclear hormone receptors, initially described as molecular targets for synthetic compounds that induce peroxisome proliferation. PPARgamma is the best characterized of the PPARs. The heterodimer of PPARgamma with the retinoid X receptor (RXR) plays a crucial role in adipogenesis and insulin sensitization. The RXR/PPARgamma heterodimer furthermore has been reported to have important immunomodulatory activities and to affect cell proliferation/differentiation pathways in various malignancies. PPARgamma is activated by a number of naturally occurring fatty acid derivatives and by several synthetic compounds, including the thiazolidinediones and L-tyrosine-based insulin sensitizers. This review gives an overview of the pleiotropic functions of PPARgamma and discusses the wide-ranging medical implications that modulation of PPARgamma activity might have for various diseases, ranging from obesity and type 2 diabetes to cancer and inflammation.
A107: =HYPERLINK("http://www.ncbi.nlm.nih.gov/pubmed/" & I107,I107) -> 10936415 | B107: =(LEN($J107) - LEN(SUBSTITUTE(LOWER($J107),LOWER(B$3),"")))/LEN(B$3) -> 1 | C107: =(LEN($J107) - LEN(SUBSTITUTE(LOWER($J107),LOWER(C$3),"")))/LEN(C$3) -> 9 | D107: =(LEN($J107) - LEN(SUBSTITUTE(LOWER($J107),LOWER(D$3),"")))/LEN(D$3) -> 0 | E107: =SUM(B107:D107) -> 10 | F107: 2000 | G107: PPARgamma: observations in the hematopoietic system. | H107: Greene | I107: 10936415 | J107: PPARgamma: observations in the hematopoietic system. Abstract: Human Peroxisome Proliferator-Activated Receptor gamma (PPARgamma) was originally cloned from a human bone marrow library. What role does this ligand activated transcription factor play in hematopoiesis and the immune system? We note that: a) PPARgamma has potential to interact/interfere or synergize with retinoid biology, b) fatty acids and a prostaglandin have been identified as ligands, and c) lymphocytes, monocytes and neutrophils use fatty acids as a major source of energy production, d) PPARgamma has been shown to oppose TNFalpha and down regulate cytokine production in monocytes. Therefore, we undertook a review of the literature and an expression survey of PPARgamma in a number of major organs and cells involved in the hematopoietic system, for the purpose of building a database towards understanding the role and function of PPARgamma gene regulation in the developing blood and immune systems. PPARgamma is expressed before mesodermal induction in tissue in and around Speymanns organizer in the xenopus blastocyst, in erythroid precursors of blood islands and in the circulation of the day 10.0 murine embryo, in human 19 week fetal liver, in some but not all murine and human bone marrow erythroid, myeloid, and monocytoid progenitors, bone marrow stromal cells and adipocytes, osteoblasts, endothelial cells, some T, and B lymphocytes, monocytes, macrophages, and other monocytic derivatives. It can be found in the cells of Peyers patches, lymphoid follicles, spleen, and thymus. It is not clear if it is ever or transiently expressed in megakaryocytes, mast cells, or neutrophils. Based on the above data and a review of the literature, PPARgamma seems to play a role during the elicitation of immune responses. We propose PPARgamma may be involved in changes in energy states required during activation and development of many cell types involved, and has additional immunologically relevant effects in erythroid, myeloid, monocytic, T and B lymphocytic, stromal, and endothelial cell function.
A108: =HYPERLINK("http://www.ncbi.nlm.nih.gov/pubmed/" & I108,I108) -> 10696077 | B108: =(LEN($J108) - LEN(SUBSTITUTE(LOWER($J108),LOWER(B$3),"")))/LEN(B$3) -> 0 | C108: =(LEN($J108) - LEN(SUBSTITUTE(LOWER($J108),LOWER(C$3),"")))/LEN(C$3) -> 10 | D108: =(LEN($J108) - LEN(SUBSTITUTE(LOWER($J108),LOWER(D$3),"")))/LEN(D$3) -> 0 | E108: =SUM(B108:D108) -> 10 | F108: 2000 | G108: Peroxisome proliferator-activated receptors in the cardiovascular system. | H108: Bishop-Bailey | I108: 10696077 | J108: Peroxisome proliferator-activated receptors in the cardiovascular system. Abstract: Peroxisome proliferator-activated receptor (PPAR)s are a family of three nuclear hormone receptors, PPARalpha, -delta, and -gamma, which are members of the steriod receptor superfamily. The first member of the family (PPARalpha) was originally discovered as the mediator by which a number of xenobiotic drugs cause peroxisome proliferation in the liver. Defined functions for all these receptors, until recently, mainly concerned their ability to regulate energy balance, with PPARalpha being involved in beta-oxidation pathways, and PPARgamma in the differentiation of adipocytes. Little is known about the functions of PPARdelta, though it is the most ubiquitously expressed. Since their discovery, PPARs have been shown to be expressed in monocytes/macrophages, the heart, vascular smooth muscle cells, endothelial cells, and in atherosclerotic lesions. Furthermore, PPARs can be activated by a vast number of compounds including synthetic drugs, of the clofibrate, and anti-diabetic thiazoldinedione classes, polyunsaturated fatty acids, and a number of eicosanoids, including prostaglandins, lipoxygenase products, and oxidized low density lipoprotein. This review will aim to introduce the field of PPAR nuclear hormone receptors, and discuss the discovery and actions of PPARs in the cardiovascular system, as well as the source of potential ligands.
A109: =HYPERLINK("http://www.ncbi.nlm.nih.gov/pubmed/" & I109,I109) -> 10459140 | B109: =(LEN($J109) - LEN(SUBSTITUTE(LOWER($J109),LOWER(B$3),"")))/LEN(B$3) -> 10 | C109: =(LEN($J109) - LEN(SUBSTITUTE(LOWER($J109),LOWER(C$3),"")))/LEN(C$3) -> 0 | D109: =(LEN($J109) - LEN(SUBSTITUTE(LOWER($J109),LOWER(D$3),"")))/LEN(D$3) -> 0 | E109: =SUM(B109:D109) -> 10 | F109: 1999 | G109: Acitretin in psoriasis: an overview of adverse effects. | H109: Katz | I109: 10459140 | J109: Acitretin in psoriasis: an overview of adverse effects. Abstract: Oral retinoids are among the drugs of choice for pustular and erythrodermic psoriasis. In addition, retinoids are effective in combination with other topical and systemic agents for the treatment of plaque-type psoriasis. Acitretin, the active retinoid metabolite, has replaced etretinate in retinoid therapy of psoriasis because of its more favorable pharmacokinetic profile, including a significantly shorter half-life. Retinoids, including acitretin, are potent teratogens, leading to strict requirements for pregnancy prevention during and after their use. Other retinoid side effects are generally preventable or manageable through proper patient selection, dose adjustments, and routine monitoring. Mucocutaneous side effects such as cheilitis and hair loss are the most common dose-dependent side effects, requiring dose reduction in some patients. Less common effects such as hepatotoxicity, serum lipid alterations, pancreatitis, and possible skeletal effects are also discussed.
A110: =HYPERLINK("http://www.ncbi.nlm.nih.gov/pubmed/" & I110,I110) -> 10191129 | B110: =(LEN($J110) - LEN(SUBSTITUTE(LOWER($J110),LOWER(B$3),"")))/LEN(B$3) -> 10 | C110: =(LEN($J110) - LEN(SUBSTITUTE(LOWER($J110),LOWER(C$3),"")))/LEN(C$3) -> 0 | D110: =(LEN($J110) - LEN(SUBSTITUTE(LOWER($J110),LOWER(D$3),"")))/LEN(D$3) -> 0 | E110: =SUM(B110:D110) -> 10 | F110: 1999 | G110: Retinal degeneration in retinitis pigmentosa and neuronal ceroid lipofuscinosis: An overview. | H110: Birch | I110: 10191129 | J110: Retinal degeneration in retinitis pigmentosa and neuronal ceroid lipofuscinosis: An overview. Abstract: Retinal degeneration is an early consequence of the group of lysosomal storage diseases collectively referred to as the neuronal ceroid lipofuscinoses (NCLs). This review details specialized techniques that have evolved for retinal assessment in patients with hereditary retinal degeneration. A standard ERG protocol is described for assessing rod- and cone-mediated function. Standardization will be crucial for planning and implementing multicenter trials as rational therapeutic intervention becomes available. In recent years, there has been a dramatic increase in knowledge of the molecular biological bases of retinitis pigmentosa and allied retinal degenerations. Rather than attempting a comprehensive summary, this review stresses the concepts of genetic, allelic, and clinical heterogeneity, which have obvious parallels in the NCLs. Many of the mutations that cause retinal degeneration are in genes that encode photoreceptor cascade proteins; others are in genes that encode photoreceptor structural proteins. Recent advances in linking the retinal degeneration slow (RDS) and ATP-binding cassette transporter retina (ABCR) genes to a variety of disease phenotypes will be summarized. Clinical heterogeneity even among family members with the same mutation raises the possibility that modifying factors, either genetic or environmental, could influence the severity of the disease. Here, we focus on vitamin A and docosahexaenoic acid, two potential nutritional modifiers that have received considerable attention in recent years.
A111: =HYPERLINK("http://www.ncbi.nlm.nih.gov/pubmed/" & I111,I111) -> 7561630 | B111: =(LEN($J111) - LEN(SUBSTITUTE(LOWER($J111),LOWER(B$3),"")))/LEN(B$3) -> 10 | C111: =(LEN($J111) - LEN(SUBSTITUTE(LOWER($J111),LOWER(C$3),"")))/LEN(C$3) -> 0 | D111: =(LEN($J111) - LEN(SUBSTITUTE(LOWER($J111),LOWER(D$3),"")))/LEN(D$3) -> 0 | E111: =SUM(B111:D111) -> 10 | F111: 1995 | G111: Retinoids: transport, metabolism, and mechanisms of action. | H111: Vieira | I111: 7561630 | J111: Retinoids: transport, metabolism, and mechanisms of action. Abstract: The retinoids comprise a family of polyisoprenoid lipids that includes vitamin A (retinol) and structurally related compounds. The biological activity of retinoids can be modified, for example, by changes in the molecules state of oxidation and cis/trans isomerization. Their activity is also dependent on the levels of specific types of retinoid-binding proteins which exist in extracellular, cytosolic and nuclear compartments. The role of retinoids in gene expression represents an important biological function for this family of molecules. Retinoid-dependent modulation of gene expression is critical for normal cell and tissue function in mature as well as developing animals. Despite significant advances in the understanding of retinoid biological activity, important questions remain concerning aspects of retinoid metabolism, cellular uptake, intracellular trafficking and regulation of gene transcription. The purpose of this review is to present these topics as a compendium of retinoid endocrinology.
A112: =HYPERLINK("http://www.ncbi.nlm.nih.gov/pubmed/" & I112,I112) -> 8137334 | B112: =(LEN($J112) - LEN(SUBSTITUTE(LOWER($J112),LOWER(B$3),"")))/LEN(B$3) -> 10 | C112: =(LEN($J112) - LEN(SUBSTITUTE(LOWER($J112),LOWER(C$3),"")))/LEN(C$3) -> 0 | D112: =(LEN($J112) - LEN(SUBSTITUTE(LOWER($J112),LOWER(D$3),"")))/LEN(D$3) -> 0 | E112: =SUM(B112:D112) -> 10 | F112: 1994 | G112: Prospects of chemoprevention of human cancers with the synthetic retinoid fenretinide. | H112: Costa | I112: 8137334 | J112: Prospects of chemoprevention of human cancers with the synthetic retinoid fenretinide. Abstract: Fenretinide or N-(4-hydroxyphenyl)retinamide is a vitamin A analogue synthesized in the United States in the late 1960s. This retinoid shows a preferential accumulation in breast instead of liver, is effective in the inhibition of chemically induced mammary carcinoma in rats, and has proved to be less toxic than many other vitamin A analogues. The Milan Cancer Institute has put a particular effort in this molecule in both the experimental and clinical fields. We have demonstrated, in animals and humans, that fenretinide induces a rapid reduction of retinol plasma concentration, that its blood levels remain constant during administration for as long as 5 years, and that the drug is able to accumulate in the human breast. To date, 2969 stage I breast cancer patients have been randomized to evaluate the efficacy of this retinoid to prevent contralateral new primaries, 709 subjects have been accrued in a prevention trial of basal cell carcinoma of the head and neck, and 153 patients entered a study the preliminary results of which already show the capability of fenretinide to prevent recurrences and new localizations of oral leukoplakia. Further studies on fenretinide will be aimed at evaluating its preventive efficacy in superficial bladder and prostate cancers and at exploring possible synergism with tamoxifen and interferons in breast cancer and skin cancer, respectively.
A113: =HYPERLINK("http://www.ncbi.nlm.nih.gov/pubmed/" & I113,I113) -> 8232263 | B113: =(LEN($J113) - LEN(SUBSTITUTE(LOWER($J113),LOWER(B$3),"")))/LEN(B$3) -> 9 | C113: =(LEN($J113) - LEN(SUBSTITUTE(LOWER($J113),LOWER(C$3),"")))/LEN(C$3) -> 1 | D113: =(LEN($J113) - LEN(SUBSTITUTE(LOWER($J113),LOWER(D$3),"")))/LEN(D$3) -> 0 | E113: =SUM(B113:D113) -> 10 | F113: 1993 | G113: Cellular binding proteins for fatty acids and retinoids: similar or specialized functions? | H113: Bass | I113: 8232263 | J113: Cellular binding proteins for fatty acids and retinoids: similar or specialized functions? Abstract: The cellular fatty acid-binding proteins (FABP) and cellular retinoid (retinol, retinoic acid)-binding proteins (CRtBP) are structurally and functionally-defined groups within an evolutionarily conserved gene family. CRtBP are expressed in both fully differentiated and developing tissues in a manner that supports a relationship to the action of retinoic acid in morphogenesis and cellular differentiation. The FABP are, by contrast, expressed only in fully differentiated tissues in a manner compatible with a major function in the metabolism of long-chain fatty acids (LCFA) for energy production or storage. The precise function(s) of FABP and CRtBP remain imperfectly understood, while subspecialization of function(s) within the two groups is suggested by the complex diversity in both of structurally distinct members that display striking tissue and temporal specificity of expression in addition to ligand specificity. Notwithstanding this considerable apparent functional diversity among the FABP and CRtBP, available evidence supports a dual set of generic functions for both protein groups in a) promoting cellular flux of poorly water-soluble ligands and their subsequent metabolic utilization or transformation, and b) sequestration of ligands in a manner that limits their association with alternative binding sites within the cell, of which members of the steroid hormone nuclear receptor superfamily (HNR) are a potentially important category. Theoretical as well as experimental models probing diffusional fluxes of LCFA in vitro and in living cells have provided support for a function for FABP in intracellular LCFA transport. Protein-bound ligand also appears to provide the substrate for metabolic transformation of retinoids bound to CRtBP, but convincing evidence is lacking for an analogous mechanism in the direct facilitation of fatty acid utilization by FABP. An emerging relationship between FABP and CRtBP function centers on their binding of, and induction by, ligands which activate or transform specific HNR-the retinoic acid receptors and the peroxisome proliferator activated receptor in the case of CRtBP and FABP, respectively. Evidence consistent with both a promotive role (provision of ligands for HNR) and a protective role (limiting availability of free ligand for HNR association) has been advanced for CRtBP. Available data supports a protective function for cellular retinoic acid-binding proteins (CRABP) and liver FABP (L-FABP) and points to the existence of ligand-defined, lipid-binding-protein-HNR relationships in which CRABP serve to attenuate the induction of gene expression by retinoic acid, and in which L-FABP may modulate a cellular adaptive multigene response to increased LCFA flux or compromised LCFA utilization.(ABSTRACT TRUNCATED AT 400 WORDS)
A114: =HYPERLINK("http://www.ncbi.nlm.nih.gov/pubmed/" & I114,I114) -> 2672772 | B114: =(LEN($J114) - LEN(SUBSTITUTE(LOWER($J114),LOWER(B$3),"")))/LEN(B$3) -> 10 | C114: =(LEN($J114) - LEN(SUBSTITUTE(LOWER($J114),LOWER(C$3),"")))/LEN(C$3) -> 0 | D114: =(LEN($J114) - LEN(SUBSTITUTE(LOWER($J114),LOWER(D$3),"")))/LEN(D$3) -> 0 | E114: =SUM(B114:D114) -> 10 | F114: 1989 | G114: Retinol (vitamin A) and the neonate: special problems of the human premature infant. | H114: Zachman | I114: 2672772 | J114: Retinol (vitamin A) and the neonate: special problems of the human premature infant. Abstract: Retinol stores accumulate in fetal tissue during gestation. Hence, the premature infant faces extrauterine adaptation with less total reserves of retinol than does the term infant. Retinol-binding protein in serum is also lower in the premature infant population. The parenteral retinol supplementation frequently required for these infants has only recently become adequate by the finding of methods to avoid large losses of retinol onto intravenous tubing. Retinol is an essential vitamin for epithelial cell function; nearly 40% of lung cells are of epithelial origin. The premature infants lung often is the initial site of difficulties during extrauterine adaptation, and respiratory system epithelial-cell damage and chronic lung disease frequently develop. Because these infants have associated low retinol reserves, retinol supplementation to help repair pulmonary injury is being considered. Some of these relationships are beginning to be clarified by basic research on the metabolism and function of retinol in lung.
A115: =HYPERLINK("http://www.ncbi.nlm.nih.gov/pubmed/" & I115,I115) -> 25929424 | B115: =(LEN($J115) - LEN(SUBSTITUTE(LOWER($J115),LOWER(B$3),"")))/LEN(B$3) -> 3 | C115: =(LEN($J115) - LEN(SUBSTITUTE(LOWER($J115),LOWER(C$3),"")))/LEN(C$3) -> 0 | D115: =(LEN($J115) - LEN(SUBSTITUTE(LOWER($J115),LOWER(D$3),"")))/LEN(D$3) -> 6 | E115: =SUM(B115:D115) -> 9 | F115: 2015 | G115: Vitamins and their derivatives in the prevention and treatment of metabolic syndrome diseases (diabetes). | H115: Dakshinamurti | I115: 25929424 | J115: Vitamins and their derivatives in the prevention and treatment of metabolic syndrome diseases (diabetes). Abstract: A cluster of inter-related conditions such as central obesity, dyslipidemia, impaired glucose metabolism, and hypertension is referred to as Metabolic Syndrome, which is a risk factor for the development of type-2 diabetes. The micro- and macro-vascular complications of diabetes contribute to its morbidity and mortality. In addition to its calcitropic effect, vitamin D is a regulator of gene expression as well as cell proliferation and differentiation. Various cross-sectional and longitudinal cohort studies have indicated a beneficial effect from vitamin D supplementation on the development of type-2 diabetes. Binding of retinol-bound retinol-binding protein to a membrane-binding protein suppresses insulin signaling. All-trans retinoic acid, a derivative of vitamin A, reverses these effects, resulting in increased insulin sensitivity, suppression of the phosphoenolpyruvate carboxy kinase (PEPCK) gene, and the induction of the glucokinase gene. Glucokinase and PEPCK are also regulated in opposite directions by the vitamin biotin, acting at the transcriptional level. Biotin also regulates the synthesis of insulin by the islet of Langerhans cells of the pancreas. The increase in advanced glycation end products (AGEs) is implicated in the initiation and progression of diabetes-associated microvascular diseases. Benfotiamine, a derivative of thiamine, and pyridoxamine, a vitamer of vitamin B6, both have anti-AGE properties, making them valuable therapeutic adjuvants in the treatment of diabetic complications. Thus, various vitamins and their derivatives have profound therapeutic potential in the prevention and treatment of type-2 diabetes.
A116: =HYPERLINK("http://www.ncbi.nlm.nih.gov/pubmed/" & I116,I116) -> 22737656 | B116: =(LEN($J116) - LEN(SUBSTITUTE(LOWER($J116),LOWER(B$3),"")))/LEN(B$3) -> 6 | C116: =(LEN($J116) - LEN(SUBSTITUTE(LOWER($J116),LOWER(C$3),"")))/LEN(C$3) -> 0 | D116: =(LEN($J116) - LEN(SUBSTITUTE(LOWER($J116),LOWER(D$3),"")))/LEN(D$3) -> 3 | E116: =SUM(B116:D116) -> 9 | F116: 2012 | G116: Retinoid metabolism and diabetes mellitus. | H116: Rhee | I116: 22737656 | J116: Retinoid metabolism and diabetes mellitus. Abstract: Retinoid acid is a metabolite of vitamin A and functions as an important factor in cell survival, differentiation and death. Most previous studies on retinoid metabolism have focused on its association with cancer, hematologic and dermatologic disorders. Given the special concern over the recent increase in the prevalence of diabetes worldwide, the role of retinoid metabolism on glucose metabolism and insulin resistance in the human body is of marked importance. Therefore, in this issue, we review the literature on the association of retinoid metabolism with glucose tolerance, with regard to insulin secretion, pancreatic autoimmunity, insulin sensitivity and lipid metabolism. Further, we tried to assess the possibility of using retinoids as a novel therapeutic strategy for diabetes.
A117: =HYPERLINK("http://www.ncbi.nlm.nih.gov/pubmed/" & I117,I117) -> 22690322 | B117: =(LEN($J117) - LEN(SUBSTITUTE(LOWER($J117),LOWER(B$3),"")))/LEN(B$3) -> 9 | C117: =(LEN($J117) - LEN(SUBSTITUTE(LOWER($J117),LOWER(C$3),"")))/LEN(C$3) -> 0 | D117: =(LEN($J117) - LEN(SUBSTITUTE(LOWER($J117),LOWER(D$3),"")))/LEN(D$3) -> 0 | E117: =SUM(B117:D117) -> 9 | F117: 2012 | G117: The adverse effects of alcohol on vitamin A metabolism. | H117: Clugston | I117: 22690322 | J117: The adverse effects of alcohol on vitamin A metabolism. Abstract: The objective of this review is to explore the relationship between alcohol and the metabolism of the essential micronutrient, vitamin A; as well as the impact this interaction has on alcohol-induced disease in adults. Depleted hepatic vitamin A content has been reported in human alcoholics, an observation that has been confirmed in animal models of chronic alcohol consumption. Indeed, alcohol consumption has been associated with declines in hepatic levels of retinol (vitamin A), as well as retinyl ester and retinoic acid; collectively referred to as retinoids. Through the use of animal models, the complex interplay between alcohol metabolism and vitamin A homeostasis has been studied; the reviewed research supports the notion that chronic alcohol consumption precipitates a decline in hepatic retinoid levels through increased breakdown, as well as increased export to extra-hepatic tissues. While the precise biochemical mechanisms governing alcohols effect remain to be elucidated, its profound effect on hepatic retinoid status is irrefutable. In addition to a review of the literature related to studies on tissue retinoid levels and the metabolic interactions between alcohol and retinoids, the significance of altered hepatic retinoid metabolism in the context of alcoholic liver disease is also considered.
A118: =HYPERLINK("http://www.ncbi.nlm.nih.gov/pubmed/" & I118,I118) -> 21983272 | B118: =(LEN($J118) - LEN(SUBSTITUTE(LOWER($J118),LOWER(B$3),"")))/LEN(B$3) -> 9 | C118: =(LEN($J118) - LEN(SUBSTITUTE(LOWER($J118),LOWER(C$3),"")))/LEN(C$3) -> 0 | D118: =(LEN($J118) - LEN(SUBSTITUTE(LOWER($J118),LOWER(D$3),"")))/LEN(D$3) -> 0 | E118: =SUM(B118:D118) -> 9 | F118: 2012 | G118: Analysis, occurrence, and function of 9-cis-retinoic acid. | H118: Kane | I118: 21983272 | J118: Analysis, occurrence, and function of 9-cis-retinoic acid. Abstract: Metabolic conversion of vitamin A (retinol) into retinoic acid (RA) controls numerous physiological processes. 9-cis-retinoic acid (9cRA), an active metabolite of vitamin A, is a high affinity ligand for retinoid X receptor (RXR) and also activates retinoic acid receptor (RAR). Despite the identification of candidate enzymes that produce 9cRA and the importance of RXRs as established by knockout experiments, in vivo detection of 9cRA in tissue was elusive until recently when 9cRA was identified as an endogenous pancreas retinoid by validated liquid chromatography-tandem mass spectrometry (LC-MS/MS) methodology. This review will discuss the current status of the analysis, occurrence, and function of 9cRA. Understanding both the nuclear receptor-mediated and non-genomic mechanisms of 9cRA will aid in the elucidation of disease physiology and possibly lead to the development of new retinoid-based therapeutics. This article is part of a Special Issue entitled Retinoid and Lipid Metabolism.
A119: =HYPERLINK("http://www.ncbi.nlm.nih.gov/pubmed/" & I119,I119) -> 21669299 | B119: =(LEN($J119) - LEN(SUBSTITUTE(LOWER($J119),LOWER(B$3),"")))/LEN(B$3) -> 9 | C119: =(LEN($J119) - LEN(SUBSTITUTE(LOWER($J119),LOWER(C$3),"")))/LEN(C$3) -> 0 | D119: =(LEN($J119) - LEN(SUBSTITUTE(LOWER($J119),LOWER(D$3),"")))/LEN(D$3) -> 0 | E119: =SUM(B119:D119) -> 9 | F119: 2012 | G119: Lipid metabolism in mammalian tissues and its control by retinoic acid. | H119: Bonet | I119: 21669299 | J119: Lipid metabolism in mammalian tissues and its control by retinoic acid. Abstract: Evidence has accumulated that specific retinoids impact on developmental and biochemical processes influencing mammalian adiposity including adipogenesis, lipogenesis, adaptive thermogenesis, lipolysis and fatty acid oxidation in tissues. Treatment with retinoic acid, in particular, has been shown to reduce body fat and improve insulin sensitivity in lean and obese rodents by enhancing fat mobilization and energy utilization systemically, in tissues including brown and white adipose tissues, skeletal muscle and the liver. Nevertheless, controversial data have been reported, particularly regarding retinoids effects on hepatic lipid and lipoprotein metabolism and blood lipid profile. Moreover, the molecular mechanisms underlying retinoid effects on lipid metabolism are complex and remain incompletely understood. Here, we present a brief overview of mammalian lipid metabolism and its control, introduce mechanisms through which retinoids can impact on lipid metabolism, and review reported activities of retinoids on different aspects of lipid metabolism in key tissues, focusing on retinoic acid. Possible implications of this knowledge in the context of the management of obesity and the metabolic syndrome are also addressed. This article is part of a Special Issue entitled Retinoid and Lipid Metabolism.
A120: =HYPERLINK("http://www.ncbi.nlm.nih.gov/pubmed/" & I120,I120) -> 20042001 | B120: =(LEN($J120) - LEN(SUBSTITUTE(LOWER($J120),LOWER(B$3),"")))/LEN(B$3) -> 3 | C120: =(LEN($J120) - LEN(SUBSTITUTE(LOWER($J120),LOWER(C$3),"")))/LEN(C$3) -> 6 | D120: =(LEN($J120) - LEN(SUBSTITUTE(LOWER($J120),LOWER(D$3),"")))/LEN(D$3) -> 0 | E120: =SUM(B120:D120) -> 9 | F120: 2010 | G120: Retinoic acid activation of peroxisome proliferation-activated receptor delta represses obesity and insulin resistance. | H120: Wolf | I120: 20042001 | J120: Retinoic acid activation of peroxisome proliferation-activated receptor delta represses obesity and insulin resistance. Abstract: Retinoic acid (RA) was found to be a ligand for peroxisome proliferation-activated receptor delta (PPARdelta) as well as the classical RA receptor (RAR). Carrier proteins that move the RA from the cytosol into the nucleus are the fatty acid-binding protein 5 (FABP5), activating PPARdelta, and the cellular retinoic acid-binding protein II (CRABPII), activating RAR. The ratio of FABP5/CRABPII concentrations determines which receptor is activated. By activating PPARdelta, RA was found to induce expression of genes affecting lipid and glucose homeostasis, in particular, leading to expression of the insulin-signaling gene PDK1 and improvement of insulin action. Hence, RA stimulates lipolysis and reduces triglyceride content. In vivo, obesity has led to downregulation of adipose PPARdelta expression. RA implantation into obese mice has caused upregulation of levels of PPARdelta and consequent weight loss as well as increased expression of PPARdelta target genes, including the insulin-signaling gene PDK1.
A121: =HYPERLINK("http://www.ncbi.nlm.nih.gov/pubmed/" & I121,I121) -> 19892132 | B121: =(LEN($J121) - LEN(SUBSTITUTE(LOWER($J121),LOWER(B$3),"")))/LEN(B$3) -> 9 | C121: =(LEN($J121) - LEN(SUBSTITUTE(LOWER($J121),LOWER(C$3),"")))/LEN(C$3) -> 0 | D121: =(LEN($J121) - LEN(SUBSTITUTE(LOWER($J121),LOWER(D$3),"")))/LEN(D$3) -> 0 | E121: =SUM(B121:D121) -> 9 | F121: 2010 | G121: Chapter 29: historical aspects of the major neurological vitamin deficiency disorders: overview and fat-soluble vitamin A. | H121: Lanska | I121: 19892132 | J121: Chapter 29: historical aspects of the major neurological vitamin deficiency disorders: overview and fat-soluble vitamin A. Abstract: The vitamine doctrine: Although diseases resulting from vitamin deficiencies have been known for millennia, such disorders were generally attributed to toxic or infectious causes until the quot;vitamin doctrinequot; was developed in the early 20th century. In the late-19th century, a physiologically complete diet was believed to require only sufficient proteins, carbohydrates, fats, inorganic salts, and water. From 1880-1912, Lunin, Pekelharing, and Hopkins found that animals fed purified mixtures of known food components failed to grow or even lost weight and died, unless the diet was supplemented with small amounts of milk, suggesting that quot;accessory food factorsquot; are required in trace amounts for normal growth. By this time, Funk suggested that deficiencies of trace dietary factors, which he labeled quot;vitaminesquot; on the mistaken notion that they were quot;vital amines,quot; were responsible for such diseases as beriberi, scurvy, rickets, and pellagra. Vitamin A deficiency eye disease: Night blindness was recognized by the ancient Egyptians and Greeks, and many authorities from Galen onward advocated liver as a curative. Outbreaks of night blindness were linked to nutritional causes in the 18th and 19th centuries by von Bergen, Schwarz, and others. Corneal ulceration was reported in 1817 by Magendie among vitamin A-deficient dogs fed for several weeks on a diet limited to sugar and water, although he erroneously attributed this to a deficiency of dietary nitrogen (i.e. protein). Subsequently, corneal epithelial defects, often in association with night blindness, were recognized in malnourished individuals subsisting on diets now recognizable as deficient in vitamin A by Budd, Livingstone, von Hubbenet, Bitot, Mori, Ishihari, and others. During World War I, Bloch conducted a controlled clinical trial of different diets among malnourished Danish children with night blindness and keratomalacia and concluded that whole milk, butter, and cod-liver oil contain a fat-soluble substance that protects against xerophthalmia. Early retinal photochemistry: In the 1870s, Boll found that light causes bleaching of the retinal pigment, and suggested that the outer segments of the rods contain a substance that conveys an impression of light to the brain by a photochemical process. Shortly thereafter, Kühne demonstrated that the bleaching process depends upon light, and was reversible if the retinal pigment epithelium was intact. Kühne proposed an quot;optochemical hypothesis,quot; a prescient concept of photochemical transduction, attributing vision to a photochemical change in visual purple (rhodopsin) with resulting chemical products stimulating the visual cells and thereby conveying a visual image. Vitamin A: In 1913, Ishihara proposed that a quot;fatty substancequot; in blood is necessary for synthesis of both rhodopsin and the surface layer of the cornea, and that night blindness and keratomalacia develop when this substance is deficient. That year McCollum and Davis (and almost simultaneously Mendel and Osborne) discovered a fat-soluble accessory food factor (later called quot;fat-soluble Aquot;) distinct from the water-soluble anti-beriberi factor (later called quot;fat-soluble Bquot;). By 1922 McCollum and colleagues distinguished two vitamins within the fat-soluble fraction, later named vitamins A and D. In 1925 Fridericia and Holm directly linked vitamin A to night blindness in animal experiments using rats, and in 1929 Holm demonstrated the presence of vitamin A in retinal tissue. In the 1930s, Moore, Karrer, Wald, and others established the provitamin role of beta-carotene. Karrer and colleagues isolated beta-carotene (the main dietary precursor of vitamin A) and retinol (vitamin A), and determined their chemical structures. In 1947, Isler and colleagues completed the full chemical synthesis of vitamin A. Modern retinal photochemistry: Beginning in the 1930s, Wald and colleagues greatly elaborated the photochemistry of vision, with the discovery of the visual cycle of vitamin A, demonstration that rhodopsin is decomposed by light into retinal (the aldehyde form of vitamin A) and a protein (opsin), elaboration of the enzymatic conversions of various elements in the rhodopsin system, and discovery that the rhodopsin system is dependent on a photoisomerization of retinal. In 1942, Hecht and colleagues demonstrated that a single photon could trigger excitation in a rod. In 1965, Wald suggested that a large chemical amplification was necessary for this degree of light sensitivity, likely by a cascade of enzymatic reactions. Later studies elaborated this cascade and found that an intermediary in the photoisomerization of retinal interacts with transducin, a G-protein, to activate phosphodiesterases that control cyclic GMP levels, which in turn modulate the release of neurotransmitter from the rod cell. Public health: Although the availability of vitamin A through food fortification and medicinal supplements virtually eliminated ocular vitamin A deficiency from developed countries by the second half of the 20th century, vitamin A deficiency remains a serious problem in developing countries as indicated by global surveys beginning in the 1960s. Millions of children were shown to be vitamin A deficient, with resultant blindness, increased susceptibility to infection, and increased childhood mortality. Beginning in the 1960s, intervention trials showed that vitamin A deficiency disorders could be prevented in developing countries with periodic vitamin A dosing, and in the 1980s and 1990s, large randomized, double-blind, placebo-controlled clinical trials demonstrated the marked efficacy of vitamin A supplementation in reducing childhood mortality.
A122: =HYPERLINK("http://www.ncbi.nlm.nih.gov/pubmed/" & I122,I122) -> 19071229 | B122: =(LEN($J122) - LEN(SUBSTITUTE(LOWER($J122),LOWER(B$3),"")))/LEN(B$3) -> 9 | C122: =(LEN($J122) - LEN(SUBSTITUTE(LOWER($J122),LOWER(C$3),"")))/LEN(C$3) -> 0 | D122: =(LEN($J122) - LEN(SUBSTITUTE(LOWER($J122),LOWER(D$3),"")))/LEN(D$3) -> 0 | E122: =SUM(B122:D122) -> 9 | F122: 2009 | G122: Hepatic stellate cell lipid droplets: a specialized lipid droplet for retinoid storage. | H122: Blaner | I122: 19071229 | J122: Hepatic stellate cell lipid droplets: a specialized lipid droplet for retinoid storage. Abstract: The majority of retinoid (vitamin A and its metabolites) present in the body of a healthy vertebrate is contained within lipid droplets present in the cytoplasm of hepatic stellate cells (HSCs). Two types of lipid droplets have been identified through histological analysis of HSCs within the liver: smaller droplets bounded by a unit membrane and larger membrane-free droplets. Dietary retinoid intake but not triglyceride intake markedly influences the number and size of HSC lipid droplets. The lipids present in rat HSC lipid droplets include retinyl ester, triglyceride, cholesteryl ester, cholesterol, phospholipids and free fatty acids. Retinyl ester and triglyceride are present at similar concentrations, and together these two classes of lipid account for approximately three-quarters of the total lipid in HSC lipid droplets. Both adipocyte-differentiation related protein and TIP47 have been identified by immunohistochemical analysis to be present in HSC lipid droplets. Lecithin:retinol acyltransferase (LRAT), an enzyme responsible for all retinyl ester synthesis within the liver, is required for HSC lipid droplet formation, since Lrat-deficient mice completely lack HSC lipid droplets. When HSCs become activated in response to hepatic injury, the lipid droplets and their retinoid contents are rapidly lost. Although loss of HSC lipid droplets is a hallmark of developing liver disease, it is not known whether this contributes to disease development or occurs simply as a consequence of disease progression. Collectively, the available information suggests that HSC lipid droplets are specialized organelles for hepatic retinoid storage and that loss of HSC lipid droplets may contribute to the development of hepatic disease.
A123: =HYPERLINK("http://www.ncbi.nlm.nih.gov/pubmed/" & I123,I123) -> 16484546 | B123: =(LEN($J123) - LEN(SUBSTITUTE(LOWER($J123),LOWER(B$3),"")))/LEN(B$3) -> 1 | C123: =(LEN($J123) - LEN(SUBSTITUTE(LOWER($J123),LOWER(C$3),"")))/LEN(C$3) -> 8 | D123: =(LEN($J123) - LEN(SUBSTITUTE(LOWER($J123),LOWER(D$3),"")))/LEN(D$3) -> 0 | E123: =SUM(B123:D123) -> 9 | F123: 2006 | G123: Nuclear receptors and autoimmune disease: the potential of PPAR agonists to treat multiple sclerosis. | H123: Racke | I123: 16484546 | J123: Nuclear receptors and autoimmune disease: the potential of PPAR agonists to treat multiple sclerosis. Abstract: Experimental autoimmune encephalomyelitis (EAE) is a T-cell-mediated, autoimmune disorder characterized by central nervous system inflammation and demyelination, features reminiscent of the human disease, multiple sclerosis (MS). Prior work in the EAE model has suggested that encephalitogenic T cells are of the T helper (Th)-1 phenotype. Our group has performed several studies in the EAE model that suggest that a strategy for treating autoimmune disorders is to convert the pathogenic cells from the Th1 to Th2 phenotype. Peroxisome proliferator-activated receptors (PPARs) are members of a nuclear hormone receptor superfamily that include receptors for steroids, retinoids, and thyroid hormone, all of which are known to affect the immune response. Recently, we examined the role of PPARgamma in EAE and observed that administration of the PPARgamma agonist 15-deoxy-Delta(12,14) prostaglandin J2 exerted a significant therapeutic effect predominantly by inhibiting the activation and expansion of encephalitogenic T cells. One potential advantage in studying PPARalpha agonists is that they have been very well tolerated when used in humans to treat conditions such as elevated triglycerides. Building on prior work in immune deviation and with PPAR agonists, we have demonstrated that PPARalpha agonists can alter the cytokine phenotype of myelin-reactive T cells, alter their encephalitogenicity, and be useful in the treatment of EAE. The fact that PPARalpha agonists have been used as therapeutic agents in humans to treat metabolic conditions for over 25 years with little toxicity makes them attractive candidates for use as adjunctive therapies in MS.
A124: =HYPERLINK("http://www.ncbi.nlm.nih.gov/pubmed/" & I124,I124) -> 14585313 | B124: =(LEN($J124) - LEN(SUBSTITUTE(LOWER($J124),LOWER(B$3),"")))/LEN(B$3) -> 9 | C124: =(LEN($J124) - LEN(SUBSTITUTE(LOWER($J124),LOWER(C$3),"")))/LEN(C$3) -> 0 | D124: =(LEN($J124) - LEN(SUBSTITUTE(LOWER($J124),LOWER(D$3),"")))/LEN(D$3) -> 0 | E124: =SUM(B124:D124) -> 9 | F124: 2003 | G124: Understanding the physiological role of retinol-binding protein in vitamin A metabolism using transgenic and knockout mouse models. | H124: Quadro | I124: 14585313 | J124: Understanding the physiological role of retinol-binding protein in vitamin A metabolism using transgenic and knockout mouse models. Abstract: Retinoids (vitamin A and its derivatives) play an essential role in many biological functions. However mammals are incapable of de novo synthesis of vitamin A and must acquire it from the diet. In the intestine, dietary retinoids are incorporated in chylomicrons as retinyl esters, along with other dietary lipids. The majority of dietary retinoid is cleared by and stored within the liver. To meet vitamin A requirements of tissues, the liver secretes retinol (vitamin A alcohol) into the circulation bound to its sole specific carrier protein, retinol-binding protein (RBP). The single known function of this protein is to transport retinol from the hepatic stores to target tissues. Over the last few years, the generation of knockout and transgenic mouse models has significantly contributed to our understanding of RBP function in the metabolism of vitamin A. We discuss below the role of RBP in maintaining normal vision and a steady flux of retinol throughout the body in times of need.
A125: =HYPERLINK("http://www.ncbi.nlm.nih.gov/pubmed/" & I125,I125) -> 12876835 | B125: =(LEN($J125) - LEN(SUBSTITUTE(LOWER($J125),LOWER(B$3),"")))/LEN(B$3) -> 9 | C125: =(LEN($J125) - LEN(SUBSTITUTE(LOWER($J125),LOWER(C$3),"")))/LEN(C$3) -> 0 | D125: =(LEN($J125) - LEN(SUBSTITUTE(LOWER($J125),LOWER(D$3),"")))/LEN(D$3) -> 0 | E125: =SUM(B125:D125) -> 9 | F125: 2003 | G125: Genetic defects in vitamin A metabolism of the retinal pigment epithelium. | H125: Thompson | I125: 12876835 | J125: Genetic defects in vitamin A metabolism of the retinal pigment epithelium. Abstract: The metabolism of vitamin A and cycling of retinoids between the retinal pigment epithelium (RPE) and the neural retina is a complex process involving a specialized enzymes and proteins. Mutations in a number of the corresponding genes are responsible for various forms of inherited retinal dystrophy and dysfunction. Research into the causes and treatment of retinal diseases resulting from defects in vitamin A metabolism is currently the subject of intense interest, since disorders affecting RPE function are, in principle, more accessible to therapeutic intervention than those affecting the proteins of the photoreceptor cells. In this chapter we present an overview of the visual cycle, as well as the function of the known RPE genes involved in the conversion of vitamin A (all-trans retinol) to 11-cis retinal, the chromophore of the visual pigments. We describe the identification of disease-associated mutations in this set of genes in patients with diverse forms of retinal dystrophy and dysfunction, as well as the spectrum of mutations and associated phenotypes. We also discuss the results of recent studies using animal models of the disease caused by mutations of RPE65. On the basis of these advances, it is hoped that patients with defects in RPE vitamin A metabolism will be among the first successfully treated by targeted therapies likely to become available in the near future.
A126: =HYPERLINK("http://www.ncbi.nlm.nih.gov/pubmed/" & I126,I126) -> 12514312 | B126: =(LEN($J126) - LEN(SUBSTITUTE(LOWER($J126),LOWER(B$3),"")))/LEN(B$3) -> 9 | C126: =(LEN($J126) - LEN(SUBSTITUTE(LOWER($J126),LOWER(C$3),"")))/LEN(C$3) -> 0 | D126: =(LEN($J126) - LEN(SUBSTITUTE(LOWER($J126),LOWER(D$3),"")))/LEN(D$3) -> 0 | E126: =SUM(B126:D126) -> 9 | F126: 2003 | G126: Retinoid production and catabolism: role of diet in regulating retinol esterification and retinoic Acid oxidation. | H126: Ross | I126: 12514312 | J126: Retinoid production and catabolism: role of diet in regulating retinol esterification and retinoic Acid oxidation. Abstract: Retinoic acid (RA), a transcriptionally active metabolite of vitamin A (retinol), activates two families of nuclear retinoid receptors that have the potential to regulate the expression of a large number of genes. Although it may be presumed that the concentration of RA is closely regulated, the mechanisms underlying such regulation are not well understood. Our research has examined the expression and function of two enzymes, lecithin:retinol acyltransferase (LRAT) and a cytochrome P450, CYP26, in the liver and lung of rats and mice, over a wide range of vitamin A status or after treatment of vitamin A-deficient animals with exogenous RA. LRAT expression at both the mRNA and protein activity levels and CYP26 mRNA are regulated by dietary vitamin A in a steady-state model and are acutely regulated by RA in an acute repletion model. In the liver, the level of expression of LRAT and CYP26 is as follows: vitamin A deficient lt; vitamin A marginal lt; vitamin A adequate lt; vitamin A supplemented lt; RA treated. The regulation of LRAT shows strong tissue specificity (highly regulated in liver and lung but not in small intestine), whereas CYP26 is strongly regulated in the liver, lung, testis and intestine. RA may function as a signal of the bodys vitamin A adequacy. The regulated expression of LRAT, CYP26 and other genes by RA may provide a sensitive response mechanism that overall serves to adjust the metabolism of vitamin A to maintain retinoid homeostasis and prevent retinoid excess.
A127: =HYPERLINK("http://www.ncbi.nlm.nih.gov/pubmed/" & I127,I127) -> 12042703 | B127: =(LEN($J127) - LEN(SUBSTITUTE(LOWER($J127),LOWER(B$3),"")))/LEN(B$3) -> 2 | C127: =(LEN($J127) - LEN(SUBSTITUTE(LOWER($J127),LOWER(C$3),"")))/LEN(C$3) -> 6 | D127: =(LEN($J127) - LEN(SUBSTITUTE(LOWER($J127),LOWER(D$3),"")))/LEN(D$3) -> 1 | E127: =SUM(B127:D127) -> 9 | F127: 2002 | G127: Role of peroxisome proliferator-activated receptor-gamma in hematologic malignancies. | H127: Konopleva | I127: 12042703 | J127: Role of peroxisome proliferator-activated receptor-gamma in hematologic malignancies. Abstract: Members of the nuclear receptor superfamily, including retinoic acid receptors (RARs), retinoid X receptors (RXRs), and vitamin D receptors (VDRs), are transcription factors that control many important cellular functions, and their ligands are widely used in several clinical indications. The latest family member is the peroxisome proliferator-activated receptor-gamma (PPARgamma), which is highly expressed in normal monocytes, different leukemias, and epithelial malignancies. PPARgamma ligands have been developed and signal differentiation, growth arrest, and apoptosis. PPARgamma forms heterodimers with RXR, and ligation of both receptors is required for maximal signaling. PPARgamma signaling, its expression in hematologic malignancies, and role in differentiation are discussed. Interactions of PPARgamma with X-RARalpha, protein kinase R (PKR), PTEN, and mitogen-activated protein kinase (MAPK) have been described. PPARgamma ligands have been developed for the management of diabetes, but new and more potent ligands, including triterpenoids, are being investigated as therapeutic agents for epithelial and hematologic malignancies.
A128: =HYPERLINK("http://www.ncbi.nlm.nih.gov/pubmed/" & I128,I128) -> 11729749 | B128: =(LEN($J128) - LEN(SUBSTITUTE(LOWER($J128),LOWER(B$3),"")))/LEN(B$3) -> 9 | C128: =(LEN($J128) - LEN(SUBSTITUTE(LOWER($J128),LOWER(C$3),"")))/LEN(C$3) -> 0 | D128: =(LEN($J128) - LEN(SUBSTITUTE(LOWER($J128),LOWER(D$3),"")))/LEN(D$3) -> 0 | E128: =SUM(B128:D128) -> 9 | F128: 2001 | G128: Cooperation of liver cells in health and disease. | H128: Kmieć | I128: 11729749 | J128: Cooperation of liver cells in health and disease. Abstract: The liver lobule is formed by parenchymal cells, i.e., hepatocytes and nonparenchymal cells. In contrast to hepatocytes that occupy almost 80% of the total liver volume and perform the majority of numerous liver functions, nonparenchymal liver cells, which contribute only 6.5% to the liver volume, but 40% to the total number of liver cells, are localized in the sinusoidal compartment of the tissue. The walls of hepatic sinusoid are lined by three different cell types: sinusoidal endothelial cells (SEC), Kupffer cells (KC), and hepatic stellate cells (HSC, formerly known as fat-storing cells, Ito cells, lipocytes, perisinusoidal cells, or vitamin A-rich cells). Additionally, intrahepatic lymphocytes (IHL), including pit cells, i.e., liver-specific natural killer cells, are often present in the sinusoidal lumen. It has been increasingly recognized that both under normal and pathological conditions, many hepatocyte functions are regulated by substances released from neighboring nonparenchymal cells. Liver sinusoidal endothelial cells constitute the lining or wall of the hepatic sinusoid. They perform important filtration function due to the presence of small fenestrations that allow free diffusion of many substances, but not of particles of the size of chylomicrons, between the blood and the hepatocyte surface. SEC show huge endocytic capacity for many ligands including glycoproteins, components of the extracellular matrix (ECM; such as hyaluronate, collagen fragments, fibronectin, or chondroitin sulphate proteoglycan), immune complexes, transferrin and ceruloplasmin. SEC may function as antigen-presenting cells (APC) in the context of both MHC-I and MHC-II restriction with the resulting development of antigen-specific T-cell tolerance. They are also active in the secretion of cytokines, eicosanoids (i.e., prostanoids and leukotrienes), endothelin-1, nitric oxide, and some ECM components. Kupffer cells are intrasinusoidally located tissue macrophages with a pronounced endocytic and phagocytic capacity. They are in constant contact with gut-derived particulate materials and soluble bacterial products so that a subthreshold level of their activation in the normal liver may be anticipated. Hepatic macrophages secrete potent mediators of the inflammatory response (reactive oxygen species, eicosanoids, nitric oxide, carbon monoxide, TNF-alpha, and other cytokines), and thus control the early phase of liver inflammation, playing an important part in innate immune defense. High exposure of Kupffer cells to bacterial products, especially endotoxin (lipopolysaccharide, LPS), can lead to the intensive production of inflammatory mediators, and ultimately to liver injury. Besides typical macrophage activities, Kupffer cells play an important role in the clearance of senescent and damaged erythrocytes. Liver macrophages modulate immune responses via antigen presentation, suppression of T-cell activation by antigen-presenting sinusoidal endothelial cells via paracrine actions of IL-10, prostanoids, and TNF-alpha, and participation in the development of oral tolerance to bacterial superantigens. Moreover, during liver injury and inflammation, Kupffer cells secrete enzymes and cytokines that may damage hepatocytes, and are active in the remodeling of extracellular matrix. Hepatic stellate cells are present in the perisinusoidal space. They are characterized by abundance of intracytoplasmic fat droplets and the presence of well-branched cytoplasmic processes, which embrace endothelial cells and provide focally a double lining for sinusoid. In the normal liver HSC store vitamin A, control turnover of extracellular matrix, and regulate the contractility of sinusoids. Acute damage to hepatocytes activates transformation of quiescent stellate cells into myofibroblast-like cells that play a key role in the development of inflammatory fibrotic response. Pit cells represent a liver-associated population of large granular lymphocytes, i.e., natural killer (NK) cells. They spontaneously kill a variety of tumor cells in an MHC-unrestricted way, and this antitumor activity may be enhanced by the secretion of interferon-gamma. Besides pit cells, the adult liver contains other subpopulations of lymphocytes such as gamma delta T cells, and both quot;conventionalquot; and quot;unconventionalquot; alpha beta T cells, the latter containing liver-specific NK T cells. The development of methods for the isolation and culture of main liver cell types allowed to demonstrate that both nonparenchymal and parenchymal cells secrete tens of mediators that exert multiple paracrine and autocrine actions. Co-culture experiments and analyses of the effects of conditioned media on cultures of another liver cell type have enabled the identification of many substances released from non-parenchymal liver cells that evidently regulate some important functions of neighboring hepatocytes and non-hepatocytes. To the key mediators involved in the intercellular communication in the liver belong prostanoids, nitric oxide, endothelin-1, TNF-alpha, interleukins, and chemokines, many growth factors (TGF-beta, PDGF, IGF-I, HGF), and reactive oxygen species (ROS). Paradoxically, the cooperation of liver cells is better understood under some pathological conditions (i.e., in experimental models of liver injury) than in normal liver due to the possibility of comparing cellular phenotype under in vivo and in vitro conditions with the functions of the injured organ. The regulation of vitamin A metabolism provides an example of the physiological role for cellular cross-talk in the normal liver. The majority (up to 80%) of the total body vitamin A is stored in the liver as long-chain fatty acid esters of retinal, serving as the main source of retinoids that are utilized by all tissues throughout the body. Hepatocytes are directly involved in the uptake from blood of chylomicron remnants, and the synthesis of retinol-binding protein that transfers retinol to other tissues. However, more than 80% of the liver retinoids are stored in lipid droplets of hepatic stellate cells. HSC are capable of both uptake and release of retinol depending on the bodys retinol status. The activity of some major enzymes of vitamin A metabolism have been found to be many times higher per protein basis in stellate cells than in hepatocytes. Despite progress in the understanding of the roles played by these two cell types in hepatic retinoid metabolism, the way in which retinoids move between the parenchymal cells, stellate cells, and blood plasma has not been fully elucidated. Sinusoidal blood flow is, to a great extent, regulated by hepatic stellate cells that can contract due to the presence of smooth muscle alpha-actin. The main vasoactive substances that affect constriction or relaxation of HSC derive both from distant sources and from neighboring hepatocytes (carbon monoxide, leukotrienes), endothelial cells (endothelin, nitric oxide, prostaglandins), Kupffer cells (prostaglandins, NO), and stellate cells themselves (endothelin, NO). The cellular cross-talk reflected by the fine-tuned modulation of sinusoidal contraction becomes disturbed under pathological conditions, such as endotoxemia or liver fibrosis, through the excess synthesis of vasoregulatory compounds and the involvement of additional mediators acting in a paracrine way. The liver is an important source of some growth factors and growth factor-binding proteins. Although hepatocytes synthesize the bulk of insulin-like growth factor I (IGF-I), also other types of nonparenchymal liver cells may produce this peptide. Cell-specific expression of distinct IGF-binding proteins observed in the rat and human liver provides the potential for specific regulation of hepatic IGF-I synthesis not only by growth hormone, insulin, and IGF-I, but also by cytokines released from activated Kupffer (IL-1, TNF-alpha, TGF-beta) or stellate cells (TGF-alpha, TGF-beta). Hepatic stellate cells may affect turnover of hepatocytes through the synthesis of potent positive as well as negative signals such as, respectively, hepatocyte-growth-factor or TGF-beta. Although hepatocytes seem not to produce TGF-beta, a pleiotropic cytokine synthesized and secreted in the latent form by Kupffer and stellate cells, they may contribute to its actions in the liver by the intracellular activation of latent TGF-beta, and secretion of the biologically active isoform. Many mediators that reach the liver during inflammatory processes, such as endotoxins, immune-complexes, anaphylatoxins, and PAF, increase glucose output in the perfused liver, but fail to do so in isolated hepatocytes, acting indirectly via prostaglandins released from Kupffer cells. In the liver, prostaglandins synthesized from arachidonic acid mainly in Kupffer cells in a response to various inflammatory stimuli, modulate hepatic glucose metabolism by increasing glycogenolysis in adjacent hepatocytes. The release of glucose from glycogen supports the increased demand for energetic fuel by the inflammatory cells such as leukocytes, and additionally enables enhanced glucose turnover in sinusoidal endothelial cells and Kupffer cells which is necessary for effective defense of these cells against invading microorganisms and oxidative stress in the liver. Leukotrienes, another oxidation product of arachidonic acid, have vasoconstrictive, cholestatic, and metabolic effects in the liver. A transcellular synthesis of cysteinyl leukotrienes (LTC4, LTD4, and LTE4) functions in the liver: LTA4, an important intermediate, is synthesized in Kupffer cells, taken up by hepatocytes, converted into the potent LTC4, and then released into extracellular space, acting in a paracrine way on Kupffer and sinusoidal endothelial cells. Thus, hepatocytes are target cells for the action of eicosanoids and the site of their transformation and degradation, but can not directly oxidate arachidonic acid to eicosanoids. (ABSTRACT TRUNCATED)
A129: =HYPERLINK("http://www.ncbi.nlm.nih.gov/pubmed/" & I129,I129) -> 11082709 | B129: =(LEN($J129) - LEN(SUBSTITUTE(LOWER($J129),LOWER(B$3),"")))/LEN(B$3) -> 8 | C129: =(LEN($J129) - LEN(SUBSTITUTE(LOWER($J129),LOWER(C$3),"")))/LEN(C$3) -> 0 | D129: =(LEN($J129) - LEN(SUBSTITUTE(LOWER($J129),LOWER(D$3),"")))/LEN(D$3) -> 1 | E129: =SUM(B129:D129) -> 9 | F129: 2000 | G129: [From cancer prevention to cancer treatment]. | H129: Shudo | I129: 11082709 | J129: [From cancer prevention to cancer treatment]. Abstract: Cancer is a common life-threatening disease. Prevention and therapy of the disease are the desire of everybody. This paper summarizes our attempt to the tough challenge. Chronologically we began the study of carcinogenesis, and then turned to the research of anticancer agents. Identification of food mutagens was extensively studied. Once they were identified, the mechanism of nucleic acid modifications by these mutagens had been studied. The modification study gave information on the nucleic acid modification by mitomycin and bleomycin. The structure-activity relationship study of phorbol esters and teleocidines whose tumor promotion is epigenetic, was extensively studied. On the other hand, retinoic acid, a vitamin A metabolite, suppresses the epigenetic tumor promotion. This suggests that an epigenetically active compound rather than a cytotoxic anticancer agent can be used for tumor suppression. In the retinoid research, we found a number of characteristic new active substances which may be of therapeutic use: some of them are in the clinical trial stages in the field of dermatology and cancer. During the chemical study of retinoids, we encountered the retinoic acid receptor, coded by the retinoic acid receptor (RAR) gene which had just reported. Further retinoid research yielded retinoids antagonists, and then RXR(retinoic acid-X-receptor)-agonists and RXR-antagonists. These ligands have a big potential in the therapy of diabetes and obesity.
A130: =HYPERLINK("http://www.ncbi.nlm.nih.gov/pubmed/" & I130,I130) -> 10946560 | B130: =(LEN($J130) - LEN(SUBSTITUTE(LOWER($J130),LOWER(B$3),"")))/LEN(B$3) -> 9 | C130: =(LEN($J130) - LEN(SUBSTITUTE(LOWER($J130),LOWER(C$3),"")))/LEN(C$3) -> 0 | D130: =(LEN($J130) - LEN(SUBSTITUTE(LOWER($J130),LOWER(D$3),"")))/LEN(D$3) -> 0 | E130: =SUM(B130:D130) -> 9 | F130: 2000 | G130: A gene knockout corroborates the integral function of cellular retinol-binding protein in retinoid metabolism. | H130: Napoli | I130: 10946560 | J130: A gene knockout corroborates the integral function of cellular retinol-binding protein in retinoid metabolism. Abstract: Continually expanding evidence has moved inexorably toward establishing key functions for cellular retinol-binding protein (CRBP) in retinoid metabolism. These experimental data integrate into a model of CRBP as a chaperone that protects retinol from the cellular milieu and interacts with certain retinoid-metabolizing enzymes. Mutant mice with an inactivated CRBP gene show decreased liver retinyl ester storage, a shorter elimination half-life of liver retinoids, and predisposition to vitamin A deficiency. No morphologic phenotype was observed until vitamin A was exhausted. Although the mechanisms underlying diminished vitamin A in the CRBP-null mice have not been elucidated, the observations support the model of CRBP as a chaperone of retinoid metabolism.
A131: =HYPERLINK("http://www.ncbi.nlm.nih.gov/pubmed/" & I131,I131) -> 10357725 | B131: =(LEN($J131) - LEN(SUBSTITUTE(LOWER($J131),LOWER(B$3),"")))/LEN(B$3) -> 9 | C131: =(LEN($J131) - LEN(SUBSTITUTE(LOWER($J131),LOWER(C$3),"")))/LEN(C$3) -> 0 | D131: =(LEN($J131) - LEN(SUBSTITUTE(LOWER($J131),LOWER(D$3),"")))/LEN(D$3) -> 0 | E131: =SUM(B131:D131) -> 9 | F131: 1999 | G131: Alcohol, vitamin A, and beta-carotene: adverse interactions, including hepatotoxicity and carcinogenicity. | H131: Leo | I131: 10357725 | J131: Alcohol, vitamin A, and beta-carotene: adverse interactions, including hepatotoxicity and carcinogenicity. Abstract: Isozymes of alcohol and other dehydrogenases convert ethanol and retinol to their corresponding aldehydes in vitro. In addition, new pathways of retinol metabolism have been described in hepatic microsomes that involve, in part, cytochrome P450s, which can also metabolize various drugs. In view of these overlapping metabolic pathways, it is not surprising that multiple interactions between retinol, ethanol, and other drugs occur. Accordingly, prolonged use of alcohol, drugs, or both, results not only in decreased dietary intake of retinoids and carotenoids, but also accelerates the breakdown of retinol through cross-induction of degradative enzymes. There is also competition between ethanol and retinoic acid precursors. Depletion ensues, with associated hepatic and extrahepatic pathology, including carcinogenesis and contribution to fetal defects. Correction of deficiency through vitamin A supplementation has been advocated. It is, however, complicated by the intrinsic hepatotoxicity of retinol, which is potentiated by concomitant alcohol consumption. By contrast, beta-carotene, a precursor of vitamin A, was considered innocuous until recently, when it was found to also interact with ethanol, which interferes with its conversion to retinol. Furthermore, the combination of beta-carotene with ethanol results in hepatotoxicity. Moreover, in smokers who also consume alcohol, beta-carotene supplementation promotes pulmonary cancer and, possibly, cardiovascular complications. Experimentally, beta-carotene toxicity was exacerbated when administered as part of beadlets. Thus ethanol, while promoting a deficiency of vitamin A also enhances its toxicity as well as that of beta-carotene. This narrowing of the therapeutic window for retinol and beta-carotene must be taken into account when formulating treatments aimed at correcting vitamin A deficiency, especially in drinking populations.
A132: =HYPERLINK("http://www.ncbi.nlm.nih.gov/pubmed/" & I132,I132) -> 9290094 | B132: =(LEN($J132) - LEN(SUBSTITUTE(LOWER($J132),LOWER(B$3),"")))/LEN(B$3) -> 4 | C132: =(LEN($J132) - LEN(SUBSTITUTE(LOWER($J132),LOWER(C$3),"")))/LEN(C$3) -> 0 | D132: =(LEN($J132) - LEN(SUBSTITUTE(LOWER($J132),LOWER(D$3),"")))/LEN(D$3) -> 5 | E132: =SUM(B132:D132) -> 9 | F132: 1997 | G132: Vitamin A homeostasis and diabetes mellitus. | H132: Basu | I132: 9290094 | J132: Vitamin A homeostasis and diabetes mellitus. Abstract: Recent studies have shown that plasma concentrations of vitamin A (retinol) and its carrier proteins, retinol-binding protein (RBP), and transthyretin (TTR), are decreased in human subjects with insulin-dependent (IDDM) but not with noninsulin dependent diabetes mellitus (NIDDM). Rats made diabetic with streptozotocin (STZ) have also been shown to have reduced levels of plasma vitamin A while its hepatic concentrations elevate. The circulatory vitamin A levels remained low while its hepatic concentrations were further elevated following supplementation of the vitamin. The reduced circulatory status of vitamin A in diabetic animals was not caused by its impaired intestinal absorption. Further experimental studies have pointed to the fact that IDDM is associated with a deficiency of vitamin A, which is secondary to an impaired transport mechanism of this vitamin from its hepatic storage to the target site, such as retina of the eyes. The diabetes-associated changes in vitamin A metabolism were reserved to normal by insulin treatment. The underlying cause for decreased metabolic availability in uncontrolled diabetes, is not clearly understood. It appears that the increased hepatic store of vitamin A is attributed to a decreased availability of its carrier proteins. Subnormal vitamin A status in poorly controlled diabetic subjects may not respond to vitamin A supplementation, rather it may increase its load in the liver leading to hepatoxicity. These results clearly suggest that there is need for further research identifying the importance of vitamin A in diabetes mellitus.
A133: =HYPERLINK("http://www.ncbi.nlm.nih.gov/pubmed/" & I133,I133) -> 8810827 | B133: =(LEN($J133) - LEN(SUBSTITUTE(LOWER($J133),LOWER(B$3),"")))/LEN(B$3) -> 9 | C133: =(LEN($J133) - LEN(SUBSTITUTE(LOWER($J133),LOWER(C$3),"")))/LEN(C$3) -> 0 | D133: =(LEN($J133) - LEN(SUBSTITUTE(LOWER($J133),LOWER(D$3),"")))/LEN(D$3) -> 0 | E133: =SUM(B133:D133) -> 9 | F133: 1996 | G133: The regulation of retinoic acid formation. | H133: Wolf | I133: 8810827 | J133: The regulation of retinoic acid formation. Abstract: Rat liver microsomal as well as cytosolic retinol dehydrogenases from cellular retinal-binding protein (CRBP)-retinal from CRBP-retinol. A cytosolic dehydrogenase transforms retinal into retinoic acid. Apo-CRBP and ethanol inhibit the cytosolic but not the microsomal retinol dehydrogenase, the latter being the primary enzyme in the rate-limiting step in retinoic acid synthesis.
